Workbook

Sheet 1. Information Sheet
U1: a
M12: Version | N12: 1.2
E14: Utility Name | F14: Waterloo North Hydro Inc.
E16: Service Territory
E18: Assigned EB Number | F18: EB-2016-0109
E20: Name of Contact and Title | F20: Albert Singh, CFO and Vice President of Finance
E22: Phone Number | F22: (519) 888-5542
E24: Email Address | F24: asingh@wnhydro.com
E26: We are applying for rates effective | F26: 2017-01-01
E28: Rate-Setting Method | F28: Price Cap IR
A30: Please indicate in which Rate Year the Group 1 accounts were last cleared1 | F30: 2016
A32: Please indicate the last Cost of Service Re-Basing Year | F32: 2016
B35: Notes
C37: Pale green cells represent input cells.
C39: Pale blue cells represent drop-down lists. The applicant should select the appropriate item from the drop-down list.
C41: Pale grey cell represent auto-populated RRR data
C43: White cells contain fixed values, automatically generated values or formulae.
A46: Note: 1. Rate year of application

Sheet Sheet1 (hidden)
A1: 1. Information Sheet
A2: Sheet1 | B2: X
A3: 2. Current Tariff Schedule | B3: X | C3: X
A4: 2016 List | B4: X
A5: 3. Continuity Schedule | B5: X | C5: X
A6: 4. Billing Det. for Def-Var | B6: X | C6: X
A7: 5. Allocating Def-Var Balances | B7: X | C7: X
A8: 6. GA calculation | B8: X | C8: X
A9: 6.a GA allocation_Class A | B9: X
A10: 7. Calculation of Def-Var RR | B10: X | C10: X
A11: 8. STS - Tax Change | B11: X | C11: X
A12: 9. Shared Tax - Rate Rider | B12: X | C12: X
A13: 10. RTSR Current Rates | B13: X | C13: X
A14: 11. RTSR - UTRs & Sub-Tx | B14: X | C14: X
A15: 12. RTSR - Historical Wholesale | B15: X | C15: X
A16: 13. RTSR - Current Wholesale | B16: X | C16: X
A17: 14. RTSR - Forecast Wholesale | B17: X | C17: X
A18: 15. RTSR Rates to Forecast | B18: X | C18: X
A19: 16. Rev2Cost_GDPIPI | B19: X | C19: X
A20: 17. Regulatory Charges | B20: X | C20: X
A21: 18. Additional Rates | B21: X | C21: X
A22: 19. Final Tariff Schedule | B22: X | C22: X
A23: 20. Bill Impacts | B23: X | C23: X
A24: 20. HIDDEN | B24: X
A25: 20. Bill Impacts hidden | B25: X
A26: 2.1.7 Filing | B26: X
A27: 2 1 5 TotalConsumptionData_Dist | B27: X
A28: 212_Total_Connection_RollUp | B28: X
A29: 2016 Database | B29: X
A30: lists | B30: X
A31: Sheet2 | B31: X

Sheet 2. Current Tariff Schedule
AZ1: TRUE
B3: Macro has been activated
B12: Waterloo North Hydro Inc. | F12: X | G12: Waterloo North Hydro Inc._Start | H12: Waterloo North Hydro Inc. | J12: 9
B13: TARIFF OF RATES AND CHARGES
B14: Effective and Implementation Date January 1, 2016 | P14: 2016-01-01
B15: This schedule supersedes and replaces all previously
B16: approved schedules of Rates, Charges and Loss Factors
B17: EB-2015-0108 | H17: EB-2015-0108 | AS17: X
B18: RESIDENTIAL SERVICE CLASSIFICATION | H18: 1_RESIDENTIAL SERVICE CLASSIFICATION | AA18: RESIDENTIAL SERVICE CLASSIFICATION
B19: This classification applies to an account taking electricity at 750 volts or less where the electricity is used exclusively in a separate metered living accommodation. Customers shall be residing in single-dwelling units that consist of a detached house or one unit of a semi-detached, duplex, triplex or quadruplex house, with a residential zoning. Separately metered dwellings within a town house complex or apartment building also qualify as residential customers. All customers are single-phase. Further servicing details are available in the distributor’s Conditions of Service. | H19: 1_RESIDENTIAL SERVICE CLASSIFICATION | AA19: This classification applies to an account taking electricity at 750 volts or less where the electricity is used exclusively in a separate metered living accommodation. Customers shall be residing in single-dwelling units that consist of a detached house or one unit of a semi-detached, duplex, triplex or quadruplex house, with a residential zoning. Separately metered dwellings within a town house complex or apartment building also qualify as residential customers. All customers are single-phase. Further servicing details are available in the distributor’s Conditions of Service.
B21: APPLICATION | H21: 1_APPLICATION | AA21: APPLICATION
B23: The application of these rates and charges shall be in accordance with the Licence of the Distributor and any Code or Order of the Ontario Energy Board, and amendments thereto as approved by the Ontario Energy Board, which may be applicable to the administration of this schedule. | H23: 1_RESIDENTIAL SERVICE CLASSIFICATION | AA23: The application of these rates and charges shall be in accordance with the Licence of the Distributor and any Code or Order of the Ontario Energy Board, and amendments thereto as approved by the Ontario Energy Board, which may be applicable to the administration of this schedule.
B25: No rates and charges for the distribution of electricity and charges to meet the costs of any work or service done or furnished for the purpose of the distribution of electricity shall be made except as permitted by this schedule, unless required by the Distributor’s Licence or a Code or Order of the Ontario Energy Board, and amendments thereto as approved by the Ontario Energy Board, or as specified herein. | H25: 1_RESIDENTIAL SERVICE CLASSIFICATION | AA25: No rates and charges for the distribution of electricity and charges to meet the costs of any work or service done or furnished for the purpose of the distribution of electricity shall be made except as permitted by this schedule, unless required by the Distributor’s Licence or a Code or Order of the Ontario Energy Board, and amendments thereto as approved by the Ontario Energy Board, or as specified herein.
B27: Unless specifically noted, this schedule does not contain any charges for the electricity commodity, be it under the Regulated Price Plan, a contract with a retailer or the wholesale market price, as applicable.In addition, the charges in the MONTHLY RATES AND CHARGES – Regulatory Component of this schedule do not apply to a customer that is an embedded wholesale market participant. | H27: 1_RESIDENTIAL SERVICE CLASSIFICATION | AA27: Unless specifically noted, this schedule does not contain any charges for the electricity commodity, be it under the Regulated Price Plan, a contract with a retailer or the wholesale market price, as applicable.In addition, the charges in the MONTHLY RATES AND CHARGES – Regulatory Component of this schedule do not apply to a customer that is an embedded wholesale market participant.
B29: It should be noted that this schedule does not list any charges, assessments or credits that are required by law to be invoiced by a distributor and that are not subject to Ontario Energy Board approval, such as the Debt Retirement Charge, the Global Adjustment and the HST. | H29: 1_RESIDENTIAL SERVICE CLASSIFICATION | AA29: It should be noted that this schedule does not list any charges, assessments or credits that are required by law to be invoiced by a distributor and that are not subject to Ontario Energy Board approval, such as the Debt Retirement Charge, the Global Adjustment and the HST.
B31: MONTHLY RATES AND CHARGES – Delivery Component | H31: 1_MRC_Del | AA31: MONTHLY RATES AND CHARGES – Delivery Component
B33: Service Charge | D33: $ | E33: 19.71 | H33: 1_RESIDENTIAL SERVICE CLASSIFICATION | I33: A | M33: 1_RESIDENTIAL SERVICE CLASSIFICATION_MSC | Z33: Service Charge
B34: Rate Rider for Smart Metering Entity Charge – effective until October 31, 2018 | D34: $ | E34: 0.79 | H34: 1_RESIDENTIAL SERVICE CLASSIFICATION | I34: B | M34: 1_RESIDENTIAL SERVICE CLASSIFICATION_SME | Q34: 2018-10-31 | Z34: Rate Rider for Smart Metering Entity Charge – effective until October 31, 2018
B35: Rate Rider for Recovery of Stranded Meter Assets – effective until December 31, 2018 | D35: $ | E35: 0.58 | H35: 1_RESIDENTIAL SERVICE CLASSIFICATION | I35: A | M35: 1_RESIDENTIAL SERVICE CLASSIFICATION_SMA | Q35: 2018-12-31 | Z35: Rate Rider for Recovery of Stranded Meter Assets – effective until December 31, 2018
B36: Distribution Volumetric Rate | D36: $/kWh | E36: 0.0154 | H36: 1_RESIDENTIAL SERVICE CLASSIFICATION | I36: A | M36: 1_RESIDENTIAL SERVICE CLASSIFICATION_DVC | Z36: Distribution Volumetric Rate
B37: Low Voltage Service Rate | D37: $/kWh | E37: 0.0002 | H37: 1_RESIDENTIAL SERVICE CLASSIFICATION | I37: B | M37: 1_RESIDENTIAL SERVICE CLASSIFICATION_LV | Z37: Low Voltage Service Rate
B38: Rate Rider for Disposition of Global Adjustment Account (2015) – effective until April 30, 2016 - Applicable only for Non RPP Customers | D38: $/kWh | E38: 0.0006 | H38: 1_RESIDENTIAL SERVICE CLASSIFICATION | I38: B | M38: 1_RESIDENTIAL SERVICE CLASSIFICATION_GA_kwh | Q38: 2016-04-30 | R38: X | Z38: Rate Rider for Disposition of Global Adjustment Account (2015) – effective until April 30, 2016 - Applicable only for Non RPP Customers
B39: Rate Rider for Disposition of Global Adjustment Account (2016) – effective until December 31, 2016 - Applicable only for Non RPP Customers | D39: $/kWh | E39: 0.0031 | H39: 1_RESIDENTIAL SERVICE CLASSIFICATION | I39: B | M39: 1_RESIDENTIAL SERVICE CLASSIFICATION_GA_kwh | Q39: 2016-12-31 | R39: X | Z39: Rate Rider for Disposition of Global Adjustment Account (2016) – effective until December 31, 2016 - Applicable only for Non RPP Customers
B40: Rate Rider for Disposition of Deferral/Variance Accounts (2015) – effective until April 30, 2016 | D40: $/kWh | E40: -0.0014 | H40: 1_RESIDENTIAL SERVICE CLASSIFICATION | I40: B | M40: 1_RESIDENTIAL SERVICE CLASSIFICATION_DEFVAR_ALL | Q40: 2016-04-30 | R40: X | Z40: Rate Rider for Disposition of Deferral/Variance Accounts (2015) – effective until April 30, 2016
B41: Rate Rider for Disposition of Deferral/Variance Accounts (2016) – effective until December 31, 2016 | D41: $/kWh | E41: 0.0016 | H41: 1_RESIDENTIAL SERVICE CLASSIFICATION | I41: B | M41: 1_RESIDENTIAL SERVICE CLASSIFICATION_DEFVAR_ALL | Q41: 2016-12-31 | R41: X | Z41: Rate Rider for Disposition of Deferral/Variance Accounts (2016) – effective until December 31, 2016
B42: Rate Rider for Disposition of Account 1576 – effective until December 31, 2016 | D42: $/kWh | E42: -0.0016 | H42: 1_RESIDENTIAL SERVICE CLASSIFICATION | I42: A | M42: 1_RESIDENTIAL SERVICE CLASSIFICATION_DEFVAR_ALL | Q42: 2016-12-31 | R42: X | Z42: Rate Rider for Disposition of Account 1576 – effective until December 31, 2016
B43: Rate Rider for Recovery of LRAM Variance Account (2016)– effective until December 31, 2016 | D43: $/kWh | E43: 0.0002 | H43: 1_RESIDENTIAL SERVICE CLASSIFICATION | I43: A | M43: 1_RESIDENTIAL SERVICE CLASSIFICATION_VR_RR_1130 | Q43: 2016-12-31 | R43: X | Z43: Rate Rider for Recovery of LRAM Variance Account (2016)– effective until December 31, 2016
B44: Rate Rider for Application of Tax Change (2015) – effective until April 30, 2016 | D44: $/kWh | E44: -0.0001 | H44: 1_RESIDENTIAL SERVICE CLASSIFICATION | I44: A | M44: 1_RESIDENTIAL SERVICE CLASSIFICATION_STS | Q44: 2016-04-30 | R44: X | Z44: Rate Rider for Application of Tax Change (2015) – effective until April 30, 2016
B45: Retail Transmission Rate – Network Service Rate | D45: $/kWh | E45: 0.0074 | H45: 1_RESIDENTIAL SERVICE CLASSIFICATION | I45: C | M45: 1_RESIDENTIAL SERVICE CLASSIFICATION_Retail Transmission Rate – Network Service Rate | Z45: Retail Transmission Rate – Network Service Rate
B46: Retail Transmission Rate – Line and Transformation Connection Service Rate | D46: $/kWh | E46: 0.0023 | H46: 1_RESIDENTIAL SERVICE CLASSIFICATION | I46: C | M46: 1_RESIDENTIAL SERVICE CLASSIFICATION_Retail Transmission Rate – Line and Transformation Connection Service Rate | Z46: Retail Transmission Rate – Line and Transformation Connection Service Rate
B48: MONTHLY RATES AND CHARGES – Regulatory Component | H48: 1_MRC_Reg | AA48: MONTHLY RATES AND CHARGES – Regulatory Component
B50: Wholesale Market Service Rate | D50: $/kWh | E50: 0.0036 | H50: 1_RESIDENTIAL SERVICE CLASSIFICATION | I50: T | M50: 1_RESIDENTIAL SERVICE CLASSIFICATION_WMSR | Z50: Wholesale Market Service Rate
B51: Rural or Remote Electricity Rate Protection Charge (RRRP) | D51: $/kWh | E51: 0.0013 | H51: 1_RESIDENTIAL SERVICE CLASSIFICATION | I51: T | M51: 1_RESIDENTIAL SERVICE CLASSIFICATION_RRRP | Z51: Rural or Remote Electricity Rate Protection Charge (RRRP)
B52: Ontario Electricity Support Program Charge (OESP) | D52: $/kWh | E52: 0.0011 | H52: 1_RESIDENTIAL SERVICE CLASSIFICATION | I52: T | M52: 1_RESIDENTIAL SERVICE CLASSIFICATION_OESPR | Z52: Ontario Electricity Support Program Charge (OESP)
B53: Standard Supply Service – Administrative Charge (if applicable) | D53: $ | E53: 0.25 | H53: 1_RESIDENTIAL SERVICE CLASSIFICATION | I53: T | M53: 1_RESIDENTIAL SERVICE CLASSIFICATION_SSS | Z53: Standard Supply Service – Administrative Charge (if applicable) | AS53: X
B54: ONTARIO ELECTRICITY SUPPORT PROGRAM RECIPIENTS | H54: 2_ONTARIO ELECTRICITY SUPPORT PROGRAM RECIPIENTS | AA54: ONTARIO ELECTRICITY SUPPORT PROGRAM RECIPIENTS
B55: In addition to the charges specified on page 1 of this tariff of rates and charges, the following credits are to be applied to eligible residential customers. | H55: 2_ONTARIO ELECTRICITY SUPPORT PROGRAM RECIPIENTS | AA55: In addition to the charges specified on page 1 of this tariff of rates and charges, the following credits are to be applied to eligible residential customers.
B57: APPLICATION | H57: 2_APPLICATION | AA57: APPLICATION
B59: The application of the credits is in accordance with the Distribution System Code (Section 9) and subsection 79.2 of the Ontario Energy Board Act, 1998. | H59: 2_ONTARIO ELECTRICITY SUPPORT PROGRAM RECIPIENTS | AA59: The application of the credits is in accordance with the Distribution System Code (Section 9) and subsection 79.2 of the Ontario Energy Board Act, 1998.
B60: The application of these credits shall be in accordance with the Licence of the Distributor and any Code or Order of the Ontario Energy Board, and amendments thereto as approved by the Ontario Energy Board, which may be applicable to the administration of this schedule. | H60: 2_ONTARIO ELECTRICITY SUPPORT PROGRAM RECIPIENTS | AA60: The application of these credits shall be in accordance with the Licence of the Distributor and any Code or Order of the Ontario Energy Board, and amendments thereto as approved by the Ontario Energy Board, which may be applicable to the administration of this schedule.
B61: In this class: | H61: 2_ONTARIO ELECTRICITY SUPPORT PROGRAM RECIPIENTS | AA61: In this class:
B62: “Aboriginal person” includes a person who is a First Nations person, a Métis person or an Inuit person; | H62: 2_ONTARIO ELECTRICITY SUPPORT PROGRAM RECIPIENTS | AA62: “Aboriginal person” includes a person who is a First Nations person, a Métis person or an Inuit person;
B63: “account-holder” means a consumer who has an account with a distributor that falls within a residential-rate classification as specified in a rate order made by the Ontario Energy Board under section 78 of the Act, and who lives at the service address to which the account relates for at least six months in a year; | H63: 2_ONTARIO ELECTRICITY SUPPORT PROGRAM RECIPIENTS | AA63: “account-holder” means a consumer who has an account with a distributor that falls within a residential-rate classification as specified in a rate order made by the Ontario Energy Board under section 78 of the Act, and who lives at the service address to which the account relates for at least six months in a year;
B64: “electricity-intensive medical device” means an oxygen concentrator, a mechanical ventilator, or such other device as may be specified by the Ontario Energy Board; | H64: 2_ONTARIO ELECTRICITY SUPPORT PROGRAM RECIPIENTS | AA64: “electricity-intensive medical device” means an oxygen concentrator, a mechanical ventilator, or such other device as may be specified by the Ontario Energy Board;
B65: “household” means the account-holder and any other people living at the accountholder’s service address for at least six months in a year, including people other than the account-holder’s spouse, children or other relatives; | H65: 2_ONTARIO ELECTRICITY SUPPORT PROGRAM RECIPIENTS | AA65: “household” means the account-holder and any other people living at the accountholder’s service address for at least six months in a year, including people other than the account-holder’s spouse, children or other relatives;
B66: “household income” means the combined annual after-tax income of all members of a household aged 16 or over; | H66: 2_ONTARIO ELECTRICITY SUPPORT PROGRAM RECIPIENTS | AA66: “household income” means the combined annual after-tax income of all members of a household aged 16 or over;
B68: MONTHLY RATES AND CHARGES | H68: 2_MRC | AA68: MONTHLY RATES AND CHARGES
B71: Class A | H71: 2_ONTARIO ELECTRICITY SUPPORT PROGRAM RECIPIENTS | AA71: Class A
B72: (a) account-holders with a household income of $28,000 or less living in a household of one or two persons; | H72: 2_ONTARIO ELECTRICITY SUPPORT PROGRAM RECIPIENTS | AA72: (a) account-holders with a household income of $28,000 or less living in a household of one or two persons;
B73: (b) account-holders with a household income of between $28,001 and $39,000 living in a household of three persons; | H73: 2_ONTARIO ELECTRICITY SUPPORT PROGRAM RECIPIENTS | AA73: (b) account-holders with a household income of between $28,001 and $39,000 living in a household of three persons;
B74: (c) account-holders with a household income of between $39,001 and $48,000 living in a household of five persons; | H74: 2_ONTARIO ELECTRICITY SUPPORT PROGRAM RECIPIENTS | AA74: (c) account-holders with a household income of between $39,001 and $48,000 living in a household of five persons;
B75: (d) account-holders with a household income of between $48,001 and $52,000 living in a household of seven or more persons; | H75: 2_ONTARIO ELECTRICITY SUPPORT PROGRAM RECIPIENTS | AA75: (d) account-holders with a household income of between $48,001 and $52,000 living in a household of seven or more persons;
B76: but does not include account-holders in Class E. | H76: 2_ONTARIO ELECTRICITY SUPPORT PROGRAM RECIPIENTS | AA76: but does not include account-holders in Class E.
B77: OESP Credit | D77: $ | E77: -30 | H77: 2_ONTARIO ELECTRICITY SUPPORT PROGRAM RECIPIENTS | I77: T | M77: 2_ONTARIO ELECTRICITY SUPPORT PROGRAM RECIPIENTS_OESP CREDIT_CLASS A | Z77: OESP Credit
B79: Class B | H79: 2_ONTARIO ELECTRICITY SUPPORT PROGRAM RECIPIENTS | AA79: Class B
B80: (a) account-holders with a household income of $28,000 or less living in a household of three persons; | H80: 2_ONTARIO ELECTRICITY SUPPORT PROGRAM RECIPIENTS | AA80: (a) account-holders with a household income of $28,000 or less living in a household of three persons;
B81: (b) account-holders with a household income of between $28,001 and $39,000 living in a household of four persons; | H81: 2_ONTARIO ELECTRICITY SUPPORT PROGRAM RECIPIENTS | AA81: (b) account-holders with a household income of between $28,001 and $39,000 living in a household of four persons;
B82: (c) account-holders with a household income of between $39,001 and $48,000 living in a household of six persons; | H82: 2_ONTARIO ELECTRICITY SUPPORT PROGRAM RECIPIENTS | AA82: (c) account-holders with a household income of between $39,001 and $48,000 living in a household of six persons;
B83: but does not include account-holders in Class F. | H83: 2_ONTARIO ELECTRICITY SUPPORT PROGRAM RECIPIENTS | AA83: but does not include account-holders in Class F.
B84: OESP Credit | D84: $ | E84: -34 | H84: 2_ONTARIO ELECTRICITY SUPPORT PROGRAM RECIPIENTS | I84: T | M84: 2_ONTARIO ELECTRICITY SUPPORT PROGRAM RECIPIENTS_OESP CREDIT_CLASS B | Z84: OESP Credit
B86: Class C | H86: 2_ONTARIO ELECTRICITY SUPPORT PROGRAM RECIPIENTS | AA86: Class C
B87: (a) account-holders with a household income of $28,000 or less living in a household of four persons; | H87: 2_ONTARIO ELECTRICITY SUPPORT PROGRAM RECIPIENTS | AA87: (a) account-holders with a household income of $28,000 or less living in a household of four persons;
B88: (b) account-holders with a household income of between $28,001 and $39,000 living in a household of five persons; | H88: 2_ONTARIO ELECTRICITY SUPPORT PROGRAM RECIPIENTS | AA88: (b) account-holders with a household income of between $28,001 and $39,000 living in a household of five persons;
B89: (c) account-holders with a household income of between $39,001 and $48,000 living in a household of seven or more persons; | H89: 2_ONTARIO ELECTRICITY SUPPORT PROGRAM RECIPIENTS | AA89: (c) account-holders with a household income of between $39,001 and $48,000 living in a household of seven or more persons;
B90: but does not include account-holders in Class G. | H90: 2_ONTARIO ELECTRICITY SUPPORT PROGRAM RECIPIENTS | AA90: but does not include account-holders in Class G.
B91: OESP Credit | D91: $ | E91: -38 | H91: 2_ONTARIO ELECTRICITY SUPPORT PROGRAM RECIPIENTS | I91: T | M91: 2_ONTARIO ELECTRICITY SUPPORT PROGRAM RECIPIENTS_OESP CREDIT_CLASS C | Z91: OESP Credit
B93: Class D | H93: 2_ONTARIO ELECTRICITY SUPPORT PROGRAM RECIPIENTS | AA93: Class D
B94: (a) account-holders with a household income of $28,000 or less living in a household of five persons; | H94: 2_ONTARIO ELECTRICITY SUPPORT PROGRAM RECIPIENTS | AA94: (a) account-holders with a household income of $28,000 or less living in a household of five persons;
B95: (b) account-holders with a household income of between $28,001 and $39,000 living in a household of six persons; | H95: 2_ONTARIO ELECTRICITY SUPPORT PROGRAM RECIPIENTS | AA95: (b) account-holders with a household income of between $28,001 and $39,000 living in a household of six persons;
B96: but does not include account-holders in Class H. | H96: 2_ONTARIO ELECTRICITY SUPPORT PROGRAM RECIPIENTS | AA96: but does not include account-holders in Class H.
B97: OESP Credit | D97: $ | E97: -42 | H97: 2_ONTARIO ELECTRICITY SUPPORT PROGRAM RECIPIENTS | I97: T | M97: 2_ONTARIO ELECTRICITY SUPPORT PROGRAM RECIPIENTS_OESP CREDIT_CLASS D | Z97: OESP Credit
B99: Class E | H99: 2_ONTARIO ELECTRICITY SUPPORT PROGRAM RECIPIENTS | AA99: Class E
B100: Class E comprises account-holders with a household income and household size described under Class A | H100: 2_ONTARIO ELECTRICITY SUPPORT PROGRAM RECIPIENTS | AA100: Class E comprises account-holders with a household income and household size described under Class A
B101: who also meet any of the following conditions: | H101: 2_ONTARIO ELECTRICITY SUPPORT PROGRAM RECIPIENTS | AA101: who also meet any of the following conditions:
B102: (a) the dwelling to which the account relates is heated primarily by electricity; | H102: 2_ONTARIO ELECTRICITY SUPPORT PROGRAM RECIPIENTS | AA102: (a) the dwelling to which the account relates is heated primarily by electricity;
B103: (b) the account-holder or any member of the account-holder’s household is an Aboriginal person; or | H103: 2_ONTARIO ELECTRICITY SUPPORT PROGRAM RECIPIENTS | AA103: (b) the account-holder or any member of the account-holder’s household is an Aboriginal person; or
B104: (c) the account-holder or any member of the account-holder’s household regularly uses, for medical purposes, | H104: 2_ONTARIO ELECTRICITY SUPPORT PROGRAM RECIPIENTS | AA104: (c) the account-holder or any member of the account-holder’s household regularly uses, for medical purposes,
B105: an electricity-intensive medical device at the dwelling to which the account relates. | H105: 2_ONTARIO ELECTRICITY SUPPORT PROGRAM RECIPIENTS | AA105: an electricity-intensive medical device at the dwelling to which the account relates.
B106: OESP Credit | D106: $ | E106: -45 | H106: 2_ONTARIO ELECTRICITY SUPPORT PROGRAM RECIPIENTS | I106: T | M106: 2_ONTARIO ELECTRICITY SUPPORT PROGRAM RECIPIENTS_OESP CREDIT_CLASS E | Z106: OESP Credit
B108: Class F | H108: 2_ONTARIO ELECTRICITY SUPPORT PROGRAM RECIPIENTS | AA108: Class F
B109: (a) account-holders with a household income of $28,000 or less living in a household of six or more persons; | H109: 2_ONTARIO ELECTRICITY SUPPORT PROGRAM RECIPIENTS | AA109: (a) account-holders with a household income of $28,000 or less living in a household of six or more persons;
B110: (b) account-holders with a household income of between $28,001 and $39,000 living in a household of seven | H110: 2_ONTARIO ELECTRICITY SUPPORT PROGRAM RECIPIENTS | AA110: (b) account-holders with a household income of between $28,001 and $39,000 living in a household of seven
B111: or more persons; or | H111: 2_ONTARIO ELECTRICITY SUPPORT PROGRAM RECIPIENTS | AA111: or more persons; or
B112: (c) account-holders with a household income and household size described under Class B who also meet any | H112: 2_ONTARIO ELECTRICITY SUPPORT PROGRAM RECIPIENTS | AA112: (c) account-holders with a household income and household size described under Class B who also meet any
B113: of the following conditions: | H113: 2_ONTARIO ELECTRICITY SUPPORT PROGRAM RECIPIENTS | AA113: of the following conditions:
B114: i. the dwelling to which the account relates is heated primarily by electricity; | H114: 2_ONTARIO ELECTRICITY SUPPORT PROGRAM RECIPIENTS | AA114: i. the dwelling to which the account relates is heated primarily by electricity;
B115: ii. the account-holder or any member of the account-holder’s household is an Aboriginal person; or | H115: 2_ONTARIO ELECTRICITY SUPPORT PROGRAM RECIPIENTS | AA115: ii. the account-holder or any member of the account-holder’s household is an Aboriginal person; or
B116: iii. the account-holder or any member of the account-holder’s household regularly uses, for medical purposes, | H116: 2_ONTARIO ELECTRICITY SUPPORT PROGRAM RECIPIENTS | AA116: iii. the account-holder or any member of the account-holder’s household regularly uses, for medical purposes,
B117: an electricity-intensive medical device at the dwelling to which the account relates. | H117: 2_ONTARIO ELECTRICITY SUPPORT PROGRAM RECIPIENTS | AA117: an electricity-intensive medical device at the dwelling to which the account relates.
B118: OESP Credit | D118: $ | E118: -50 | H118: 2_ONTARIO ELECTRICITY SUPPORT PROGRAM RECIPIENTS | I118: T | M118: 2_ONTARIO ELECTRICITY SUPPORT PROGRAM RECIPIENTS_OESP CREDIT_CLASS F | Z118: OESP Credit
B120: Class G | H120: 2_ONTARIO ELECTRICITY SUPPORT PROGRAM RECIPIENTS | AA120: Class G
B121: Class G comprises account-holders with a household income and household size described under Class C | H121: 2_ONTARIO ELECTRICITY SUPPORT PROGRAM RECIPIENTS | AA121: Class G comprises account-holders with a household income and household size described under Class C
B122: who also meet any of the following conditions: | H122: 2_ONTARIO ELECTRICITY SUPPORT PROGRAM RECIPIENTS | AA122: who also meet any of the following conditions:
B123: (a) the dwelling to which the account relates is heated primarily by electricity; | H123: 2_ONTARIO ELECTRICITY SUPPORT PROGRAM RECIPIENTS | AA123: (a) the dwelling to which the account relates is heated primarily by electricity;
B124: (b) the account-holder or any member of the account-holder’s household is an Aboriginal person; or | H124: 2_ONTARIO ELECTRICITY SUPPORT PROGRAM RECIPIENTS | AA124: (b) the account-holder or any member of the account-holder’s household is an Aboriginal person; or
B125: (c) the account-holder or any member of the account-holder’s household regularly uses, for medical purposes, | H125: 2_ONTARIO ELECTRICITY SUPPORT PROGRAM RECIPIENTS | AA125: (c) the account-holder or any member of the account-holder’s household regularly uses, for medical purposes,
B126: an electricity-intensive medical device at the dwelling to which the account relates. | H126: 2_ONTARIO ELECTRICITY SUPPORT PROGRAM RECIPIENTS | AA126: an electricity-intensive medical device at the dwelling to which the account relates.
B127: OESP Credit | D127: $ | E127: -55 | H127: 2_ONTARIO ELECTRICITY SUPPORT PROGRAM RECIPIENTS | I127: T | M127: 2_ONTARIO ELECTRICITY SUPPORT PROGRAM RECIPIENTS_OESP CREDIT_CLASS G | Z127: OESP Credit
B129: Class H | H129: 2_ONTARIO ELECTRICITY SUPPORT PROGRAM RECIPIENTS | AA129: Class H
B130: Class H comprises account-holders with a household income and household size described under Class D | H130: 2_ONTARIO ELECTRICITY SUPPORT PROGRAM RECIPIENTS | AA130: Class H comprises account-holders with a household income and household size described under Class D
B131: who also meet any of the following conditions: | H131: 2_ONTARIO ELECTRICITY SUPPORT PROGRAM RECIPIENTS | AA131: who also meet any of the following conditions:
B132: (a) the dwelling to which the account relates is heated primarily by electricity; | H132: 2_ONTARIO ELECTRICITY SUPPORT PROGRAM RECIPIENTS | AA132: (a) the dwelling to which the account relates is heated primarily by electricity;
B133: (b) the account-holder or any member of the account-holder’s household is an Aboriginal person; or | H133: 2_ONTARIO ELECTRICITY SUPPORT PROGRAM RECIPIENTS | AA133: (b) the account-holder or any member of the account-holder’s household is an Aboriginal person; or
B134: (c) the account-holder or any member of the account-holder’s household regularly uses, for medical purposes, | H134: 2_ONTARIO ELECTRICITY SUPPORT PROGRAM RECIPIENTS | AA134: (c) the account-holder or any member of the account-holder’s household regularly uses, for medical purposes,
B135: an electricity-intensive medical device at the dwelling to which the account relates. | H135: 2_ONTARIO ELECTRICITY SUPPORT PROGRAM RECIPIENTS | AA135: an electricity-intensive medical device at the dwelling to which the account relates.
B136: OESP Credit | D136: $ | E136: -60 | H136: 2_ONTARIO ELECTRICITY SUPPORT PROGRAM RECIPIENTS | I136: T | M136: 2_ONTARIO ELECTRICITY SUPPORT PROGRAM RECIPIENTS_OESP CREDIT_CLASS H | Z136: OESP Credit
B138: Class I | H138: 2_ONTARIO ELECTRICITY SUPPORT PROGRAM RECIPIENTS | AA138: Class I
B139: Class I comprises account-holders with a household income and household size described under | H139: 2_ONTARIO ELECTRICITY SUPPORT PROGRAM RECIPIENTS | AA139: Class I comprises account-holders with a household income and household size described under
B140: paragraphs (a) or (b) of Class F who also meet any of the following conditions: | H140: 2_ONTARIO ELECTRICITY SUPPORT PROGRAM RECIPIENTS | AA140: paragraphs (a) or (b) of Class F who also meet any of the following conditions:
B141: (a) the dwelling to which the account relates is heated primarily by electricity; | H141: 2_ONTARIO ELECTRICITY SUPPORT PROGRAM RECIPIENTS | AA141: (a) the dwelling to which the account relates is heated primarily by electricity;
B142: (b) the account-holder or any member of the account-holder’s household is an Aboriginal person; or | H142: 2_ONTARIO ELECTRICITY SUPPORT PROGRAM RECIPIENTS | AA142: (b) the account-holder or any member of the account-holder’s household is an Aboriginal person; or
B143: (c) the account-holder or any member of the account-holder’s household regularly uses, for medical purposes, | H143: 2_ONTARIO ELECTRICITY SUPPORT PROGRAM RECIPIENTS | AA143: (c) the account-holder or any member of the account-holder’s household regularly uses, for medical purposes,
B144: an electricity-intensive medical device at the dwelling to which the account relates. | H144: 2_ONTARIO ELECTRICITY SUPPORT PROGRAM RECIPIENTS | AA144: an electricity-intensive medical device at the dwelling to which the account relates.
B145: OESP Credit | D145: $ | E145: -75 | H145: 2_ONTARIO ELECTRICITY SUPPORT PROGRAM RECIPIENTS | I145: T | M145: 2_ONTARIO ELECTRICITY SUPPORT PROGRAM RECIPIENTS_OESP CREDIT_CLASS I | Z145: OESP Credit | AS145: X
B146: GENERAL SERVICE LESS THAN 50 KW SERVICE CLASSIFICATION | H146: 3_GENERAL SERVICE LESS THAN 50 kW SERVICE CLASSIFICATION | AA146: GENERAL SERVICE LESS THAN 50 KW SERVICE CLASSIFICATION
B147: This classification applies to a non residential account taking electricity at 750 volts or less whose average monthly maximum demand is less than, or is forecast to be less than, 50 kW. Further servicing details are available in the distributor’s Conditions of Service. | H147: 3_GENERAL SERVICE LESS THAN 50 kW SERVICE CLASSIFICATION | AA147: This classification applies to a non residential account taking electricity at 750 volts or less whose average monthly maximum demand is less than, or is forecast to be less than, 50 kW. Further servicing details are available in the distributor’s Conditions of Service.
B149: APPLICATION | H149: 3_APPLICATION | AA149: APPLICATION
B151: The application of these rates and charges shall be in accordance with the Licence of the Distributor and any Code or Order of the Ontario Energy Board, and amendments thereto as approved by the Ontario Energy Board, which may be applicable to the administration of this schedule. | H151: 3_GENERAL SERVICE LESS THAN 50 kW SERVICE CLASSIFICATION | AA151: The application of these rates and charges shall be in accordance with the Licence of the Distributor and any Code or Order of the Ontario Energy Board, and amendments thereto as approved by the Ontario Energy Board, which may be applicable to the administration of this schedule.
B153: No rates and charges for the distribution of electricity and charges to meet the costs of any work or service done or furnished for the purpose of the distribution of electricity shall be made except as permitted by this schedule, unless required by the Distributor’s Licence or a Code or Order of the Ontario Energy Board, and amendments thereto as approved by the Ontario Energy Board, or as specified herein. | H153: 3_GENERAL SERVICE LESS THAN 50 kW SERVICE CLASSIFICATION | AA153: No rates and charges for the distribution of electricity and charges to meet the costs of any work or service done or furnished for the purpose of the distribution of electricity shall be made except as permitted by this schedule, unless required by the Distributor’s Licence or a Code or Order of the Ontario Energy Board, and amendments thereto as approved by the Ontario Energy Board, or as specified herein.
B155: Unless specifically noted, this schedule does not contain any charges for the electricity commodity, be it under the Regulated Price Plan, a contract with a retailer or the wholesale market price, as applicable.In addition, the charges in the MONTHLY RATES AND CHARGES – Regulatory Component of this schedule do not apply to a customer that is an embedded wholesale market participant. | H155: 3_GENERAL SERVICE LESS THAN 50 kW SERVICE CLASSIFICATION | AA155: Unless specifically noted, this schedule does not contain any charges for the electricity commodity, be it under the Regulated Price Plan, a contract with a retailer or the wholesale market price, as applicable.In addition, the charges in the MONTHLY RATES AND CHARGES – Regulatory Component of this schedule do not apply to a customer that is an embedded wholesale market participant.
B157: It should be noted that this schedule does not list any charges, assessments or credits that are required by law to be invoiced by a distributor and that are not subject to Ontario Energy Board approval, such as the Debt Retirement Charge, the Global Adjustment and the HST. | H157: 3_GENERAL SERVICE LESS THAN 50 kW SERVICE CLASSIFICATION | AA157: It should be noted that this schedule does not list any charges, assessments or credits that are required by law to be invoiced by a distributor and that are not subject to Ontario Energy Board approval, such as the Debt Retirement Charge, the Global Adjustment and the HST.
B159: MONTHLY RATES AND CHARGES – Delivery Component | H159: 3_MRC_Del | AA159: MONTHLY RATES AND CHARGES – Delivery Component
B161: Service Charge | D161: $ | E161: 31.96 | H161: 3_GENERAL SERVICE LESS THAN 50 kW SERVICE CLASSIFICATION | I161: A | M161: 3_GENERAL SERVICE LESS THAN 50 kW SERVICE CLASSIFICATION_MSC | Z161: Service Charge
B162: Rate Rider for Smart Metering Entity Charge – effective until October 31, 2018 | D162: $ | E162: 0.79 | H162: 3_GENERAL SERVICE LESS THAN 50 kW SERVICE CLASSIFICATION | I162: B | M162: 3_GENERAL SERVICE LESS THAN 50 kW SERVICE CLASSIFICATION_SME | Q162: 2018-10-31 | Z162: Rate Rider for Smart Metering Entity Charge – effective until October 31, 2018
B163: Rate Rider for Recovery of Stranded Meter Assets – effective until December 31, 2018 | D163: $ | E163: 1.38 | H163: 3_GENERAL SERVICE LESS THAN 50 kW SERVICE CLASSIFICATION | I163: A | M163: 3_GENERAL SERVICE LESS THAN 50 kW SERVICE CLASSIFICATION_SMA | Q163: 2018-12-31 | Z163: Rate Rider for Recovery of Stranded Meter Assets – effective until December 31, 2018
B164: Distribution Volumetric Rate | D164: $/kWh | E164: 0.0159 | H164: 3_GENERAL SERVICE LESS THAN 50 kW SERVICE CLASSIFICATION | I164: A | M164: 3_GENERAL SERVICE LESS THAN 50 kW SERVICE CLASSIFICATION_DVC | Z164: Distribution Volumetric Rate
B165: Low Voltage Service Rate | D165: $/kWh | E165: 0.0002 | H165: 3_GENERAL SERVICE LESS THAN 50 kW SERVICE CLASSIFICATION | I165: B | M165: 3_GENERAL SERVICE LESS THAN 50 kW SERVICE CLASSIFICATION_LV | Z165: Low Voltage Service Rate
B166: Rate Rider for Disposition of Global Adjustment Account (2015) – effective until April 30, 2016 - Applicable only to NonRPP Customers | D166: $/kWh | E166: 0.0006 | H166: 3_GENERAL SERVICE LESS THAN 50 kW SERVICE CLASSIFICATION | I166: B | M166: 3_GENERAL SERVICE LESS THAN 50 kW SERVICE CLASSIFICATION_GA_kwh | Q166: 2016-04-30 | R166: X | Z166: Rate Rider for Disposition of Global Adjustment Account (2015) – effective until April 30, 2016 - Applicable only to NonRPP Customers
B167: Rate Rider for Disposition of Global Adjustment Account (2016) – effective until December 31, 2016 - Applicable only for Non RPP Customers | D167: $/kWh | E167: 0.0031 | H167: 3_GENERAL SERVICE LESS THAN 50 kW SERVICE CLASSIFICATION | I167: B | M167: 3_GENERAL SERVICE LESS THAN 50 kW SERVICE CLASSIFICATION_GA_kwh | Q167: 2016-12-31 | R167: X | Z167: Rate Rider for Disposition of Global Adjustment Account (2016) – effective until December 31, 2016 - Applicable only for Non RPP Customers
B168: Rate Rider for Disposition of Deferral/Variance Accounts (2015) – effective until April 30, 2016 | D168: $/kWh | E168: -0.0014 | H168: 3_GENERAL SERVICE LESS THAN 50 kW SERVICE CLASSIFICATION | I168: B | M168: 3_GENERAL SERVICE LESS THAN 50 kW SERVICE CLASSIFICATION_DEFVAR_ALL | Q168: 2016-04-30 | R168: X | Z168: Rate Rider for Disposition of Deferral/Variance Accounts (2015) – effective until April 30, 2016
B169: Rate Rider for Disposition of Deferral/Variance Accounts (2016) – effective until December 31, 2016 | D169: $/kWh | E169: 0.0017 | H169: 3_GENERAL SERVICE LESS THAN 50 kW SERVICE CLASSIFICATION | I169: B | M169: 3_GENERAL SERVICE LESS THAN 50 kW SERVICE CLASSIFICATION_DEFVAR_ALL | Q169: 2016-12-31 | R169: X | Z169: Rate Rider for Disposition of Deferral/Variance Accounts (2016) – effective until December 31, 2016
B170: Rate Rider for Disposition of Account 1576 – effective until December 31, 2016 | D170: $/kWh | E170: -0.0016 | H170: 3_GENERAL SERVICE LESS THAN 50 kW SERVICE CLASSIFICATION | I170: A | M170: 3_GENERAL SERVICE LESS THAN 50 kW SERVICE CLASSIFICATION_DEFVAR_ALL | Q170: 2016-12-31 | R170: X | Z170: Rate Rider for Disposition of Account 1576 – effective until December 31, 2016
B171: Rate Rider for Recovery of LRAM Variance Account (2016)– effective until December 31, 2016 | D171: $/kWh | E171: 0.0009 | H171: 3_GENERAL SERVICE LESS THAN 50 kW SERVICE CLASSIFICATION | I171: A | M171: 3_GENERAL SERVICE LESS THAN 50 kW SERVICE CLASSIFICATION_VR_RR_1137 | Q171: 2016-12-31 | R171: X | Z171: Rate Rider for Recovery of LRAM Variance Account (2016)– effective until December 31, 2016
B172: Rate Rider for Application of Tax Change (2015) – effective until April 30, 2016 | D172: $/kWh | E172: -5e-05 | H172: 3_GENERAL SERVICE LESS THAN 50 kW SERVICE CLASSIFICATION | I172: A | M172: 3_GENERAL SERVICE LESS THAN 50 kW SERVICE CLASSIFICATION_STS | Q172: 2016-04-30 | R172: X | Z172: Rate Rider for Application of Tax Change (2015) – effective until April 30, 2016
B173: Retail Transmission Rate – Network Service Rate | D173: $/kWh | E173: 0.0067 | H173: 3_GENERAL SERVICE LESS THAN 50 kW SERVICE CLASSIFICATION | I173: C | M173: 3_GENERAL SERVICE LESS THAN 50 kW SERVICE CLASSIFICATION_Retail Transmission Rate – Network Service Rate | Z173: Retail Transmission Rate – Network Service Rate
B174: Retail Transmission Rate – Line and Transformation Connection Service Rate | D174: $/kWh | E174: 0.0021 | H174: 3_GENERAL SERVICE LESS THAN 50 kW SERVICE CLASSIFICATION | I174: C | M174: 3_GENERAL SERVICE LESS THAN 50 kW SERVICE CLASSIFICATION_Retail Transmission Rate – Line and Transformation Connection Service Rate | Z174: Retail Transmission Rate – Line and Transformation Connection Service Rate
B176: MONTHLY RATES AND CHARGES – Regulatory Component | H176: 3_MRC_Reg | AA176: MONTHLY RATES AND CHARGES – Regulatory Component
B178: Wholesale Market Service Rate | D178: $/kWh | E178: 0.0036 | H178: 3_GENERAL SERVICE LESS THAN 50 kW SERVICE CLASSIFICATION | I178: T | M178: 3_GENERAL SERVICE LESS THAN 50 kW SERVICE CLASSIFICATION_WMSR | Z178: Wholesale Market Service Rate
B179: Rural or Remote Electricity Rate Protection Charge (RRRP) | D179: $/kWh | E179: 0.0013 | H179: 3_GENERAL SERVICE LESS THAN 50 kW SERVICE CLASSIFICATION | I179: T | M179: 3_GENERAL SERVICE LESS THAN 50 kW SERVICE CLASSIFICATION_RRRP | Z179: Rural or Remote Electricity Rate Protection Charge (RRRP)
B180: Ontario Electricity Support Program Charge (OESP) | D180: $/kWh | E180: 0.0011 | H180: 3_GENERAL SERVICE LESS THAN 50 kW SERVICE CLASSIFICATION | I180: T | M180: 3_GENERAL SERVICE LESS THAN 50 kW SERVICE CLASSIFICATION_OESPR | Z180: Ontario Electricity Support Program Charge (OESP)
B181: Standard Supply Service – Administrative Charge (if applicable) | D181: $ | E181: 0.25 | H181: 3_GENERAL SERVICE LESS THAN 50 kW SERVICE CLASSIFICATION | I181: T | M181: 3_GENERAL SERVICE LESS THAN 50 kW SERVICE CLASSIFICATION_SSS | Z181: Standard Supply Service – Administrative Charge (if applicable) | AS181: X
B182: GENERAL SERVICE 50 TO 4,999 KW SERVICE CLASSIFICATION | H182: 4_GENERAL SERVICE 50 TO 4,999 KW SERVICE CLASSIFICATION | AA182: GENERAL SERVICE 50 TO 4,999 KW SERVICE CLASSIFICATION
B183: This classification applies to a non residential account whose average monthly maximum demand used for billing purposes is equal to or greater than, or is forecast to be equal to or greater than, 50 kW but less than 5,000 kW. Further servicing details are available in the distributor’s Conditions of Service. Note that for the application of the Retail Transmission Rate – Network Service Rate and the Retail Transmission Rate –Line and Transformation Connection Service Rate the following sub-classifications apply:General Service 50 to 999 kW non-interval metered; General Service 50 to 999 kW interval metered; and General Service 1,000 to 4,999 kW interval metered. | H183: 4_GENERAL SERVICE 50 TO 4,999 KW SERVICE CLASSIFICATION | AA183: This classification applies to a non residential account whose average monthly maximum demand used for billing purposes is equal to or greater than, or is forecast to be equal to or greater than, 50 kW but less than 5,000 kW. Further servicing details are available in the distributor’s Conditions of Service. Note that for the application of the Retail Transmission Rate – Network Service Rate and the Retail Transmission Rate –Line and Transformation Connection Service Rate the following sub-classifications apply:General Service 50 to 999 kW non-interval metered; General Service 50 to 999 kW interval metered; and General Service 1,000 to 4,999 kW interval metered.
B185: APPLICATION | H185: 4_APPLICATION | AA185: APPLICATION
B187: The application of these rates and charges shall be in accordance with the Licence of the Distributor and any Code or Order of the Ontario Energy Board, and amendments thereto as approved by the Ontario Energy Board, which may be applicable to the administration of this schedule. | H187: 4_GENERAL SERVICE 50 TO 4,999 KW SERVICE CLASSIFICATION | AA187: The application of these rates and charges shall be in accordance with the Licence of the Distributor and any Code or Order of the Ontario Energy Board, and amendments thereto as approved by the Ontario Energy Board, which may be applicable to the administration of this schedule.
B189: No rates and charges for the distribution of electricity and charges to meet the costs of any work or service done or furnished for the purpose of the distribution of electricity shall be made except as permitted by this schedule, unless required by the Distributor’s Licence or a Code or Order of the Ontario Energy Board, and amendments thereto as approved by the Ontario Energy Board, or as specified herein. | H189: 4_GENERAL SERVICE 50 TO 4,999 KW SERVICE CLASSIFICATION | AA189: No rates and charges for the distribution of electricity and charges to meet the costs of any work or service done or furnished for the purpose of the distribution of electricity shall be made except as permitted by this schedule, unless required by the Distributor’s Licence or a Code or Order of the Ontario Energy Board, and amendments thereto as approved by the Ontario Energy Board, or as specified herein.
B191: Unless specifically noted, this schedule does not contain any charges for the electricity commodity, be it under the Regulated Price Plan, a contract with a retailer or the wholesale market price, as applicable.In addition, the charges in the MONTHLY RATES AND CHARGES – Regulatory Component of this schedule do not apply to a customer that is an embedded wholesale market participant. | H191: 4_GENERAL SERVICE 50 TO 4,999 KW SERVICE CLASSIFICATION | AA191: Unless specifically noted, this schedule does not contain any charges for the electricity commodity, be it under the Regulated Price Plan, a contract with a retailer or the wholesale market price, as applicable.In addition, the charges in the MONTHLY RATES AND CHARGES – Regulatory Component of this schedule do not apply to a customer that is an embedded wholesale market participant.
B193: It should be noted that this schedule does not list any charges, assessments or credits that are required by law to be invoiced by a distributor and that are not subject to Ontario Energy Board approval, such as the Debt Retirement Charge, the Global Adjustment and the HST. | H193: 4_GENERAL SERVICE 50 TO 4,999 KW SERVICE CLASSIFICATION | AA193: It should be noted that this schedule does not list any charges, assessments or credits that are required by law to be invoiced by a distributor and that are not subject to Ontario Energy Board approval, such as the Debt Retirement Charge, the Global Adjustment and the HST.
B195: MONTHLY RATES AND CHARGES – Delivery Component | H195: 4_MRC_Del | AA195: MONTHLY RATES AND CHARGES – Delivery Component
B197: Service Charge | D197: $ | E197: 119.38 | H197: 4_GENERAL SERVICE 50 TO 4,999 KW SERVICE CLASSIFICATION | I197: A | M197: 4_GENERAL SERVICE 50 TO 4,999 KW SERVICE CLASSIFICATION_MSC | Z197: Service Charge
B198: Distribution Volumetric Rate | D198: $/kW | E198: 5.0649 | H198: 4_GENERAL SERVICE 50 TO 4,999 KW SERVICE CLASSIFICATION | I198: A | M198: 4_GENERAL SERVICE 50 TO 4,999 KW SERVICE CLASSIFICATION_DVC | Z198: Distribution Volumetric Rate
B199: Low Voltage Service Rate | D199: $/kW | E199: 0.0738 | H199: 4_GENERAL SERVICE 50 TO 4,999 KW SERVICE CLASSIFICATION | I199: B | M199: 4_GENERAL SERVICE 50 TO 4,999 KW SERVICE CLASSIFICATION_LV | Z199: Low Voltage Service Rate
B200: Rate Rider for Disposition of Global Adjustment Account (2015) – effective until April 30, 2016 - Applicable only for NonRPP Customers | D200: $/kW | E200: 0.2675 | H200: 4_GENERAL SERVICE 50 TO 4,999 KW SERVICE CLASSIFICATION | I200: B | M200: 4_GENERAL SERVICE 50 TO 4,999 KW SERVICE CLASSIFICATION_GA_kw | Q200: 2016-04-30 | R200: X | Z200: Rate Rider for Disposition of Global Adjustment Account (2015) – effective until April 30, 2016 - Applicable only for NonRPP Customers
B201: Rate Rider for Disposition of Global Adjustment Account (2016) – effective until December 31, 2016 - Applicable only for Non RPP Customers | D201: $/kW | E201: 1.2659 | H201: 4_GENERAL SERVICE 50 TO 4,999 KW SERVICE CLASSIFICATION | I201: B | M201: 4_GENERAL SERVICE 50 TO 4,999 KW SERVICE CLASSIFICATION_GA_kw | Q201: 2016-12-31 | R201: X | Z201: Rate Rider for Disposition of Global Adjustment Account (2016) – effective until December 31, 2016 - Applicable only for Non RPP Customers
B202: Rate Rider for Disposition of Deferral/Variance Accounts (2015) – effective until April 30, 2016 - Applicable only for Non Wholesale Market Participants | D202: $/kW | E202: -0.6502 | H202: 4_GENERAL SERVICE 50 TO 4,999 KW SERVICE CLASSIFICATION | I202: B | M202: 4_GENERAL SERVICE 50 TO 4,999 KW SERVICE CLASSIFICATION_DEFVAR_ALL | Q202: 2016-04-30 | R202: X | Z202: Rate Rider for Disposition of Deferral/Variance Accounts (2015) – effective until April 30, 2016 - Applicable only for Non Wholesale Market Participants
B203: Rate Rider for Disposition of Deferral/Variance Accounts (2015) – effective until April 30, 2016 - Applicable only for Wholesale Market Participants | D203: $/kW | E203: -0.1945 | H203: 4_GENERAL SERVICE 50 TO 4,999 KW SERVICE CLASSIFICATION | I203: B | M203: 4_GENERAL SERVICE 50 TO 4,999 KW SERVICE CLASSIFICATION_DEFVAR_WMP | Q203: 2016-04-30 | R203: X | Z203: Rate Rider for Disposition of Deferral/Variance Accounts (2015) – effective until April 30, 2016 - Applicable only for Wholesale Market Participants
B204: Rate Rider for Disposition of Deferral/Variance Accounts (2016) – effective until December 31, 2016 - Applicable only for Non Wholesale Market Participants | D204: $/kW | E204: 0.772 | H204: 4_GENERAL SERVICE 50 TO 4,999 KW SERVICE CLASSIFICATION | I204: B | M204: 4_GENERAL SERVICE 50 TO 4,999 KW SERVICE CLASSIFICATION_DEFVAR_ALL | Q204: 2016-12-31 | R204: X | Z204: Rate Rider for Disposition of Deferral/Variance Accounts (2016) – effective until December 31, 2016 - Applicable only for Non Wholesale Market Participants
B205: Rate Rider for Disposition of Deferral/Variance Accounts (2016) – effective until December 31, 2016 - Applicable only for Wholesale Market Participants | D205: $/kW | E205: 0.1181 | H205: 4_GENERAL SERVICE 50 TO 4,999 KW SERVICE CLASSIFICATION | I205: B | M205: 4_GENERAL SERVICE 50 TO 4,999 KW SERVICE CLASSIFICATION_DEFVAR_WMP | Q205: 2016-12-31 | R205: X | Z205: Rate Rider for Disposition of Deferral/Variance Accounts (2016) – effective until December 31, 2016 - Applicable only for Wholesale Market Participants
B206: Rate Rider for Disposition of Account 1576 – effective until December 31, 2016 - Applicable only for Non Wholesale Market Participants | D206: $/kW | E206: -0.639 | H206: 4_GENERAL SERVICE 50 TO 4,999 KW SERVICE CLASSIFICATION | I206: A | M206: 4_GENERAL SERVICE 50 TO 4,999 KW SERVICE CLASSIFICATION_DEFVAR_ALL | Q206: 2016-12-31 | R206: X | Z206: Rate Rider for Disposition of Account 1576 – effective until December 31, 2016 - Applicable only for Non Wholesale Market Participants
B207: Rate Rider for Disposition of Account 1576 – effective until December 31, 2016 - Applicable only for Wholesale Market Participants | D207: $/kW | E207: -0.8496 | H207: 4_GENERAL SERVICE 50 TO 4,999 KW SERVICE CLASSIFICATION | I207: A | M207: 4_GENERAL SERVICE 50 TO 4,999 KW SERVICE CLASSIFICATION_DEFVAR_WMP | Q207: 2016-12-31 | R207: X | Z207: Rate Rider for Disposition of Account 1576 – effective until December 31, 2016 - Applicable only for Wholesale Market Participants
B208: Rate Rider for Recovery of LRAM Variance Account (2016)– effective until December 31, 2016 | D208: $/kW | E208: 0.2552 | H208: 4_GENERAL SERVICE 50 TO 4,999 KW SERVICE CLASSIFICATION | I208: A | M208: 4_GENERAL SERVICE 50 TO 4,999 KW SERVICE CLASSIFICATION_VR_RR_1147 | Q208: 2016-12-31 | R208: X | Z208: Rate Rider for Recovery of LRAM Variance Account (2016)– effective until December 31, 2016
B209: Rate Rider for Application of Tax Change (2015) – effective until April 30, 2016 | D209: $/kW | E209: -0.0099 | H209: 4_GENERAL SERVICE 50 TO 4,999 KW SERVICE CLASSIFICATION | I209: A | M209: 4_GENERAL SERVICE 50 TO 4,999 KW SERVICE CLASSIFICATION_STS | Q209: 2016-04-30 | R209: X | Z209: Rate Rider for Application of Tax Change (2015) – effective until April 30, 2016
B210: Retail Transmission Rate – Network Service Rate – (less than 1,000 kW) | D210: $/kW | E210: 2.7741 | H210: 4_GENERAL SERVICE 50 TO 4,999 KW SERVICE CLASSIFICATION | I210: C | M210: 4_GENERAL SERVICE 50 TO 4,999 KW SERVICE CLASSIFICATION_Retail Transmission Rate – Network Service Rate – (less than 1,000 kW) | Z210: Retail Transmission Rate – Network Service Rate – (less than 1,000 kW)
B211: Retail Transmission Rate – Network Service Rate – Interval Metered (less than 1,000 kW) | D211: $/kW | E211: 2.9465 | H211: 4_GENERAL SERVICE 50 TO 4,999 KW SERVICE CLASSIFICATION | I211: C | M211: 4_GENERAL SERVICE 50 TO 4,999 KW SERVICE CLASSIFICATION_Retail Transmission Rate – Network Service Rate – Interval Metered (less than 1,000 kW) | Z211: Retail Transmission Rate – Network Service Rate – Interval Metered (less than 1,000 kW)
B212: Retail Transmission Rate – Network Service Rate – Interval Metered (1,000 to 4,999 kW) | D212: $/kW | E212: 2.9427 | H212: 4_GENERAL SERVICE 50 TO 4,999 KW SERVICE CLASSIFICATION | I212: C | M212: 4_GENERAL SERVICE 50 TO 4,999 KW SERVICE CLASSIFICATION_Retail Transmission Rate – Network Service Rate – Interval Metered (1,000 to 4,999 kW) | Z212: Retail Transmission Rate – Network Service Rate – Interval Metered (1,000 to 4,999 kW)
B213: Retail Transmission Rate – Line and Transformation Connection Service Rate – (less than 1,000 kW) | D213: $/kW | E213: 0.8036 | H213: 4_GENERAL SERVICE 50 TO 4,999 KW SERVICE CLASSIFICATION | I213: C | M213: 4_GENERAL SERVICE 50 TO 4,999 KW SERVICE CLASSIFICATION_Retail Transmission Rate – Line and Transformation Connection Service Rate – (less than 1,000 kW) | Z213: Retail Transmission Rate – Line and Transformation Connection Service Rate – (less than 1,000 kW)
B214: Retail Transmission Rate – Line and Trans. Connection Service Rate – Interval Metered(less than 1,000 kW) | D214: $/kW | E214: 1.0037 | H214: 4_GENERAL SERVICE 50 TO 4,999 KW SERVICE CLASSIFICATION | I214: C | M214: 4_GENERAL SERVICE 50 TO 4,999 KW SERVICE CLASSIFICATION_Retail Transmission Rate – Line and Trans. Connection Service Rate – Interval Metered(less than 1,000 kW) | Z214: Retail Transmission Rate – Line and Trans. Connection Service Rate – Interval Metered(less than 1,000 kW)
B215: Retail Transmission Rate – Line and Trans. Connection Service Rate – Interval Metered (1,000 to 4,999 kW) | D215: $/kW | E215: 1.0026 | H215: 4_GENERAL SERVICE 50 TO 4,999 KW SERVICE CLASSIFICATION | I215: C | M215: 4_GENERAL SERVICE 50 TO 4,999 KW SERVICE CLASSIFICATION_Retail Transmission Rate – Line and Trans. Connection Service Rate – Interval Metered (1,000 to 4,999 kW) | Z215: Retail Transmission Rate – Line and Trans. Connection Service Rate – Interval Metered (1,000 to 4,999 kW)
B217: MONTHLY RATES AND CHARGES – Regulatory Component | H217: 4_MRC_Reg | AA217: MONTHLY RATES AND CHARGES – Regulatory Component
B219: Wholesale Market Service Rate | D219: $/kWh | E219: 0.0036 | H219: 4_GENERAL SERVICE 50 TO 4,999 KW SERVICE CLASSIFICATION | I219: T | M219: 4_GENERAL SERVICE 50 TO 4,999 KW SERVICE CLASSIFICATION_WMSR | Z219: Wholesale Market Service Rate
B220: Rural or Remote Electricity Rate Protection Charge (RRRP) | D220: $/kWh | E220: 0.0013 | H220: 4_GENERAL SERVICE 50 TO 4,999 KW SERVICE CLASSIFICATION | I220: T | M220: 4_GENERAL SERVICE 50 TO 4,999 KW SERVICE CLASSIFICATION_RRRP | Z220: Rural or Remote Electricity Rate Protection Charge (RRRP)
B221: Ontario Electricity Support Program Charge (OESP) | D221: $/kWh | E221: 0.0011 | H221: 4_GENERAL SERVICE 50 TO 4,999 KW SERVICE CLASSIFICATION | I221: T | M221: 4_GENERAL SERVICE 50 TO 4,999 KW SERVICE CLASSIFICATION_OESPR | Z221: Ontario Electricity Support Program Charge (OESP)
B222: Standard Supply Service – Administrative Charge (if applicable) | D222: $ | E222: 0.25 | H222: 4_GENERAL SERVICE 50 TO 4,999 KW SERVICE CLASSIFICATION | I222: T | M222: 4_GENERAL SERVICE 50 TO 4,999 KW SERVICE CLASSIFICATION_SSS | Z222: Standard Supply Service – Administrative Charge (if applicable) | AS222: X
B223: LARGE USE SERVICE CLASSIFICATION | H223: 5_LARGE USE SERVICE CLASSIFICATION | AA223: LARGE USE SERVICE CLASSIFICATION
B224: This classification applies to an account whose average monthly maximum demand used for billing purposes is equal to or greater than, or is forecast to be equal to or greater than, 5,000 kW. Further servicing details are available in the distributor’s Conditions of Service. | H224: 5_LARGE USE SERVICE CLASSIFICATION | AA224: This classification applies to an account whose average monthly maximum demand used for billing purposes is equal to or greater than, or is forecast to be equal to or greater than, 5,000 kW. Further servicing details are available in the distributor’s Conditions of Service.
B226: APPLICATION | H226: 5_APPLICATION | AA226: APPLICATION
B228: The application of these rates and charges shall be in accordance with the Licence of the Distributor and any Code or Order of the Ontario Energy Board, and amendments thereto as approved by the Ontario Energy Board, which may be applicable to the administration of this schedule. | H228: 5_LARGE USE SERVICE CLASSIFICATION | AA228: The application of these rates and charges shall be in accordance with the Licence of the Distributor and any Code or Order of the Ontario Energy Board, and amendments thereto as approved by the Ontario Energy Board, which may be applicable to the administration of this schedule.
B230: No rates and charges for the distribution of electricity and charges to meet the costs of any work or service done or furnished for the purpose of the distribution of electricity shall be made except as permitted by this schedule, unless required by the Distributor’s Licence or a Code or Order of the Ontario Energy Board, and amendments thereto as approved by the Ontario Energy Board, or as specified herein. | H230: 5_LARGE USE SERVICE CLASSIFICATION | AA230: No rates and charges for the distribution of electricity and charges to meet the costs of any work or service done or furnished for the purpose of the distribution of electricity shall be made except as permitted by this schedule, unless required by the Distributor’s Licence or a Code or Order of the Ontario Energy Board, and amendments thereto as approved by the Ontario Energy Board, or as specified herein.
B232: Unless specifically noted, this schedule does not contain any charges for the electricity commodity, be it under the Regulated Price Plan, a contract with a retailer or the wholesale market price, as applicable.In addition, the charges in the MONTHLY RATES AND CHARGES – Regulatory Component of this schedule do not apply to a customer that is an embedded wholesale market participant. | H232: 5_LARGE USE SERVICE CLASSIFICATION | AA232: Unless specifically noted, this schedule does not contain any charges for the electricity commodity, be it under the Regulated Price Plan, a contract with a retailer or the wholesale market price, as applicable.In addition, the charges in the MONTHLY RATES AND CHARGES – Regulatory Component of this schedule do not apply to a customer that is an embedded wholesale market participant.
B234: It should be noted that this schedule does not list any charges, assessments or credits that are required by law to be invoiced by a distributor and that are not subject to Ontario Energy Board approval, such as the Debt Retirement Charge, the Global Adjustment and the HST. | H234: 5_LARGE USE SERVICE CLASSIFICATION | AA234: It should be noted that this schedule does not list any charges, assessments or credits that are required by law to be invoiced by a distributor and that are not subject to Ontario Energy Board approval, such as the Debt Retirement Charge, the Global Adjustment and the HST.
B236: MONTHLY RATES AND CHARGES – Delivery Component | H236: 5_MRC_Del | AA236: MONTHLY RATES AND CHARGES – Delivery Component
B238: Service Charge | D238: $ | E238: 6975.72 | H238: 5_LARGE USE SERVICE CLASSIFICATION | I238: A | M238: 5_LARGE USE SERVICE CLASSIFICATION_MSC | Z238: Service Charge
B239: Distribution Volumetric Rate | D239: $/kW | E239: 4.0196 | H239: 5_LARGE USE SERVICE CLASSIFICATION | I239: A | M239: 5_LARGE USE SERVICE CLASSIFICATION_DVC | Z239: Distribution Volumetric Rate
B240: Low Voltage Service Rate | D240: $/kW | E240: 0.0925 | H240: 5_LARGE USE SERVICE CLASSIFICATION | I240: B | M240: 5_LARGE USE SERVICE CLASSIFICATION_LV | Z240: Low Voltage Service Rate
B241: Rate Rider for Disposition of Deferral/Variance Accounts (2015) – effective until April 30, 2016 | D241: $/kW | E241: -0.7541 | H241: 5_LARGE USE SERVICE CLASSIFICATION | I241: B | M241: 5_LARGE USE SERVICE CLASSIFICATION_DEFVAR_ALL | Q241: 2016-04-30 | R241: X | Z241: Rate Rider for Disposition of Deferral/Variance Accounts (2015) – effective until April 30, 2016
B242: Rate Rider for Disposition of Deferral/Variance Accounts (2016) – effective until December 31, 2016 | D242: $/kW | E242: 1.0507 | H242: 5_LARGE USE SERVICE CLASSIFICATION | I242: B | M242: 5_LARGE USE SERVICE CLASSIFICATION_DEFVAR_ALL | Q242: 2016-12-31 | R242: X | Z242: Rate Rider for Disposition of Deferral/Variance Accounts (2016) – effective until December 31, 2016
B243: Rate Rider for Disposition of Account 1576 – effective until December 31, 2016 | D243: $/kW | E243: -0.8606 | H243: 5_LARGE USE SERVICE CLASSIFICATION | I243: A | M243: 5_LARGE USE SERVICE CLASSIFICATION_DEFVAR_ALL | Q243: 2016-12-31 | R243: X | Z243: Rate Rider for Disposition of Account 1576 – effective until December 31, 2016
B244: Rate Rider for Recovery of LRAM Variance Account (2016)– effective until December 31, 2016 | D244: $/kW | E244: 0.2023 | H244: 5_LARGE USE SERVICE CLASSIFICATION | I244: A | M244: 5_LARGE USE SERVICE CLASSIFICATION_VR_RR_1152 | Q244: 2016-12-31 | R244: X | Z244: Rate Rider for Recovery of LRAM Variance Account (2016)– effective until December 31, 2016
B245: Rate Rider for Application of Tax Change (2015) – effective until April 30, 2016 | D245: $/kW | E245: -0.0072 | H245: 5_LARGE USE SERVICE CLASSIFICATION | I245: A | M245: 5_LARGE USE SERVICE CLASSIFICATION_STS | Q245: 2016-04-30 | R245: X | Z245: Rate Rider for Application of Tax Change (2015) – effective until April 30, 2016
B246: Retail Transmission Rate – Network Service Rate – Interval Metered | D246: $/kW | E246: 3.2624 | H246: 5_LARGE USE SERVICE CLASSIFICATION | I246: C | M246: 5_LARGE USE SERVICE CLASSIFICATION_Retail Transmission Rate – Network Service Rate – Interval Metered | Z246: Retail Transmission Rate – Network Service Rate – Interval Metered
B247: Retail Transmission Rate – Line and Transformation Connection Service Rate – Interval Metered | D247: $/kW | E247: 1.0072 | H247: 5_LARGE USE SERVICE CLASSIFICATION | I247: C | M247: 5_LARGE USE SERVICE CLASSIFICATION_Retail Transmission Rate – Line and Transformation Connection Service Rate – Interval Metered | Z247: Retail Transmission Rate – Line and Transformation Connection Service Rate – Interval Metered
B249: MONTHLY RATES AND CHARGES – Regulatory Component | H249: 5_MRC_Reg | AA249: MONTHLY RATES AND CHARGES – Regulatory Component
B251: Wholesale Market Service Rate | D251: $/kWh | E251: 0.0036 | H251: 5_LARGE USE SERVICE CLASSIFICATION | I251: T | M251: 5_LARGE USE SERVICE CLASSIFICATION_WMSR | Z251: Wholesale Market Service Rate
B252: Rural or Remote Electricity Rate Protection Charge (RRRP) | D252: $/kWh | E252: 0.0013 | H252: 5_LARGE USE SERVICE CLASSIFICATION | I252: T | M252: 5_LARGE USE SERVICE CLASSIFICATION_RRRP | Z252: Rural or Remote Electricity Rate Protection Charge (RRRP)
B253: Ontario Electricity Support Program Charge (OESP) | D253: $/kWh | E253: 0.0011 | H253: 5_LARGE USE SERVICE CLASSIFICATION | I253: T | M253: 5_LARGE USE SERVICE CLASSIFICATION_OESPR | Z253: Ontario Electricity Support Program Charge (OESP)
B254: Standard Supply Service – Administrative Charge (if applicable) | D254: $ | E254: 0.25 | H254: 5_LARGE USE SERVICE CLASSIFICATION | I254: T | M254: 5_LARGE USE SERVICE CLASSIFICATION_SSS | Z254: Standard Supply Service – Administrative Charge (if applicable) | AS254: X
B255: UNMETERED SCATTERED LOAD SERVICE CLASSIFICATION | H255: 6_UNMETERED SCATTERED LOAD SERVICE CLASSIFICATION | AA255: UNMETERED SCATTERED LOAD SERVICE CLASSIFICATION
B256: This classification applies to an account taking electricity at 750 volts or less whose average monthly maximum demand is less than, or is forecast to be less than, 50 kW and the consumption is unmetered. Such connections include cable TV power packs, bus shelters, telephone booths, traffic lights, railway crossings, etc. The level of the consumption will be agreed to by the distributor and the customer, based on detailed manufacturer information/ documentation with regard to electrical consumption of the unmetered load or periodic monitoring of actual consumption. Further servicing details are available in the distributor’s Conditions of Service. | H256: 6_UNMETERED SCATTERED LOAD SERVICE CLASSIFICATION | AA256: This classification applies to an account taking electricity at 750 volts or less whose average monthly maximum demand is less than, or is forecast to be less than, 50 kW and the consumption is unmetered. Such connections include cable TV power packs, bus shelters, telephone booths, traffic lights, railway crossings, etc. The level of the consumption will be agreed to by the distributor and the customer, based on detailed manufacturer information/ documentation with regard to electrical consumption of the unmetered load or periodic monitoring of actual consumption. Further servicing details are available in the distributor’s Conditions of Service.
B258: APPLICATION | H258: 6_APPLICATION | AA258: APPLICATION
B260: The application of these rates and charges shall be in accordance with the Licence of the Distributor and any Code or Order of the Ontario Energy Board, and amendments thereto as approved by the Ontario Energy Board, which may be applicable to the administration of this schedule. | H260: 6_UNMETERED SCATTERED LOAD SERVICE CLASSIFICATION | AA260: The application of these rates and charges shall be in accordance with the Licence of the Distributor and any Code or Order of the Ontario Energy Board, and amendments thereto as approved by the Ontario Energy Board, which may be applicable to the administration of this schedule.
... 123 more rows

Sheet 3. Continuity Schedule
CA1: FALSE
C2: TRUE | CA2: FALSE
CA3: TRUE
CA4: FALSE
CA5: FALSE
CA6: TRUE
CA7: FALSE
CA8: FALSE
CA9: FALSE
CA10: TRUE
CA11: TRUE
C12: Please complete the following continuity schedule for the following Deferral/Variance Accounts. Enter information into green cells only. Column BU has been prepopulated from the latest 2.1.7 RRR filing. When inputting balances in the continuity schedule, Account 1580 RSVA - Wholesale Market Service Charge is to exclude any amounts relating to CBR. The CBR amounts are to be entered separately in the Class A and Class B 1580 sub-accounts. Only Class B amounts are to be disposed. Class A amounts are not to be disposed. If you have received approval to dispose of balances from prior years, the starting point for entries in the schedule below will be the balance sheet date as per your general ledger for which you received approval. For example, if in the 2016 EDR process (CoS or IRM) you received approval for the December 31, 2014 balances, the starting point for your entries below should be the 2013 year. This will allow for the correct starting point for the 2014 opening balance columns for both principal and interest. Please refer to the footnotes for further instructions.
E16: 2010 | O16: 2011 | Y16: 2012 | AI16: 2013 | AS16: 2014 | BC16: 2015 | BM16: 2016 | BQ16: Projected Interest on Dec-31-15 Balances | BU16: 2.1.7 RRR
C17: Account Descriptions | D17: Account Number | E17: Opening Principal Amounts as of Jan 1, 2010 | F17: Transactions2 Debit / (Credit) during 2010 | G17: OEB-Approved Disposition during 2010 | H17: Principal Adjustments1 during 2010 | I17: Closing Principal Balance as of Dec 31, 2010 | J17: Opening Interest Amounts as of Jan 1, 2010 | K17: Interest Jan 1 to Dec 31, 2010 | L17: OEB-Approved Disposition during 2010 | M17: Interest Adjustments1 during 2010 | N17: Closing Interest Amounts as of Dec 31, 2011 | O17: Opening Principal Amounts as of Jan 1, 2011 | P17: Transactions2 Debit / (Credit) during 2011 | Q17: OEB-Approved Disposition during 2011 | R17: Principal Adjustments1 during 2011 | S17: Closing Principal Balance as of Dec 31, 2011 | T17: Opening Interest Amounts as of Jan 1, 2011 | U17: Interest Jan 1 to Dec 31, 2011 | V17: OEB-Approved Disposition during 2011 | W17: Interest Adjustments1 during 2011 | X17: Closing Interest Amounts as of Dec 31, 2011 | Y17: Opening Principal Amounts as of Jan 1, 2012 | Z17: Transactions2 Debit / (Credit) during 2012 | AA17: OEB-Approved Disposition during 2012 | AB17: Principal Adjustments1 during 2012 | AC17: Closing Principal Balance as of Dec 31, 2012 | AD17: Opening Interest Amounts as of Jan 1, 2012 | AE17: Interest Jan 1 to Dec 31, 2012 | AF17: OEB-Approved Disposition during 2012 | AG17: Interest Adjustments1 during 2012 | AH17: Closing Interest Amounts as of Dec 31, 2012 | AI17: Opening Principal Amounts as of Jan 1, 2013 | AJ17: Transactions2 Debit / (Credit) during 2013 | AK17: OEB-Approved Disposition during 2013 | AL17: Principal Adjustments1 during 2013 | AM17: Closing Principal Balance as of Dec 31, 2013 | AN17: Opening Interest Amounts as of Jan 1, 2013 | AO17: Interest Jan 1 to Dec 31, 2013 | AP17: OEB-Approved Disposition during 2013 | AQ17: Interest Adjustments1 during 2013 | AR17: Closing Interest Amounts as of Dec 31, 2013 | AS17: Opening Principal Amounts as of Jan 1, 2014 | AT17: Transactions2 Debit / (Credit) during 2014 | AU17: OEB-Approved Disposition during 2014 | AV17: Principal Adjustments1 during 2014 | AW17: Closing Principal Balance as of Dec 31, 2014 | AX17: Opening Interest Amounts as of Jan 1, 2014 | AY17: Interest Jan 1 to Dec 31. 2014 | AZ17: OEB-Approved Disposition during 2014 | BA17: Interest Adjustments1 during 2014 | BB17: Closing Interest Amounts as of Dec 31, 2014 | BC17: Opening Principal Amounts as of Jan 1, 2015 | BD17: Transactions2 Debit / (Credit) during 2015 | BE17: OEB-Approved Disposition during 2015 | BF17: Principal Adjustments1 during 2015 | BG17: Closing Principal Balance as of Dec 31, 15 | BH17: Opening Interest Amounts as of Jan 1, 15 | BI17: Interest Jan 1 to Dec 31, 15 | BJ17: OEB-Approved Disposition during 2015 | BK17: Interest Adjustments1 during 2015 | BL17: Closing Interest Amounts as of Dec 31, 15 | BM17: Principal Disposition during 2016 - instructed by OEB | BN17: Interest Disposition during 2016 - instructed by OEB | BO17: Closing Principal Balances as of Dec 31, 2016 Adjusted for Dispositions during 2016 | BP17: Closing Interest Balances as of Dec 31, 15 Adjusted for Disposition in 2016 | BQ17: Projected Interest from Jan 1, 2016 to December 31, 2016 on Dec 31 -15 balance adjusted for disposition during 2016 3 | BR17: Projected Interest from January 1, 2017 to April 30, 2017 on Dec 31 -15 balance adjusted for disposition during 2016 3 | BS17: Total Interest | BT17: Total Claim | BU17: As of Dec 31-15 | BV17: Variance RRR vs. 2015 Balance (Principal + Interest)
BT19: Claim before Forecasted Transactions
C20: Group 1 Accounts
C21: LV Variance Account | D21: 1550 | I21: =E21+F21-G21+H21 -> 0 | N21: =J21+K21-L21+M21 -> 0 | O21: =I21 -> 0 | S21: =O21+P21-Q21+SUM(R21:R21) -> 0 | T21: =N21 -> 0 | X21: =T21+U21-V21+W21 -> 0 | Y21: =S21 -> 0 | AC21: =Y21+Z21-AA21+SUM(AB21:AB21) -> 0 | AD21: =X21 -> 0 | AH21: =AD21+AE21-AF21+AG21 -> 0 | AI21: =AC21 -> 0 | AL21: 101650 | AM21: =AI21+AJ21-AK21+SUM(AL21:AL21) -> 101650 | AN21: =AH21 -> 0 | AO21: 562 | AQ21: 1992 | AR21: =AN21+AO21-AP21+AQ21 -> 2554 | AS21: =AM21 -> 101650 | AT21: 99111 | AW21: =AS21+AT21-AU21+SUM(AV21:AV21) -> 200761 | AX21: =AR21 -> 2554 | AY21: 843 | BB21: =AX21+AY21-AZ21+BA21 -> 3397 | BC21: =AW21 -> 200761 | BD21: 107063 | BE21: 101650 | BG21: =BC21+BD21-BE21+SUM(BF21:BF21) -> 206174 | BH21: =BB21 -> 3397 | BI21: 1182 | BJ21: 2554 | BK21: 157 | BL21: =BH21+BI21-BJ21+BK21 -> 2182 | BM21: 99111 | BN21: 2025 | BO21: =BG21-BM21 -> 107063 | BP21: =BL21-BN21 -> 157 | BQ21: 1178 | BS21: =BP21+BQ21+BR21 -> 1335 | BT21: =SUM(BO21:BR21) -> 108398 | BU21: 208356 | BV21: =BU21-SUM(BG21,BL21) -> 0
C22: Smart Metering Entity Charge Variance Account | D22: 1551 | I22: =E22+F22-G22+H22 -> 0 | N22: =J22+K22-L22+M22 -> 0 | O22: =I22 -> 0 | S22: 0 | T22: 0 | X22: =T22+U22-V22+W22 -> 0 | Y22: 0 | AC22: =Y22+Z22-AA22+SUM(AB22:AB22) -> 0 | AD22: =X22 -> 0 | AH22: =AD22+AE22-AF22+AG22 -> 0 | AI22: 0 | AL22: 32301 | AM22: 32301 | AN22: 0 | AO22: 314 | AQ22: 633 | AR22: =AN22+AO22-AP22+AQ22 -> 947 | AS22: 32301 | AT22: -10038 | AW22: 22263 | AX22: 947 | AY22: -63 | BB22: =AX22+AY22-AZ22+BA22 -> 884 | BC22: 22263 | BD22: -9044 | BE22: 32301 | BG22: -19082 | BH22: 884 | BI22: -120 | BJ22: 947 | BK22: 48 | BL22: =BH22+BI22-BJ22+BK22 -> -135 | BM22: -10038 | BN22: -183 | BO22: =BG22-BM22 -> -9044 | BP22: =BL22-BN22 -> 48 | BQ22: -99 | BS22: =BP22+BQ22+BR22 -> -51 | BT22: =SUM(BO22:BR22) -> -9095 | BU22: -19217 | BV22: =BU22-SUM(BG22,BL22) -> 0
C23: RSVA - Wholesale Market Service Charge | D23: 1580 | I23: =E23+F23-G23+H23 -> 0 | N23: =J23+K23-L23+M23 -> 0 | O23: =I23 -> 0 | S23: 0 | T23: 0 | X23: =T23+U23-V23+W23 -> 0 | Y23: 0 | AC23: =Y23+Z23-AA23+SUM(AB23:AB23) -> 0 | AD23: 0 | AH23: =AD23+AE23-AF23+AG23 -> 0 | AI23: 0 | AL23: -926113 | AM23: -926113 | AN23: 0 | AO23: -9907 | AQ23: -18152 | AR23: =AN23+AO23-AP23+AQ23 -> -28059 | AS23: -926113 | AT23: -177404 | AW23: -1103517 | AX23: -28059 | AY23: 9862 | BB23: =AX23+AY23-AZ23+BA23 -> -18197 | BC23: -1103517 | BD23: =-3181162-19916 -> -3201078 | BE23: -926113 | BG23: -3378482 | BH23: -18197 | BI23: =-2116-1208-66 -> -3390 | BJ23: -28059 | BK23: -9365 | BL23: =BH23+BI23-BJ23+BK23 -> -2893 | BM23: -177404 | BN23: 7746 | BO23: -3201078 | BP23: -10639 | BQ23: -35212 | BS23: -45851 | BT23: =SUM(BO23:BR23) -> -3246929 | BU23: -2991594 | BV23: =BU23-SUM(BG23,BL23) -> 389781
C24: Variance WMS – Sub-account CBR Class A | D24: 1580 | I24: 0 | N24: 0 | O24: 0 | S24: 0 | T24: 0 | X24: 0 | Y24: 0 | AC24: 0 | AD24: 0 | AH24: 0 | AI24: 0 | AM24: 0 | AN24: 0 | AR24: 0 | AS24: 0 | AW24: 0 | AX24: 0 | BB24: 0 | BC24: 0 | BD24: 19916 | BG24: =BC24+BD24-BE24+SUM(BF24:BF24) -> 19916 | BH24: 0 | BI24: 66 | BL24: 66 | BO24: 19916 | BP24: 66 | BQ24: 219 | BS24: 285 | BT24: =IF(CA5=TRUE, 0, 0) -> 0 | BU24: 0 | BV24: =BU24-SUM(BG24,BL24) -> -19982
C25: Variance WMS – Sub-account CBR Class B | D25: 1580 | I25: 0 | N25: 0 | O25: 0 | S25: 0 | T25: 0 | X25: 0 | Y25: 0 | AC25: 0 | AD25: 0 | AH25: 0 | AI25: 0 | AM25: 0 | AN25: 0 | AR25: 0 | AS25: 0 | AW25: 0 | AX25: 0 | BB25: 0 | BC25: 0 | BD25: 368591 | BG25: 368591 | BH25: 0 | BI25: 1206 | BL25: 1206 | BO25: 368591 | BP25: 1206 | BQ25: 4055 | BS25: 5261 | BT25: =IF(CA6=TRUE, SUM(BO25:BR25), 0) -> 373852 | BU25: 0 | BV25: =BU25-SUM(BG25,BL25) -> -369797
C26: RSVA - Retail Transmission Network Charge | D26: 1584 | I26: 0 | N26: 0 | O26: 0 | S26: 0 | T26: 0 | X26: 0 | Y26: 0 | AC26: 0 | AD26: 0 | AH26: 0 | AI26: 0 | AL26: -422798 | AM26: -422798 | AN26: 0 | AO26: -2708 | AQ26: -8287 | AR26: -10995 | AS26: -422798 | AT26: -251888 | AW26: -674686 | AX26: -10995 | AY26: -2634 | BB26: -13629 | BC26: -674686 | BD26: -410700 | BE26: -422798 | BG26: -662588 | BH26: -13629 | BI26: -3004 | BJ26: -10994 | BK26: -2548 | BL26: -8187 | BM26: -251888 | BN26: -5639 | BO26: -410700 | BP26: -2548 | BQ26: -4518 | BS26: -7066 | BT26: =SUM(BO26:BR26) -> -417766 | BU26: -670775 | BV26: =BU26-SUM(BG26,BL26) -> 0
C27: RSVA - Retail Transmission Connection Charge | D27: 1586 | I27: 0 | N27: 0 | O27: 0 | S27: 0 | T27: 0 | X27: 0 | Y27: 0 | AC27: 0 | AD27: 0 | AH27: 0 | AI27: 0 | AL27: -267572 | AM27: -267572 | AN27: 0 | AO27: -2098 | AQ27: -5244 | AR27: -7342 | AS27: -267572 | AT27: -33234 | AW27: -300806 | AX27: -7342 | AY27: -121 | BB27: -7463 | BC27: -300806 | BD27: -70449 | BE27: -267572 | BG27: -103683 | BH27: -7463 | BI27: -396 | BJ27: -7342 | BK27: -175 | BL27: -692 | BM27: -33234 | BN27: -517 | BO27: -70449 | BP27: -175 | BQ27: -775 | BS27: -950 | BT27: =SUM(BO27:BR27) -> -71399 | BU27: -104375 | BV27: 0
C28: RSVA - Power | D28: 1588 | I28: 0 | N28: 0 | O28: 0 | S28: 0 | T28: 0 | X28: 0 | Y28: 0 | AC28: 0 | AD28: 0 | AH28: 0 | AI28: 0 | AL28: -462831 | AM28: -462831 | AN28: 0 | AO28: 595 | AQ28: -9071 | AR28: -8476 | AS28: -462831 | AT28: 1040210 | AW28: 577379 | AX28: -8476 | AY28: 3907 | BB28: -4569 | BC28: 577379 | BD28: -1145965 | BE28: -462831 | BG28: -105755 | BH28: -4569 | BI28: 12405 | BJ28: -8477 | BK28: -8918 | BL28: 7395 | BM28: 1040210 | BN28: 16313 | BO28: -1145965 | BP28: -8918 | BQ28: -12606 | BS28: -21524 | BT28: =SUM(BO28:BR28) -> -1167489 | BU28: -98360 | BV28: 0
C29: RSVA - Global Adjustment | D29: 1589 | I29: 0 | N29: 0 | O29: 0 | S29: 0 | T29: 0 | X29: 0 | Y29: 0 | AC29: 0 | AD29: 0 | AH29: 0 | AI29: 0 | AL29: 430530 | AM29: 430530 | AN29: 0 | AO29: 17178 | AQ29: 8438 | AR29: 25616 | AS29: 430530 | AT29: 2293411 | AW29: 2723941 | AX29: 25616 | AY29: 13175 | BB29: 38791 | BC29: 2723941 | BD29: 1654466 | BE29: 430530 | BG29: 3947877 | BH29: 38791 | BI29: 27349 | BJ29: 25616 | BK29: 16947 | BL29: 57471 | BM29: 2293411 | BN29: 40524 | BO29: 1654466 | BP29: 16947 | BQ29: 18199 | BS29: 35146 | BT29: =SUM(BO29:BR29) -> 1689612 | BU29: 4005348 | BV29: 0
C30: Disposition and Recovery/Refund of Regulatory Balances (2009)4 | D30: 1595 | I30: 0 | N30: 0 | O30: 0 | S30: 0 | T30: 0 | X30: 0 | Y30: 0 | AC30: 0 | AD30: 0 | AH30: 0 | AI30: 0 | AM30: 0 | AN30: 0 | AR30: 0 | AS30: 0 | AW30: 0 | AX30: 0 | BB30: 0 | BC30: 0 | BG30: 0 | BH30: 0 | BL30: 0 | BO30: 0 | BP30: 0 | BS30: 0 | BT30: =IF(CA7=TRUE, SUM(BO30:BR30), 0) -> 0 | BU30: 0 | BV30: 0
C31: Disposition and Recovery/Refund of Regulatory Balances (2010)4 | D31: 1595 | I31: 0 | N31: 0 | O31: 0 | S31: 0 | T31: 0 | X31: 0 | Y31: 0 | AC31: 0 | AD31: 0 | AH31: 0 | AI31: 0 | AJ31: 3685142 | AL31: -2639290 | AM31: 1045852 | AN31: 0 | AO31: -13949 | AQ31: -1473307 | AR31: -1487256 | AS31: 1045852 | AT31: 1239998 | AW31: 2285850 | AX31: -1487256 | AY31: 30133 | BB31: -1457123 | BC31: 2285850 | BD31: 839 | BG31: 2286689 | BH31: -1457123 | BI31: 27259 | BK31: 6512 | BL31: -1423352 | BM31: 2285850 | BN31: -1429864 | BO31: 839 | BP31: 6512 | BS31: 6512 | BT31: =IF(CA8=TRUE, SUM(BO31:BR31), 0) -> 0 | BU31: 863337 | BV31: 0
C32: Disposition and Recovery/Refund of Regulatory Balances (2011)4 | D32: 1595 | I32: 0 | N32: 0 | O32: 0 | S32: =O32+P32-Q32+SUM(R32:R32) -> 0 | T32: 0 | X32: 0 | Y32: 0 | AC32: =Y32+Z32-AA32+SUM(AB32:AB32) -> 0 | AD32: =X32 -> 0 | AH32: 0 | AI32: 0 | AJ32: -412337 | AL32: 475467 | AM32: 63130 | AN32: 0 | AO32: 4248 | AQ32: 147809 | AR32: 152057 | AS32: 63130 | AT32: -128124 | AW32: -64994 | AX32: 152057 | AY32: -563 | BB32: 151494 | BC32: -64994 | BD32: -221 | BG32: -65215 | BH32: 151494 | BI32: -775 | BK32: -175 | BL32: 150544 | BM32: -64994 | BN32: 150719 | BO32: -221 | BP32: -175 | BS32: -175 | BT32: =IF(CA9=TRUE, SUM(BO32:BR32), 0) -> 0 | BU32: 85329 | BV32: 0
C33: Disposition and Recovery/Refund of Regulatory Balances (2012)4 | D33: 1595 | I33: 0 | N33: 0 | O33: 0 | S33: =O33+P33-Q33+SUM(R33:R33) -> 0 | T33: 0 | X33: 0 | Y33: 0 | AC33: =Y33+Z33-AA33+SUM(AB33:AB33) -> 0 | AD33: =X33 -> 0 | AH33: 0 | AI33: 0 | AJ33: 2598269 | AL33: -2839365 | AM33: -241096 | AN33: 0 | AO33: -24247 | AQ33: -225225 | AR33: -249472 | AS33: -241096 | AT33: 866995 | AW33: 625899 | AX33: -249472 | AY33: 6814 | BB33: -242658 | BC33: 625899 | BD33: 684 | BG33: 626583 | BH33: -242658 | BI33: 7464 | BK33: 1745 | BL33: -233449 | BM33: 625899 | BN33: -235194 | BO33: 684 | BP33: 1745 | BS33: 1745 | BT33: =IF(CA1=TRUE, SUM(BO33:BR33), 0) -> 0 | BU33: 393134 | BV33: 0
C34: Disposition and Recovery/Refund of Regulatory Balances (2013)4 | D34: 1595 | I34: 0 | N34: 0 | O34: 0 | S34: =O34+P34-Q34+SUM(R34:R34) -> 0 | T34: 0 | X34: 0 | Y34: 0 | AC34: =Y34+Z34-AA34+SUM(AB34:AB34) -> 0 | AD34: =X34 -> 0 | AH34: 0 | AI34: 0 | AJ34: 1355619 | AL34: -1824804 | AM34: -469185 | AN34: 0 | AO34: -12222 | AQ34: -45811 | AR34: -58033 | AS34: -469185 | AT34: 737214 | AW34: 268029 | AX34: -58033 | AY34: 1579 | BB34: -56454 | BC34: 268029 | BD34: 1337 | BG34: 269366 | BH34: -56454 | BI34: 3196 | BK34: 749 | BL34: -52509 | BM34: 268029 | BN34: -53258 | BO34: 1337 | BP34: 749 | BS34: 749 | BT34: =IF(CA2=TRUE, SUM(BO34:BR34), 0) -> 0 | BU34: 216857 | BV34: 0
C35: Disposition and Recovery/Refund of Regulatory Balances (2014)4 | D35: 1595 | I35: 0 | N35: 0 | O35: 0 | S35: =O35+P35-Q35+SUM(R35:R35) -> 0 | T35: 0 | X35: 0 | Y35: 0 | AC35: =Y35+Z35-AA35+SUM(AB35:AB35) -> 0 | AD35: =X35 -> 0 | AH35: 0 | AI35: 0 | AM35: 0 | AN35: 0 | AR35: 0 | AS35: 0 | AV35: -696114 | AW35: -696114 | AX35: 0 | BA35: -90389 | BB35: -90389 | BC35: -696114 | BD35: 925335 | BG35: 229221 | BH35: -90389 | BI35: 1144 | BL35: -89245 | BO35: 229221 | BP35: -89245 | BQ35: 2521 | BS35: -86724 | BT35: =IF(CA3=TRUE, SUM(BO35:BR35), 0) -> 142497 | BU35: 139976 | BV35: 0
C36: Disposition and Recovery/Refund of Regulatory Balances (2015)4 Not to be disposed of unless rate rider has expired and balance has been audited | D36: 1595 | I36: 0 | N36: 0 | O36: 0 | S36: =O36+P36-Q36+SUM(R36:R36) -> 0 | T36: 0 | X36: 0 | Y36: 0 | AC36: =Y36+Z36-AA36+SUM(AB36:AB36) -> 0 | AD36: =X36 -> 0 | AH36: 0 | AI36: 0 | AM36: 0 | AN36: 0 | AR36: 0 | AS36: 0 | AW36: 0 | AX36: 0 | BB36: 0 | BC36: 0 | BD36: 1080669 | BE36: 1514833 | BG36: -434164 | BH36: 0 | BI36: -10406 | BJ36: 25755 | BL36: -36161 | BO36: -434164 | BP36: -36161 | BQ36: -4776 | BS36: -40937 | BT36: =IF(CA4=TRUE, SUM(BO36:BR36), 0) -> 0 | BU36: -470325 | BV36: 0
C38: =C29 -> RSVA - Global Adjustment | D38: 1589 | E38: =E29 -> 0 | F38: 0 | G38: 0 | H38: 0 | I38: 0 | J38: 0 | K38: 0 | L38: 0 | M38: 0 | N38: 0 | O38: 0 | P38: 0 | Q38: 0 | R38: 0 | S38: 0 | T38: 0 | U38: 0 | V38: 0 | W38: 0 | X38: 0 | Y38: 0 | Z38: 0 | AA38: 0 | AB38: 0 | AC38: 0 | AD38: 0 | AE38: 0 | AF38: 0 | AG38: 0 | AH38: 0 | AI38: 0 | AJ38: 0 | AK38: 0 | AL38: 430530 | AM38: 430530 | AN38: 0 | AO38: 17178 | AP38: 0 | AQ38: 8438 | AR38: 25616 | AS38: 430530 | AT38: 2293411 | AU38: 0 | AV38: 0 | AW38: 2723941 | AX38: 25616 | AY38: 13175 | AZ38: 0 | BA38: 0 | BB38: 38791 | BC38: 2723941 | BD38: 1654466 | BE38: 430530 | BF38: 0 | BG38: 3947877 | BH38: 38791 | BI38: 27349 | BJ38: 25616 | BK38: 16947 | BL38: 57471 | BM38: 2293411 | BN38: 40524 | BO38: 1654466 | BP38: 16947 | BQ38: =BQ29 -> 18199 | BR38: =BR29 -> 0 | BS38: =BS29 -> 35146 | BT38: =BT29 -> 1689612 | BU38: =BU29 -> 4005348 | BV38: =BU38-SUM(BG38,BL38) -> 0
C39: Total Group 1 Balance excluding Account 1589 - Global Adjustment | E39: =SUM(E21:E36)-E29 -> 0 | F39: =SUM(F21:F36)-F29 -> 0 | G39: =SUM(G21:G36)-G29 -> 0 | H39: =SUM(H21:H36)-H29 -> 0 | I39: 0 | J39: 0 | K39: 0 | L39: 0 | M39: 0 | N39: =SUM(N21:N36)-N29 -> 0 | O39: 0 | P39: 0 | Q39: 0 | R39: 0 | S39: 0 | T39: 0 | U39: 0 | V39: 0 | W39: 0 | X39: 0 | Y39: 0 | Z39: 0 | AA39: 0 | AB39: 0 | AC39: 0 | AD39: 0 | AE39: 0 | AF39: 0 | AG39: 0 | AH39: 0 | AI39: 0 | AJ39: 7226693 | AK39: =SUM(AK21:AK36)-AK29 -> 0 | AL39: -8773355 | AM39: -1546662 | AN39: 0 | AO39: -59412 | AP39: 0 | AQ39: -1634663 | AR39: -1694075 | AS39: -1546662 | AT39: 3382840 | AU39: 0 | AV39: -696114 | AW39: 1140064 | AX39: -1694075 | AY39: 49757 | AZ39: 0 | BA39: -90389 | BB39: -1734707 | BC39: 1140064 | BD39: -2333023 | BE39: -430530 | BF39: 0 | BG39: -762429 | BH39: -1734707 | BI39: 35831 | BJ39: -25616 | BK39: -11970 | BL39: -1685230 | BM39: 3781541 | BN39: -1547852 | BO39: -4543970 | BP39: -137378 | BQ39: -50013 | BR39: 0 | BS39: =SUM(BS21:BS36)-BS29 -> -187391 | BT39: =SUM(BT21:BT36)-BT29 -> -4287931 | BU39: =SUM(BU21:BU36)-BU29-BU24-BU25 -> -2447657 | BV39: =BU39-SUM(BG39,BL39) -> 2
C40: Total Group 1 Balance | E40: =SUM(E38,E39) -> 0 | F40: =SUM(F38,F39) -> 0 | G40: 0 | H40: 0 | I40: 0 | J40: 0 | K40: 0 | L40: 0 | M40: 0 | N40: 0 | O40: 0 | P40: =SUM(P38,P39) -> 0 | Q40: =SUM(Q38,Q39) -> 0 | R40: 0 | S40: 0 | T40: 0 | U40: 0 | V40: 0 | W40: 0 | X40: 0 | Y40: 0 | Z40: 0 | AA40: 0 | AB40: 0 | AC40: 0 | AD40: 0 | AE40: 0 | AF40: 0 | AG40: 0 | AH40: 0 | AI40: 0 | AJ40: 7226693 | AK40: 0 | AL40: -8342825 | AM40: -1116132 | AN40: 0 | AO40: -42234 | AP40: 0 | AQ40: -1626225 | AR40: -1668459 | AS40: -1116132 | AT40: 5676251 | AU40: 0 | AV40: -696114 | AW40: 3864005 | AX40: -1668459 | AY40: 62932 | AZ40: 0 | BA40: -90389 | BB40: -1695916 | BC40: 3864005 | BD40: -678557 | BE40: 0 | BF40: 0 | BG40: 3185448 | BH40: -1695916 | BI40: 63180 | BJ40: 0 | BK40: 4977 | BL40: -1627759 | BM40: 6074952 | BN40: -1507328 | BO40: -2889504 | BP40: -120431 | BQ40: -31814 | BR40: 0 | BS40: -152245 | BT40: =SUM(BT38,BT39) -> -2598319 | BU40: =SUM(BU38,BU39) -> 1557691 | BV40: =SUM(BV38,BV39) -> 2
A42: 29 | C42: LRAM Variance Account (only input amounts if applying for disposition of this account) | D42: 1568 | S42: =O42+P42-Q42+SUM(R42:R42) -> 0 | X42: =T42+U42-V42+W42 -> 0 | Y42: =S42 -> 0 | AC42: =Y42+Z42-AA42+SUM(AB42:AB42) -> 0 | AD42: =X42 -> 0 | AH42: =AD42+AE42-AF42+AG42 -> 0 | AI42: =AC42 -> 0 | AM42: =AI42+AJ42-AK42+SUM(AL42:AL42) -> 0 | AN42: =AH42 -> 0 | AR42: =AN42+AO42-AP42+AQ42 -> 0 | AS42: =AM42 -> 0 | AW42: =AS42+AT42-AU42+SUM(AV42:AV42) -> 0 | AX42: =AR42 -> 0 | BB42: =AX42+AY42-AZ42+BA42 -> 0 | BC42: =AW42 -> 0 | BE42: 0 | BG42: =BC42+BD42-BE42+SUM(BF42:BF42) -> 0 | BH42: =BB42 -> 0 | BL42: =BH42+BI42-BJ42+BK42 -> 0 | BO42: =BG42-BM42 -> 0 | BP42: =BL42-BN42 -> 0 | BS42: =BP42+BQ42+BR42 -> 0 | BT42: =SUM(BO42:BR42) -> 0 | BU42: 1063631 | BV42: =BU42-SUM(BG42,BL42) -> 1063631
C44: Total including Account 1568 | E44: =SUM(E40,E42) -> 0 | F44: =SUM(F40,F42) -> 0 | G44: 0 | H44: 0 | I44: 0 | J44: 0 | K44: 0 | L44: 0 | M44: 0 | N44: 0 | O44: 0 | P44: 0 | Q44: 0 | R44: 0 | S44: 0 | T44: 0 | U44: 0 | V44: 0 | W44: 0 | X44: 0 | Y44: 0 | Z44: 0 | AA44: 0 | AB44: 0 | AC44: 0 | AD44: 0 | AE44: 0 | AF44: 0 | AG44: 0 | AH44: 0 | AI44: 0 | AJ44: 7226693 | AK44: 0 | AL44: -8342825 | AM44: -1116132 | AN44: 0 | AO44: -42234 | AP44: 0 | AQ44: -1626225 | AR44: -1668459 | AS44: -1116132 | AT44: 5676251 | AU44: 0 | AV44: -696114 | AW44: 3864005 | AX44: -1668459 | AY44: 62932 | AZ44: 0 | BA44: -90389 | BB44: -1695916 | BC44: 3864005 | BD44: -678557 | BE44: 0 | BF44: 0 | BG44: 3185448 | BH44: -1695916 | BI44: 63180 | BJ44: 0 | BK44: 4977 | BL44: -1627759 | BM44: 6074952 | BN44: -1507328 | BO44: -2889504 | BP44: -120431 | BQ44: -31814 | BR44: =SUM(BR40,BR42) -> 0 | BS44: =SUM(BS40,BS42) -> -152245 | BT44: =SUM(BT40,BT42) -> -2598319 | BU44: =SUM(BU40,BU42) -> 2621322 | BV44: =SUM(BV40,BV42) -> 1063633
C47: For all OEB-Approved dispositions, please ensure that the disposition amount has the same sign (e.g: debit balances are to have a positive figure and credit balance are to have a negative figure) as per the related OEB decision.
B50: 1 | C50: Please provide explanations for the nature of the adjustments. If the adjustment relates to previously OEB-Approved disposed balances, please provide amounts for adjustments and include supporting documentations.
B51: 2 | C51: For RSVA accounts only, report the net variance to the account during the year. For all other accounts, record the transactions during the year.
B52: 3 | C52: If the LDC’s rate year begins on January 1, 2017, the projected interest is recorded from January 1, 2016 to December 31, 2016 on the December 31, 2015 balances adjusted for the disposed balances approved by the OEB in the 2016 rate decision. If the LDC’s rate year begins on May 1, 2017, the projected interest is recorded from January 1, 2016 to April 30, 2017 on the December 31, 2015 balances adjusted for the disposed interest balances approved by the OEB in the 2016 rate decision.
B53: 4 | C53: Include Account 1595 as part of Group 1 accounts (lines 30-36) for review and disposition if the recovery (or refund) period has been completed. If the recovery (or refund) period has not been completed, do not include the respective balance in Account 1595 for disposition at this time.

Sheet 2016 List (hidden)
A1: Algoma Power Inc. | B1: HHPNS717 | C1: Fort Erie Service Area | D1: X | I1: RESIDENTIAL SERVICE CLASSIFICATION | Q1: RESIDENTIAL SERVICE CLASSIFICATION | X1: 9 | Y1: 0
A2: Atikokan Hydro Inc. | B2: WKBSV849 | C2: Eastern Ontario Power Service Area | D2: X | I2: GENERAL SERVICE LESS THAN 50 kW SERVICE CLASSIFICATION | Q2: GENERAL SERVICE LESS THAN 50 kW SERVICE CLASSIFICATION | AA2: Retail Transmission Rate - Line and Transformation Connection Service Rate
A3: Bluewater Power Distribution Corporation | B3: NJYBW716 | C3: Port Colborne Service Area | D3: X | I3: GENERAL SERVICE 50 TO 4,999 KW SERVICE CLASSIFICATION | Q3: GENERAL SERVICE 50 TO 4,999 KW SERVICE CLASSIFICATION | AA3: Retail Transmission Rate - Line and Transformation Connection Service Rate - < 1,000 kW
A4: Brant County Power Inc. | B4: GQQHM388 | D4: X | I4: LARGE USE SERVICE CLASSIFICATION | Q4: LARGE USE SERVICE CLASSIFICATION | AA4: Retail Transmission Rate - Line and Transformation Connection Service Rate - Interval Metered
A5: Brantford Power Inc. | B5: SFXZP935 | C5: Former Chatham-Kent Hydro Service Area | D5: X | I5: UNMETERED SCATTERED LOAD SERVICE CLASSIFICATION | Q5: UNMETERED SCATTERED LOAD SERVICE CLASSIFICATION | AA5: Retail Transmission Rate - Line and Transformation Connection Service Rate - Interval Metered (1,000 to 4,999 kW)
A6: Burlington Hydro Inc. | B6: OARZC118 | C6: Strathroy, Mount Brydges & Parkhill Service Area | I6: STREET LIGHTING SERVICE CLASSIFICATION | Q6: STREET LIGHTING SERVICE CLASSIFICATION | AA6: Retail Transmission Rate - Line and Transformation Connection Service Rate - Interval Metered < 1,000 kW
A7: Cambridge and North Dumfries Hydro Inc. | B7: HJHBH994 | C7: Dutton Service Area | I7: EMBEDDED DISTRIBUTOR SERVICE CLASSIFICATION | Q7: EMBEDDED DISTRIBUTOR SERVICE CLASSIFICATION | AA7: Retail Transmission Rate - Line and Transformation Connection Service Rate - Interval Metered > 1,000 kW
A8: Canadian Niagara Power Inc. | B8: KQEEH473 | C8: Newbury Service Area | D8: X | I8: MICROFIT SERVICE CLASSIFICATION | AA8: Retail Transmission Rate - Line Connection Service Rate
A9: Centre Wellington Hydro Ltd. | B9: CPEFQ593 | AA9: Retail Transmission Rate - Transformation Connection Service Rate
A10: Chapleau Public Utilities Corporation | B10: QXHJU641 | C10: For Former Lakeland Power Service Area
A11: Collus PowerStream Corp. | B11: AVXSO594 | C11: For Former Parry Sound Service Area
A12: Cooperative Hydro Embrun Inc. | B12: JMNNR431
A13: E.L.K. Energy Inc. | B13: JKBZG525
A14: Enersource Hydro Mississauga Inc. | B14: YEOQG654 | D14: X
A15: Entegrus Powerlines Inc. | B15: PTLUC812 | D15: X
A16: EnWin Utilities Ltd. | B16: ADICB565
A17: Erie Thames Powerlines Corporation | B17: LRECV427
A18: Espanola Regional Hydro Distribution Corporation | B18: KTCNY552
A19: Essex Powerlines Corporation | B19: YEPCI143
A20: Festival Hydro Inc. | B20: GRHTW113 | D20: X | AA20: Retail Transmission Rate - Network Service Rate
A21: Fort Frances Power Corporation | B21: GMGHU415 | AA21: Retail Transmission Rate - Network Service Rate - < 1,000 kW
A22: Greater Sudbury Hydro Inc. | B22: YTPWF351 | AA22: Retail Transmission Rate - Network Service Rate - Interval Metered
A23: Grimsby Power Incorporated | B23: YCYKQ642 | AA23: Retail Transmission Rate - Network Service Rate - Interval Metered (1,000 to 4,999 kW)
A24: Guelph Hydro Electric Systems Inc. | B24: ADZFM459 | D24: X | AA24: Retail Transmission Rate - Network Service Rate - Interval Metered < 1,000 kW
A25: Haldimand County Hydro Inc. | B25: RVWKN794
A26: Halton Hills Hydro Inc. | B26: KESKM585 | D26: X | AA26: Retail Transmission Rate - Network Service Rate - Interval Metered > 1,000 kW
A27: Hearst Power Distribution Company Ltd. | B27: MQFNL784
A28: Horizon Utilities Corporation | B28: FNDHH648 | D28: X
A29: Hydro 2000 Inc. | B29: PTREM828
A30: Hydro Hawkesbury Inc. | B30: UBBYF452
A31: Hydro One Brampton Networks Inc. | B31: NSBED625 | D31: X
A32: Hydro One Networks Inc. (Norfolk Power Distribution Inc.) | B32: TXKTT167
A33: Hydro One Remote Communities Inc. | B33: ZHKLA874
A34: Hydro Ottawa Limited | B34: YLJHT264
A35: InnPower Corporation | B35: YLCEC559
A36: Kenora Hydro Electric Corporation Ltd. | B36: NHKJF259
A37: Kingston Hydro Corporation | B37: SLRXO177
A38: Kitchener-Wilmot Hydro Inc. | B38: UIFEM157 | D38: X
A39: Lakefront Utilities Inc. | B39: RUZIU984
A40: Lakeland Power Distribution Ltd. | B40: KSUYD122 | D40: X
A41: London Hydro Inc. | B41: QHCKN852 | D41: X
A42: Midland Power Utility Corporation | B42: FUIJX538 | D42: X
A43: Milton Hydro Distribution Inc. | B43: PWKJP953
A44: Newmarket - Tay Power Distribution Ltd. | B44: JEGGW178
A45: Niagara Peninsula Energy Inc. | B45: TVKSH414
A46: Niagara-on-the-Lake Hydro Inc. | B46: DUISI693
A47: North Bay Hydro Distribution Limited | B47: PQZCY963
A48: Northern Ontario Wires Inc. | B48: GTLBW445 | D48: X
A49: Oakville Hydro Electricity Distribution Inc. | B49: XCFPH269 | D49: X
A50: Orangeville Hydro Limited | B50: MLWYG784
A51: Orillia Power Distribution Corporation | B51: QDKIF127 | D51: X
A52: Oshawa PUC Networks Inc. | B52: AMZEN437
A53: Ottawa River Power Corporation | B53: ACEVX242 | D53: X
A54: Peterborough Distribution Incorporated | B54: DSPWZ318 | D54: X
A55: PowerStream Inc. | B55: OLIUU862
A56: PUC Distribution Inc. | B56: NIOJF461
A57: Renfrew Hydro Inc. | B57: ZYZFO848
A58: Rideau St. Lawrence Distribution Inc. | B58: ASEGZ471 | D58: X
A59: Sioux Lookout Hydro Inc. | B59: IOKHC383
A60: St. Thomas Energy Inc. | B60: SKVKJ649
A61: Thunder Bay Hydro Electricity Distribution Inc. | B61: TPFNQ593
A62: Tillsonburg Hydro Inc. | B62: AJHXR397
A63: Toronto Hydro-Electric System Limited | B63: UNGPP815
A64: Veridian Connections Inc. | B64: MSLBK499 | D64: X
A65: Wasaga Distribution Inc. | B65: ECPNP312
A66: Waterloo North Hydro Inc. | B66: BUOOK413 | D66: X
A67: Welland Hydro-Electric System Corp. | B67: XIPNP764
A68: Wellington North Power Inc. | B68: TGBET947 | D68: X
A69: West Coast Huron Energy Inc. | B69: FMUAU699
A70: Westario Power Inc. | B70: AZRAQ913
A71: Whitby Hydro Electric Corporation | B71: OBBVP345 | D71: X
A72: Woodstock Hydro Services Inc. | B72: KBILT676 | D72: X

Sheet 4. Billing Det. for Def-Var
R1: YES
B2: TRUE
C15: Total Metered kWh | D15: Total Metered kW | E15: Metered kWh for Non-RPP Customers | F15: Metered kW for Non-RPP Customers | G15: Metered kWh for Wholesale Market Participants (WMP) | H15: Metered kW for Wholesale Market Participants (WMP) | I15: Total Metered kWh less WMP consumption (if applicable) | J15: Total Metered kW less WMP consumption (if applicable) | K15: 1595 Recovery Proportion (2009) 1 | L15: 1595 Recovery Proportion (2010) 1 | M15: 1595 Recovery Proportion (2011) 1 | N15: 1595 Recovery Proportion (2012) 1 | O15: 1595 Recovery Proportion (2013) 1 | P15: 1595 Recovery Proportion (2014) 1 | Q15: 1595 Recovery Proportion (2015) 1 | R15: 1568 LRAM Variance Account Class Allocation ($ amounts) | S15: Number of Customers for Residential and GS<50 classes3
A16: Rate Class | B16: Unit
A17: RESIDENTIAL SERVICE CLASSIFICATION | B17: kWh | C17: 404728026 | D17: 0 | E17: 16106600 | F17: 0 | I17: =C17-G17 -> 404728026 | J17: 0 | P17: 0.2356 | S17: 49094
A18: GENERAL SERVICE LESS THAN 50 kW SERVICE CLASSIFICATION | B18: kWh | C18: 196078596 | D18: 0 | E18: 33798913 | F18: 0 | I18: 196078596 | J18: 0 | P18: 0.1118 | S18: 5619
A19: GENERAL SERVICE 50 TO 4,999 KW SERVICE CLASSIFICATION | B19: kW | C19: 696649002 | D19: 1747019 | E19: 633039002 | F19: 1512716 | G19: 6790407 | H19: 12045 | I19: 689858595 | J19: 1734974 | P19: 0.5743
A20: LARGE USE SERVICE CLASSIFICATION | B20: kW | C20: 92984875 | D20: 170151 | E20: 92984875 | F20: 170151 | I20: 92984875 | J20: 170151 | P20: 0.0462
A21: UNMETERED SCATTERED LOAD SERVICE CLASSIFICATION | B21: kWh | C21: 2649180 | D21: 0 | E21: 3752 | F21: 0 | I21: 2649180 | J21: 0 | P21: 0.001
A22: STREET LIGHTING SERVICE CLASSIFICATION | B22: kW | C22: 7608120 | D22: 21206 | E22: 7579933 | F22: 21110 | I22: 7608120 | J22: 21206 | P22: 0.0064
A23: EMBEDDED DISTRIBUTOR SERVICE CLASSIFICATION | B23: kW | C23: 33543395 | D23: 75403 | E23: 33543395 | F23: 75403 | I23: 33543395 | J23: 75403 | P23: 0.0246
B24: Total | C24: =SUM($C$17:$C$23) -> 1434241194 | D24: =SUM($D$17:$D$23) -> 2013779 | E24: =SUM($E$17:$E$23) -> 817056470 | F24: =SUM($F$17:$F$23) -> 1779380 | G24: =SUM($G$17:$G$23) -> 6790407 | H24: =SUM($H$17:$H$23) -> 12045 | I24: =SUM($I$17:$I$23) -> 1427450787 | J24: =SUM($J$17:$J$23) -> 2001734 | K24: =SUM($K$17:$K$23) -> 0 | L24: =SUM($L$17:$L$23) -> 0 | M24: =SUM($M$17:$M$23) -> 0 | N24: =SUM($N$17:$N$23) -> 0 | O24: =SUM($O$17:$O$23) -> 0 | P24: =SUM($P$17:$P$23) -> 0.9999 | Q24: =SUM($Q$17:$Q$23) -> 0 | R24: =SUM($R$17:$R$23) -> 0 | S24: =SUM($S$17:$S$23) -> 54713
A26: Threshold Test | R26: 1568 Account Balance from Continuity Schedule | T26: ='3. Continuity Schedule'!BT42 -> 0
A27: Total Claim (including Account 1568) | C27: -2598319 | R27: =IF(T26=R24,"Total Balance of Account 1568 in Column R matches the amount entered on the Continuity Schedule","Total Balance of Account 1568 in Column R DOES NOT MATCH the amount entered on the Continuity Schedule") -> Total Balance of Account 1568 in Column R matches the amount entered on the Continuity Schedule
A28: Total Claim for Threshold Test (All Group 1 Accounts) | C28: -2598319
A29: Threshold Test (Total claim per kWh) 2 | C29: -0.001811633225
A33: 1 Residual Account balance to be allocated to rate classes in proportion to the recovery share as established when rate riders were implemented.
A34: 2 The Threshold Test does not include the amount in 1568.
A35: 3 The proportion of customers for the Residential and GS<50 Classes will be used to allocate Account 1551.

Sheet 2 1 5 TotalConsumptionData_Dist (hidden)
A2: 2.1.5 TotalConsumptionData_Dist_Ret_Total_Combined
A3: Time run: 7/7/2016 10:05:40 AM
A4: Filing_Year | B4: Company_Name | C4: Rate_Class | D4: Rate_Class_Detail | E4: Company+DetailClass | F4: Ret_Metered_consumption_in_kWhs | G4: Ret_Metered_consumption_in_kWs | H4: Dist_RPPMeterCustkWh | I4: Dist_RPPMeterCustkW | J4: Dist_NonRPPMeterCustkWh | K4: Dist_NonRPPMeterCustkW | L4: TotConsmptionforDistCustkWh | M4: TotConsmptionforDistCustkW | N4: Calculated_TOTAL_KWH | O4: Calculated_TOTAL_KW
A5: 2016 | B5: ALGOMA POWER INC. | C5: GENERAL SERVICE EQUAL TO OR GREATER THAN 50 KW | D5: RESIDENTIAL - R2 | E5: ALGOMA POWER INC._RESIDENTIAL – R2 SERVICE CLASSIFICATION | F5: 2692519.29 | G5: 6416 | H5: 4531153.17 | I5: 15176.17 | J5: 79305311.22 | K5: 186669.1 | L5: 83836464.39 | M5: 201845.27 | N5: 86528983.68 | O5: 208261.27 | P5: ALGOMA POWER INC. | Q5: ALGOMA POWER INC._RESIDENTIAL - R2 SERVICE CLASSIFICATION
A6: 2016 | B6: ALGOMA POWER INC. | C6: RESIDENTIAL | D6: RESIDENTIAL - R1 | E6: ALGOMA POWER INC._RESIDENTIAL – R1 SERVICE CLASSIFICATION | F6: 3333837.04 | G6: 0 | H6: 103672663.2 | I6: 0 | J6: 0 | K6: 0 | L6: 103672663.2 | M6: 0 | N6: 107006500.3 | O6: 0 | P6: ALGOMA POWER INC. | Q6: ALGOMA POWER INC._RESIDENTIAL - R1 SERVICE CLASSIFICATION
A7: 2016 | B7: ALGOMA POWER INC. | C7: RESIDENTIAL | D7: RESIDENTIAL - SEASONAL | E7: ALGOMA POWER INC._SEASONAL CUSTOMERS SERVICE CLASSIFICATION | F7: 49561.54 | G7: 0 | H7: 6818828.66 | I7: 0 | J7: 0 | K7: 0 | L7: 6818828.66 | M7: 0 | N7: 6868390.2 | O7: 0 | P7: ALGOMA POWER INC. | Q7: ALGOMA POWER INC._RESIDENTIAL - SEASONAL SERVICE CLASSIFICATION
A8: 2016 | B8: ALGOMA POWER INC. | C8: STREET LIGHTING CONNECTIONS | D8: STREET LIGHTING | E8: ALGOMA POWER INC._STREET LIGHTING SERVICE CLASSIFICATION | F8: 253883.5 | G8: 0 | H8: 0 | I8: 0 | J8: 488812.8 | K8: 0 | L8: 488812.8 | M8: 0 | N8: 742696.3 | O8: 0
A9: 2016 | B9: ATIKOKAN HYDRO INC. | C9: GENERAL SERVICE EQUAL TO OR GREATER THAN 50 KW | D9: GENERAL SERVICE 50 TO 4,999 KW | E9: ATIKOKAN HYDRO INC._GENERAL SERVICE 50 TO 4,999 KW SERVICE CLASSIFICATION | F9: 668520 | G9: 2044 | H9: 0 | I9: 0 | J9: 16902580 | K9: 48855 | L9: 16902580 | M9: 48855 | N9: 17571100 | O9: 50899
A10: 2016 | B10: ATIKOKAN HYDRO INC. | C10: GENERAL SERVICE LESS THAN 50 KW | D10: GENERAL SERVICE LESS THAN 50 KW | E10: ATIKOKAN HYDRO INC._GENERAL SERVICE LESS THAN 50 KW SERVICE CLASSIFICATION | F10: 110276 | G10: 0 | H10: 4999955 | I10: 0 | J10: 0 | K10: 0 | L10: 4999955 | M10: 0 | N10: 5110231 | O10: 0
A11: 2016 | B11: ATIKOKAN HYDRO INC. | C11: RESIDENTIAL | D11: RESIDENTIAL | E11: ATIKOKAN HYDRO INC._RESIDENTIAL SERVICE CLASSIFICATION | F11: 170206 | G11: 0 | H11: 9055158 | I11: 0 | J11: 0 | K11: 0 | L11: 9055158 | M11: 0 | N11: 9225364 | O11: 0
A12: 2016 | B12: ATIKOKAN HYDRO INC. | C12: STREET LIGHTING CONNECTIONS | D12: STREET LIGHTING | E12: ATIKOKAN HYDRO INC._STREET LIGHTING SERVICE CLASSIFICATION | F12: 0 | G12: 0 | H12: 0 | I12: 0 | J12: 463596 | K12: 1436 | L12: 463596 | M12: 1436 | N12: 463596 | O12: 1436
A13: 2016 | B13: BLUEWATER POWER DISTRIBUTION CORPORATION | C13: GENERAL SERVICE EQUAL TO OR GREATER THAN 50 KW | D13: GENERAL SERVICE 1,000 TO 4,999 KW | E13: BLUEWATER POWER DISTRIBUTION CORPORATION_GENERAL SERVICE 1,000 TO 4,999 KW SERVICE CLASSIFICATION | F13: 17432080 | G13: 31612 | H13: 0 | I13: 0 | J13: 141892363 | K13: 315190 | L13: 141892363 | M13: 315190 | N13: 159324443 | O13: 346802
A14: 2016 | B14: BLUEWATER POWER DISTRIBUTION CORPORATION | C14: GENERAL SERVICE EQUAL TO OR GREATER THAN 50 KW | D14: GENERAL SERVICE 50 TO 999 KW - NON WMP | E14: BLUEWATER POWER DISTRIBUTION CORPORATION_GENERAL SERVICE 50 TO 999 KW - NON WMP SERVICE CLASSIFICATION | F14: 29923789 | G14: 98192 | H14: 43867520 | I14: 116644 | J14: 131550596 | K14: 358466 | L14: 175418116 | M14: 475110 | N14: 205341905 | O14: 573302 | P14: BLUEWATER POWER DISTRIBUTION CORPORATION | Q14: BLUEWATER POWER DISTRIBUTION CORPORATION_GENERAL SERVICE 50 TO 999 KW - NON WMP SERVICE CLASSIFICATION
A15: 2016 | B15: BLUEWATER POWER DISTRIBUTION CORPORATION | C15: GENERAL SERVICE EQUAL TO OR GREATER THAN 50 KW | D15: GENERAL SERVICE 50 TO 999 KW - WMP | E15: BLUEWATER POWER DISTRIBUTION CORPORATION_GENERAL SERVICE 50 TO 999 KW - WMP SERVICE CLASSIFICATION | F15: 0 | G15: 0 | H15: 0 | I15: 0 | J15: 4861852 | K15: 9171 | L15: 4861852 | M15: 9171 | N15: 4861852 | O15: 9171 | P15: BLUEWATER POWER DISTRIBUTION CORPORATION | Q15: BLUEWATER POWER DISTRIBUTION CORPORATION_GENERAL SERVICE 50 TO 999 KW - WMP SERVICE CLASSIFICATION
A16: 2016 | B16: BLUEWATER POWER DISTRIBUTION CORPORATION | C16: GENERAL SERVICE EQUAL TO OR GREATER THAN 50 KW | D16: GENERAL SERVICE 50 TO 999 KW | E16: BLUEWATER POWER DISTRIBUTION CORPORATION_GENERAL SERVICE 50 TO 999 KW SERVICE CLASSIFICATION | F16: =SUM(F14:F15) -> 29923789 | G16: =SUM(G14:G15) -> 98192 | H16: 43867520 | I16: 116644 | J16: 136412448 | K16: 367637 | L16: 180279968 | M16: 484281 | N16: 210203757 | O16: 582473
A17: 2016 | B17: BLUEWATER POWER DISTRIBUTION CORPORATION | C17: GENERAL SERVICE LESS THAN 50 KW | D17: GENERAL SERVICE LESS THAN 50 KW | E17: BLUEWATER POWER DISTRIBUTION CORPORATION_GENERAL SERVICE LESS THAN 50 KW SERVICE CLASSIFICATION | F17: 14944265 | G17: 0 | H17: 90053335 | I17: 0 | J17: 0 | K17: 0 | L17: 90053335 | M17: 0 | N17: 104997600 | O17: 0 | T17: =E17-G17-L17 ->  | U17: -75109070 | V17: =T17/T21 -> 
A18: 2016 | B18: BLUEWATER POWER DISTRIBUTION CORPORATION | C18: LARGE USER | D18: LARGE USE - NON WMP | E18: BLUEWATER POWER DISTRIBUTION CORPORATION_LARGE USE - NON WMP SERVICE CLASSIFICATION | F18: 0 | G18: 0 | H18: 0 | I18: 0 | J18: 142415629 | K18: 203770 | L18: 142415629 | M18: 203770 | N18: 142415629 | O18: 203770 | P18: BLUEWATER POWER DISTRIBUTION CORPORATION | Q18: BLUEWATER POWER DISTRIBUTION CORPORATION_LARGE USE - NON WMP SERVICE CLASSIFICATION | U18: -203770 | V18: =T18/T21 -> 
A19: 2016 | B19: BLUEWATER POWER DISTRIBUTION CORPORATION | C19: LARGE USER | D19: LARGE USE - WMP | E19: BLUEWATER POWER DISTRIBUTION CORPORATION_LARGE USE - WMP SERVICE CLASSIFICATION | F19: 0 | G19: 0 | H19: 0 | I19: 0 | J19: 116073155 | K19: 196881 | L19: 116073155 | M19: 196881 | N19: 116073155 | O19: 196881 | P19: BLUEWATER POWER DISTRIBUTION CORPORATION | Q19: BLUEWATER POWER DISTRIBUTION CORPORATION_LARGE USE - WMP SERVICE CLASSIFICATION | U19: -196881 | V19: =T19/T21 -> 
A20: 2016 | B20: BLUEWATER POWER DISTRIBUTION CORPORATION | C20: LARGE USER | D20: LARGE USE | E20: BLUEWATER POWER DISTRIBUTION CORPORATION_LARGE USE SERVICE CLASSIFICATION | F20: =SUM(F18:F19) -> 0 | G20: 0 | H20: 0 | I20: 0 | J20: 258488784 | K20: 400651 | L20: 258488784 | M20: 400651 | N20: 258488784 | O20: 400651 | U20: -400651 | V20: =T20/T21 -> 
A21: 2016 | B21: BLUEWATER POWER DISTRIBUTION CORPORATION | C21: RESIDENTIAL | D21: RESIDENTIAL | E21: BLUEWATER POWER DISTRIBUTION CORPORATION_RESIDENTIAL SERVICE CLASSIFICATION | F21: 13995887 | G21: 0 | H21: 233535927 | I21: 0 | J21: 0 | K21: 0 | L21: 233535927 | M21: 0 | N21: 247531814 | O21: 0
A22: 2016 | B22: BLUEWATER POWER DISTRIBUTION CORPORATION | C22: SENTINEL LIGHTING CONNECTIONS | D22: SENTINEL LIGHTING | E22: BLUEWATER POWER DISTRIBUTION CORPORATION_SENTINEL LIGHTING SERVICE CLASSIFICATION | F22: 24216.96 | G22: 29 | H22: 0 | I22: 0 | J22: 483163 | K22: 1225 | L22: 483163 | M22: 1225 | N22: 507379.96 | O22: 1254
A23: 2016 | B23: BLUEWATER POWER DISTRIBUTION CORPORATION | C23: STREET LIGHTING CONNECTIONS | D23: STREET LIGHTING | E23: BLUEWATER POWER DISTRIBUTION CORPORATION_STREET LIGHTING SERVICE CLASSIFICATION | F23: 0 | G23: 0 | H23: 0 | I23: 0 | J23: 6427057 | K23: 17287 | L23: 6427057 | M23: 17287 | N23: 6427057 | O23: 17287
A24: 2016 | B24: BLUEWATER POWER DISTRIBUTION CORPORATION | C24: UNMETERED SCATTERED LOAD CONNECTIONS | D24: UNMETERED SCATTERED LOAD | E24: BLUEWATER POWER DISTRIBUTION CORPORATION_UNMETERED SCATTERED LOAD SERVICE CLASSIFICATION | F24: 0 | G24: 0 | H24: 2211250 | I24: 0 | J24: 0 | K24: 0 | L24: 2211250 | M24: 0 | N24: 2211250 | O24: 0
A25: 2016 | B25: BRANT COUNTY POWER INC. | C25: EMBEDDED DISTRIBUTOR(S) | D25: GENERAL SERVICE 50 TO 4,999 KW - EMBEDDED DISTRIBUTION | E25: BRANT COUNTY POWER INC._GENERAL SERVICE 50 TO 4,999 KW - EMBEDDED DISTRIBUTION SERVICE CLASSIFICATION | F25: 0 | G25: 0 | H25: 0 | I25: 0 | J25: 0 | K25: 0 | L25: 0 | M25: 0 | N25: 0 | O25: 0 | P25: BRANT COUNTY POWER INC. | Q25: BRANT COUNTY POWER INC._GENERAL SERVICE 50 TO 4,999 KW - EMBEDDED DISTRIBUTION SERVICE CLASSIFICATION
A26: 2016 | B26: BRANT COUNTY POWER INC. | C26: GENERAL SERVICE EQUAL TO OR GREATER THAN 50 KW | D26: GENERAL SERVICE 50 TO 4,999 KW | E26: BRANT COUNTY POWER INC._GENERAL SERVICE 50 TO 4,999 KW SERVICE CLASSIFICATION | F26: 33636347 | G26: 99504 | H26: 0 | I26: 0 | J26: 124170242 | K26: 250435 | L26: 124170242 | M26: 250435 | N26: 157806589 | O26: 349939
A27: 2016 | B27: BRANT COUNTY POWER INC. | C27: GENERAL SERVICE LESS THAN 50 KW | D27: GENERAL SERVICE LESS THAN 50 KW | E27: BRANT COUNTY POWER INC._GENERAL SERVICE LESS THAN 50 KW SERVICE CLASSIFICATION | F27: 5918267 | G27: 0 | H27: 27917188 | I27: 407.48 | J27: 0 | K27: 0 | L27: 27917188 | M27: 407.48 | N27: 33835455 | O27: 407.48
A28: 2016 | B28: BRANT COUNTY POWER INC. | C28: RESIDENTIAL | D28: RESIDENTIAL | E28: BRANT COUNTY POWER INC._RESIDENTIAL SERVICE CLASSIFICATION | F28: 3215849 | G28: 0 | H28: 78091679 | I28: 0 | J28: 0 | K28: 0 | L28: 78091679 | M28: 0 | N28: 81307528 | O28: 0
A29: 2016 | B29: BRANT COUNTY POWER INC. | C29: SENTINEL LIGHTING CONNECTIONS | D29: SENTINEL LIGHTING | E29: BRANT COUNTY POWER INC._SENTINEL LIGHTING SERVICE CLASSIFICATION | F29: 26588 | G29: 0 | H29: 103263 | I29: 379.35 | J29: 0 | K29: 0 | L29: 103263 | M29: 379.35 | N29: 129851 | O29: 379.35
A30: 2016 | B30: BRANT COUNTY POWER INC. | C30: STREET LIGHTING CONNECTIONS | D30: STREET LIGHTING | E30: BRANT COUNTY POWER INC._STREET LIGHTING SERVICE CLASSIFICATION | F30: 1696635 | G30: 4770 | H30: 0 | I30: 0 | J30: 997 | K30: 0 | L30: 997 | M30: 0 | N30: 1697632 | O30: 4770
A31: 2016 | B31: BRANT COUNTY POWER INC. | C31: UNMETERED SCATTERED LOAD CONNECTIONS | D31: UNMETERED SCATTERED LOAD | E31: BRANT COUNTY POWER INC._UNMETERED SCATTERED LOAD SERVICE CLASSIFICATION | F31: 222815 | G31: 0 | H31: 240491 | I31: 0 | J31: 0 | K31: 0 | L31: 240491 | M31: 0 | N31: 463306 | O31: 0
A32: 2016 | B32: BRANTFORD POWER INC. | C32: EMBEDDED DISTRIBUTOR(S) | D32: EMBEDDED DISTRIBUTOR | E32: BRANTFORD POWER INC._EMBEDDED DISTRIBUTOR SERVICE CLASSIFICATION | F32: 0 | G32: 0 | H32: 0 | I32: 0 | J32: 68321609 | K32: 142203.4 | L32: 68321609 | M32: 142203.4 | N32: 68321609 | O32: 142203.4
A33: 2016 | B33: BRANTFORD POWER INC. | C33: GENERAL SERVICE EQUAL TO OR GREATER THAN 50 KW | D33: GENERAL SERVICE 50 TO 4,999 KW | E33: BRANTFORD POWER INC._GENERAL SERVICE 50 TO 4,999 KW SERVICE CLASSIFICATION | F33: 113832476.1 | G33: 303092 | H33: 34798942 | I33: 131694 | J33: 362421097 | K33: 954360 | L33: 397220039 | M33: 1086054 | N33: 511052515.1 | O33: 1389146
A34: 2016 | B34: BRANTFORD POWER INC. | C34: GENERAL SERVICE LESS THAN 50 KW | D34: GENERAL SERVICE LESS THAN 50 KW | E34: BRANTFORD POWER INC._GENERAL SERVICE LESS THAN 50 KW SERVICE CLASSIFICATION | F34: 13633043.86 | G34: 0 | H34: 85601145 | I34: 0 | J34: 29552 | K34: 0 | L34: 85630697 | M34: 0 | N34: 99263740.86 | O34: 0
A35: 2016 | B35: BRANTFORD POWER INC. | C35: RESIDENTIAL | D35: RESIDENTIAL | E35: BRANTFORD POWER INC._RESIDENTIAL SERVICE CLASSIFICATION | F35: 19368894.09 | G35: 0 | H35: 266108385 | I35: 0 | J35: 0 | K35: 0 | L35: 266108385 | M35: 0 | N35: 285477279.1 | O35: 0
A36: 2016 | B36: BRANTFORD POWER INC. | C36: SENTINEL LIGHTING CONNECTIONS | D36: SENTINEL LIGHTING | E36: BRANTFORD POWER INC._SENTINEL LIGHTING SERVICE CLASSIFICATION | F36: 18163.96 | G36: 55 | H36: 365091 | I36: 1115 | J36: 59864 | K36: 183 | L36: 424955 | M36: 1298 | N36: 443118.96 | O36: 1353
A37: 2016 | B37: BRANTFORD POWER INC. | C37: STREET LIGHTING CONNECTIONS | D37: STREET LIGHTING | E37: BRANTFORD POWER INC._STREET LIGHTING SERVICE CLASSIFICATION | F37: 0 | G37: 0 | H37: 0 | I37: 0 | J37: 7101494 | K37: 21707 | L37: 7101494 | M37: 21707 | N37: 7101494 | O37: 21707
A38: 2016 | B38: BRANTFORD POWER INC. | C38: UNMETERED SCATTERED LOAD CONNECTIONS | D38: UNMETERED SCATTERED LOAD | E38: BRANTFORD POWER INC._UNMETERED SCATTERED LOAD SERVICE CLASSIFICATION | F38: 0 | G38: 0 | H38: 1506118 | I38: 0 | J38: 0 | K38: 0 | L38: 1506118 | M38: 0 | N38: 1506118 | O38: 0
A39: 2016 | B39: BURLINGTON HYDRO INC. | C39: GENERAL SERVICE EQUAL TO OR GREATER THAN 50 KW | D39: GENERAL SERVICE 50 TO 4,999 KW | E39: BURLINGTON HYDRO INC._GENERAL SERVICE 50 TO 4,999 KW SERVICE CLASSIFICATION | F39: 191716972 | G39: 473779 | H39: 118023444 | I39: 349266 | J39: 591950400 | K39: 1567289 | L39: 709973844 | M39: 1916555 | N39: 901690816 | O39: 2390334
A40: 2016 | B40: BURLINGTON HYDRO INC. | C40: GENERAL SERVICE LESS THAN 50 KW | D40: GENERAL SERVICE LESS THAN 50 KW | E40: BURLINGTON HYDRO INC._GENERAL SERVICE LESS THAN 50 KW SERVICE CLASSIFICATION | F40: 26241201 | G40: 567 | H40: 141834540 | I40: 543 | J40: 307818 | K40: 505 | L40: 142142358 | M40: 1048 | N40: 168383559 | O40: 1615
A41: 2016 | B41: BURLINGTON HYDRO INC. | C41: RESIDENTIAL | D41: RESIDENTIAL | E41: BURLINGTON HYDRO INC._RESIDENTIAL SERVICE CLASSIFICATION | F41: 16766066 | G41: 0 | H41: 512664885 | I41: 0 | J41: 0 | K41: 0 | L41: 512664885 | M41: 0 | N41: 529430951 | O41: 0
A42: 2016 | B42: BURLINGTON HYDRO INC. | C42: STREET LIGHTING CONNECTIONS | D42: STREET LIGHTING | E42: BURLINGTON HYDRO INC._STREET LIGHTING SERVICE CLASSIFICATION | F42: 0 | G42: 0 | H42: 46550 | I42: 131 | J42: 9872218 | K42: 27536 | L42: 9918768 | M42: 27667 | N42: 9918768 | O42: 27667
A43: 2016 | B43: BURLINGTON HYDRO INC. | C43: UNMETERED SCATTERED LOAD CONNECTIONS | D43: UNMETERED SCATTERED LOAD | E43: BURLINGTON HYDRO INC._UNMETERED SCATTERED LOAD SERVICE CLASSIFICATION | F43: 0 | G43: 0 | H43: 3091043 | I43: 0 | J43: 0 | K43: 0 | L43: 3091043 | M43: 0 | N43: 3091043 | O43: 0
A44: 2016 | B44: CAMBRIDGE AND NORTH DUMFRIES HYDRO INC. | C44: EMBEDDED DISTRIBUTOR(S) | D44: EMBEDDED DISTRIBUTOR - HYDRO ONE | E44: CAMBRIDGE AND NORTH DUMFRIES HYDRO INC._EMBEDDED DISTRIBUTOR - HYDRO ONE SERVICE CLASSIFICATION | F44: 0 | G44: 0 | H44: 0 | I44: 0 | J44: 13548203 | K44: 28843.22 | L44: 13548203 | M44: 28843.22 | N44: 13548203 | O44: 28843.22 | P44: CAMBRIDGE AND NORTH DUMFRIES HYDRO INC. | Q44: CAMBRIDGE AND NORTH DUMFRIES HYDRO INC._EMBEDDED DISTRIBUTOR - HYDRO ONE SERVICE CLASSIFICATION
A45: 2016 | B45: CAMBRIDGE AND NORTH DUMFRIES HYDRO INC. | C45: EMBEDDED DISTRIBUTOR(S) | D45: EMBEDDED DISTRIBUTOR - WATERLOO NORTH | E45: CAMBRIDGE AND NORTH DUMFRIES HYDRO INC._EMBEDDED DISTRIBUTOR - WATERLOO NORTH SERVICE CLASSIFICATION | F45: 0 | G45: 0 | H45: 0 | I45: 0 | J45: 0 | K45: 108928.8 | L45: 0 | M45: 108928.8 | N45: 0 | O45: 108928.8 | P45: CAMBRIDGE AND NORTH DUMFRIES HYDRO INC. | Q45: CAMBRIDGE AND NORTH DUMFRIES HYDRO INC._EMBEDDED DISTRIBUTOR - WATERLOO NORTH SERVICE CLASSIFICATION
A46: 2016 | B46: CAMBRIDGE AND NORTH DUMFRIES HYDRO INC. | C46: EMBEDDED DISTRIBUTOR(S) | D46: EMBEDDED DISTRIBUTOR | E46: CAMBRIDGE AND NORTH DUMFRIES HYDRO INC._EMBEDDED DISTRIBUTOR SERVICE CLASSIFICATION | F46: =SUM(F44:F45) -> 0 | G46: =SUM(G44:G45) -> 0 | H46: 0 | I46: 0 | J46: 13548203 | K46: 137772.02 | L46: 13548203 | M46: 137772.02 | N46: 13548203 | O46: 137772.02
A47: 2016 | B47: CAMBRIDGE AND NORTH DUMFRIES HYDRO INC. | C47: GENERAL SERVICE EQUAL TO OR GREATER THAN 50 KW | D47: GENERAL SERVICE 1,000 TO 4,999 KW | E47: CAMBRIDGE AND NORTH DUMFRIES HYDRO INC._GENERAL SERVICE 1,000 TO 4,999 KW SERVICE CLASSIFICATION | F47: 68969295 | G47: 0 | H47: 0 | I47: 0 | J47: 188789212 | K47: 391367 | L47: 188789212 | M47: 391367 | N47: 257758507 | O47: 391367
A48: 2016 | B48: CAMBRIDGE AND NORTH DUMFRIES HYDRO INC. | C48: GENERAL SERVICE EQUAL TO OR GREATER THAN 50 KW | D48: GENERAL SERVICE 50 TO 999 KW | E48: CAMBRIDGE AND NORTH DUMFRIES HYDRO INC._GENERAL SERVICE 50 TO 999 KW SERVICE CLASSIFICATION | F48: 85818807 | G48: 0 | H48: 134435481 | I48: 0 | J48: 202613461 | K48: 1071817 | L48: 337048942 | M48: 1071817 | N48: 422867749 | O48: 1071817
A49: 2016 | B49: CAMBRIDGE AND NORTH DUMFRIES HYDRO INC. | C49: GENERAL SERVICE LESS THAN 50 KW | D49: GENERAL SERVICE LESS THAN 50 KW | E49: CAMBRIDGE AND NORTH DUMFRIES HYDRO INC._GENERAL SERVICE LESS THAN 50 KW SERVICE CLASSIFICATION | F49: 24701976 | G49: 0 | H49: 142389060 | I49: 0 | J49: 60468 | K49: 0 | L49: 142449528 | M49: 0 | N49: 167151504 | O49: 0
A50: 2016 | B50: CAMBRIDGE AND NORTH DUMFRIES HYDRO INC. | C50: LARGE USER | D50: LARGE USE | E50: CAMBRIDGE AND NORTH DUMFRIES HYDRO INC._LARGE USE SERVICE CLASSIFICATION | F50: 0 | G50: 0 | H50: 0 | I50: 0 | J50: 207374362 | K50: 430087 | L50: 207374362 | M50: 430087 | N50: 207374362 | O50: 430087
A51: 2016 | B51: CAMBRIDGE AND NORTH DUMFRIES HYDRO INC. | C51: RESIDENTIAL | D51: RESIDENTIAL | E51: CAMBRIDGE AND NORTH DUMFRIES HYDRO INC._RESIDENTIAL SERVICE CLASSIFICATION | F51: 18707073 | G51: 0 | H51: 382624949 | I51: 0 | J51: 0 | K51: 0 | L51: 382624949 | M51: 0 | N51: 401332022 | O51: 0
A52: 2016 | B52: CAMBRIDGE AND NORTH DUMFRIES HYDRO INC. | C52: STREET LIGHTING CONNECTIONS | D52: STREET LIGHTING | E52: CAMBRIDGE AND NORTH DUMFRIES HYDRO INC._STREET LIGHTING SERVICE CLASSIFICATION | F52: 6859394 | G52: 0 | H52: 0 | I52: 0 | J52: 2837239 | K52: 7928 | L52: 2837239 | M52: 7928 | N52: 9696633 | O52: 7928
A53: 2016 | B53: CAMBRIDGE AND NORTH DUMFRIES HYDRO INC. | C53: UNMETERED SCATTERED LOAD CONNECTIONS | D53: UNMETERED SCATTERED LOAD | E53: CAMBRIDGE AND NORTH DUMFRIES HYDRO INC._UNMETERED SCATTERED LOAD SERVICE CLASSIFICATION | F53: 4020 | G53: 0 | H53: 1963575 | I53: 0 | J53: 5944 | K53: 0 | L53: 1969519 | M53: 0 | N53: 1973539 | O53: 0
A54: 2016 | B54: CANADIAN NIAGARA POWER INC. | C54: GENERAL SERVICE EQUAL TO OR GREATER THAN 50 KW | D54: GENERAL SERVICE 50 TO 4,999 KW - EASTERN ONTARIO POWER | E54: CANADIAN NIAGARA POWER INC.-EASTERN ONTARIO POWER SERVICE AREA_GENERAL SERVICE 50 TO 4,999 KW SERVICE CLASSIFICATION | F54: 370740.31 | G54: 900 | H54: 1956051.3 | I54: 4863.5 | J54: 14132925.88 | K54: 38309.12 | L54: 16088977.18 | M54: 43172.62 | N54: 16459717.49 | O54: 44072.62 | P54: CANADIAN NIAGARA POWER INC. | Q54: CANADIAN NIAGARA POWER INC.-EASTERN ONTARIO POWER SERVICE AREA_GENERAL SERVICE 50 TO 4,999 KW SERVICE CLASSIFICATION
A55: 2016 | B55: CANADIAN NIAGARA POWER INC. | C55: GENERAL SERVICE EQUAL TO OR GREATER THAN 50 KW | D55: GENERAL SERVICE 50 TO 4,999 KW - FORT ERIE | E55: CANADIAN NIAGARA POWER INC.-FORT ERIE SERVICE AREA_GENERAL SERVICE 50 TO 4,999 KW SERVICE CLASSIFICATION | F55: 3877741.37 | G55: 13068 | H55: 9209908.27 | I55: 31641.44 | J55: 85075228.75 | K55: 225993.87 | L55: 94285137.02 | M55: 257635.31 | N55: 98162878.39 | O55: 270703.31 | P55: CANADIAN NIAGARA POWER INC. | Q55: CANADIAN NIAGARA POWER INC.-FORT ERIE SERVICE AREA_GENERAL SERVICE 50 TO 4,999 KW SERVICE CLASSIFICATION
A56: 2016 | B56: CANADIAN NIAGARA POWER INC. | C56: GENERAL SERVICE EQUAL TO OR GREATER THAN 50 KW | D56: GENERAL SERVICE 50 TO 4,999 KW - PORT COLBORNE | E56: CANADIAN NIAGARA POWER INC.-PORT COLBORNE SERVICE AREA_GENERAL SERVICE 50 TO 4,999 KW SERVICE CLASSIFICATION | F56: 9103852.59 | G56: 44985 | H56: 7253948.3 | I56: 21997.03 | J56: 68866316.82 | K56: 247130.13 | L56: 76120265.12 | M56: 269127.16 | N56: 85224117.71 | O56: 314112.16 | P56: CANADIAN NIAGARA POWER INC. | Q56: CANADIAN NIAGARA POWER INC.-PORT COLBORNE SERVICE AREA_GENERAL SERVICE 50 TO 4,999 KW SERVICE CLASSIFICATION
A57: 2016 | B57: CANADIAN NIAGARA POWER INC. | C57: GENERAL SERVICE LESS THAN 50 KW | D57: GENERAL SERVICE LESS THAN 50 KW - EASTERN ONTARIO POWER | E57: CANADIAN NIAGARA POWER INC.-EASTERN ONTARIO POWER SERVICE AREA_GENERAL SERVICE LESS THAN 50 KW SERVICE CLASSIFICATION | F57: 1300972.52 | G57: 0 | H57: 10688901.53 | I57: 0 | J57: 0 | K57: 0 | L57: 10688901.53 | M57: 0 | N57: 11989874.05 | O57: 0 | P57: CANADIAN NIAGARA POWER INC. | Q57: CANADIAN NIAGARA POWER INC.-EASTERN ONTARIO POWER SERVICE AREA_GENERAL SERVICE LESS THAN 50 KW SERVICE CLASSIFICATION
A58: 2016 | B58: CANADIAN NIAGARA POWER INC. | C58: GENERAL SERVICE LESS THAN 50 KW | D58: GENERAL SERVICE LESS THAN 50 KW - FORT ERIE | E58: CANADIAN NIAGARA POWER INC.-FORT ERIE SERVICE AREA_GENERAL SERVICE LESS THAN 50 KW SERVICE CLASSIFICATION | F58: 5033014.55 | G58: 0 | H58: 27282739.36 | I58: 0 | J58: 0 | K58: 0 | L58: 27282739.36 | M58: 0 | N58: 32315753.91 | O58: 0 | P58: CANADIAN NIAGARA POWER INC. | Q58: CANADIAN NIAGARA POWER INC.-FORT ERIE SERVICE AREA_GENERAL SERVICE LESS THAN 50 KW SERVICE CLASSIFICATION
A59: 2016 | B59: CANADIAN NIAGARA POWER INC. | C59: GENERAL SERVICE LESS THAN 50 KW | D59: GENERAL SERVICE LESS THAN 50 KW - PORT COLBORNE | E59: CANADIAN NIAGARA POWER INC.-PORT COLBORNE SERVICE AREA_GENERAL SERVICE LESS THAN 50 KW SERVICE CLASSIFICATION | F59: 4293030.84 | G59: 0 | H59: 19889039.79 | I59: 0 | J59: 0 | K59: 0 | L59: 19889039.79 | M59: 0 | N59: 24182070.63 | O59: 0 | P59: CANADIAN NIAGARA POWER INC. | Q59: CANADIAN NIAGARA POWER INC.-PORT COLBORNE SERVICE AREA_GENERAL SERVICE LESS THAN 50 KW SERVICE CLASSIFICATION
A60: 2016 | B60: CANADIAN NIAGARA POWER INC. | C60: RESIDENTIAL | D60: RESIDENTIAL - EASTERN ONTARIO POWER | E60: CANADIAN NIAGARA POWER INC.-EASTERN ONTARIO POWER SERVICE AREA_RESIDENTIAL SERVICE CLASSIFICATION | F60: 1692162.77 | G60: 0 | H60: 25990712.98 | I60: 0 | J60: 0 | K60: 0 | L60: 25990712.98 | M60: 0 | N60: 27682875.75 | O60: 0 | P60: CANADIAN NIAGARA POWER INC. | Q60: CANADIAN NIAGARA POWER INC.-EASTERN ONTARIO POWER SERVICE AREA_RESIDENTIAL SERVICE CLASSIFICATION
A61: 2016 | B61: CANADIAN NIAGARA POWER INC. | C61: RESIDENTIAL | D61: RESIDENTIAL - FORT ERIE | E61: CANADIAN NIAGARA POWER INC.-FORT ERIE SERVICE AREA_RESIDENTIAL SERVICE CLASSIFICATION | F61: 6741333.73 | G61: 0 | H61: 103951331 | I61: 0 | J61: 0 | K61: 0 | L61: 103951331 | M61: 0 | N61: 110692664.8 | O61: 0 | P61: CANADIAN NIAGARA POWER INC. | Q61: CANADIAN NIAGARA POWER INC.-FORT ERIE SERVICE AREA_RESIDENTIAL SERVICE CLASSIFICATION
A62: 2016 | B62: CANADIAN NIAGARA POWER INC. | C62: RESIDENTIAL | D62: RESIDENTIAL - PORT COLBORNE | E62: CANADIAN NIAGARA POWER INC.-PORT COLBORNE SERVICE AREA_RESIDENTIAL SERVICE CLASSIFICATION | F62: 3826314.05 | G62: 0 | H62: 57537814.52 | I62: 0 | J62: 0 | K62: 0 | L62: 57537814.52 | M62: 0 | N62: 61364128.57 | O62: 0 | P62: CANADIAN NIAGARA POWER INC. | Q62: CANADIAN NIAGARA POWER INC.-PORT COLBORNE SERVICE AREA_RESIDENTIAL SERVICE CLASSIFICATION
A63: 2016 | B63: CANADIAN NIAGARA POWER INC. | C63: SENTINEL LIGHTING CONNECTIONS | D63: SENTINEL LIGHTING - EASTERN ONTARIO POWER | E63: CANADIAN NIAGARA POWER INC.-EASTERN ONTARIO POWER SERVICE AREA_SENTINEL LIGHTING SERVICE CLASSIFICATION | F63: 0 | G63: 0 | H63: 34817.5 | I63: 115.9 | J63: 0 | K63: 0 | L63: 34817.5 | M63: 115.9 | N63: 34817.5 | O63: 115.9 | P63: CANADIAN NIAGARA POWER INC. | Q63: CANADIAN NIAGARA POWER INC.-EASTERN ONTARIO POWER SERVICE AREA_SENTINEL LIGHTING SERVICE CLASSIFICATION
A64: 2016 | B64: CANADIAN NIAGARA POWER INC. | C64: SENTINEL LIGHTING CONNECTIONS | D64: SENTINEL LIGHTING - FORT ERIE | E64: CANADIAN NIAGARA POWER INC.-FORT ERIE SERVICE AREA_SENTINEL LIGHTING SERVICE CLASSIFICATION | F64: 0 | G64: 0 | H64: 642135.22 | I64: 2106 | J64: 0 | K64: 0 | L64: 642135.22 | M64: 2106 | N64: 642135.22 | O64: 2106 | P64: CANADIAN NIAGARA POWER INC. | Q64: CANADIAN NIAGARA POWER INC.-FORT ERIE SERVICE AREA_SENTINEL LIGHTING SERVICE CLASSIFICATION
A65: 2016 | B65: CANADIAN NIAGARA POWER INC. | C65: SENTINEL LIGHTING CONNECTIONS | D65: SENTINEL LIGHTING - PORT COLBORNE | E65: CANADIAN NIAGARA POWER INC.-PORT COLBORNE SERVICE AREA_SENTINEL LIGHTING SERVICE CLASSIFICATION | F65: 0 | G65: 0 | H65: 13703.95 | I65: 46.12 | J65: 0 | K65: 0 | L65: 13703.95 | M65: 46.12 | N65: 13703.95 | O65: 46.12 | P65: CANADIAN NIAGARA POWER INC. | Q65: CANADIAN NIAGARA POWER INC.-PORT COLBORNE SERVICE AREA_SENTINEL LIGHTING SERVICE CLASSIFICATION
A66: 2016 | B66: CANADIAN NIAGARA POWER INC. | C66: STREET LIGHTING CONNECTIONS | D66: STREET LIGHTING - EASTERN ONTARIO POWER | E66: CANADIAN NIAGARA POWER INC.-EASTERN ONTARIO POWER SERVICE AREA_STREET LIGHTING SERVICE CLASSIFICATION | F66: 0 | G66: 0 | H66: 15789.72 | I66: 48 | J66: 523881.82 | K66: 1594.74 | L66: 539671.54 | M66: 1642.74 | N66: 539671.54 | O66: 1642.74 | P66: CANADIAN NIAGARA POWER INC. | Q66: CANADIAN NIAGARA POWER INC.-EASTERN ONTARIO POWER SERVICE AREA_STREET LIGHTING SERVICE CLASSIFICATION
A67: 2016 | B67: CANADIAN NIAGARA POWER INC. | C67: STREET LIGHTING CONNECTIONS | D67: STREET LIGHTING - FORT ERIE | E67: CANADIAN NIAGARA POWER INC.-FORT ERIE SERVICE AREA_STREET LIGHTING SERVICE CLASSIFICATION | F67: 16767.78 | G67: 51 | H67: 62525.7 | I67: 187.68 | J67: 2105278.88 | K67: 6408.36 | L67: 2167804.58 | M67: 6596.04 | N67: 2184572.36 | O67: 6647.04 | P67: CANADIAN NIAGARA POWER INC. | Q67: CANADIAN NIAGARA POWER INC.-FORT ERIE SERVICE AREA_STREET LIGHTING SERVICE CLASSIFICATION
A68: 2016 | B68: CANADIAN NIAGARA POWER INC. | C68: STREET LIGHTING CONNECTIONS | D68: STREET LIGHTING - PORT COLBORNE | E68: CANADIAN NIAGARA POWER INC.-PORT COLBORNE SERVICE AREA_STREET LIGHTING SERVICE CLASSIFICATION | F68: 0 | G68: 0 | H68: 26756.74 | I68: 81.72 | J68: 946574.29 | K68: 2837.14 | L68: 973331.03 | M68: 2918.86 | N68: 973331.03 | O68: 2918.86 | P68: CANADIAN NIAGARA POWER INC. | Q68: CANADIAN NIAGARA POWER INC.-PORT COLBORNE SERVICE AREA_STREET LIGHTING SERVICE CLASSIFICATION
A69: 2016 | B69: CANADIAN NIAGARA POWER INC. | C69: UNMETERED SCATTERED LOAD CONNECTIONS | D69: UNMETERED SCATTERED LOAD - EASTERN ONTARIO POWER | E69: CANADIAN NIAGARA POWER INC.-EASTERN ONTARIO POWER SERVICE AREA_UNMETERED SCATTERED LOAD SERVICE CLASSIFICATION | F69: 0 | G69: 0 | H69: 158150.5 | I69: 0 | J69: 0 | K69: 0 | L69: 158150.5 | M69: 0 | N69: 158150.5 | O69: 0 | P69: CANADIAN NIAGARA POWER INC. | Q69: CANADIAN NIAGARA POWER INC.-EASTERN ONTARIO POWER SERVICE AREA_UNMETERED SCATTERED LOAD SERVICE CLASSIFICATION
A70: 2016 | B70: CANADIAN NIAGARA POWER INC. | C70: UNMETERED SCATTERED LOAD CONNECTIONS | D70: UNMETERED SCATTERED LOAD - FORT ERIE | E70: CANADIAN NIAGARA POWER INC.-FORT ERIE SERVICE AREA_UNMETERED SCATTERED LOAD SERVICE CLASSIFICATION | F70: 600.03 | G70: 0 | H70: 788522.7 | I70: 0 | J70: 0 | K70: 0 | L70: 788522.7 | M70: 0 | N70: 789122.73 | O70: 0 | P70: CANADIAN NIAGARA POWER INC. | Q70: CANADIAN NIAGARA POWER INC.-FORT ERIE SERVICE AREA_UNMETERED SCATTERED LOAD SERVICE CLASSIFICATION
A71: 2016 | B71: CANADIAN NIAGARA POWER INC. | C71: UNMETERED SCATTERED LOAD CONNECTIONS | D71: UNMETERED SCATTERED LOAD - PORT COLBORNE | E71: CANADIAN NIAGARA POWER INC.-PORT COLBORNE SERVICE AREA_UNMETERED SCATTERED LOAD SERVICE CLASSIFICATION | F71: 3960.01 | G71: 0 | H71: 549309.08 | I71: 0 | J71: 0 | K71: 0 | L71: 549309.08 | M71: 0 | N71: 553269.09 | O71: 0 | P71: CANADIAN NIAGARA POWER INC. | Q71: CANADIAN NIAGARA POWER INC.-PORT COLBORNE SERVICE AREA_UNMETERED SCATTERED LOAD SERVICE CLASSIFICATION
A72: 2016 | B72: CENTRE WELLINGTON HYDRO LTD. | C72: GENERAL SERVICE EQUAL TO OR GREATER THAN 50 KW | D72: GENERAL SERVICE 3,000 TO 4,999 KW | E72: CENTRE WELLINGTON HYDRO LTD._GENERAL SERVICE 3,000 TO 4,999 KW SERVICE CLASSIFICATION | F72: 0 | G72: 0 | H72: 0 | I72: 0 | J72: 17295612 | K72: 41432.5 | L72: 17295612 | M72: 41432.5 | N72: 17295612 | O72: 41432.5
A73: 2016 | B73: CENTRE WELLINGTON HYDRO LTD. | C73: GENERAL SERVICE EQUAL TO OR GREATER THAN 50 KW | D73: GENERAL SERVICE 50 TO 2,999 KW | E73: CENTRE WELLINGTON HYDRO LTD._GENERAL SERVICE 50 TO 2,999 KW SERVICE CLASSIFICATION | F73: 9878416 | G73: 26083 | H73: 754224 | I73: 3028.85 | J73: 45012605.65 | K73: 119864.87 | L73: 45766829.65 | M73: 122893.72 | N73: 55645245.65 | O73: 148976.72
A74: 2016 | B74: CENTRE WELLINGTON HYDRO LTD. | C74: GENERAL SERVICE LESS THAN 50 KW | D74: GENERAL SERVICE LESS THAN 50 KW | E74: CENTRE WELLINGTON HYDRO LTD._GENERAL SERVICE LESS THAN 50 KW SERVICE CLASSIFICATION | F74: 4422972 | G74: 0 | H74: 16980621 | I74: 0 | J74: 5089 | K74: 0 | L74: 16985710 | M74: 0 | N74: 21408682 | O74: 0
A75: 2016 | B75: CENTRE WELLINGTON HYDRO LTD. | C75: RESIDENTIAL | D75: RESIDENTIAL | E75: CENTRE WELLINGTON HYDRO LTD._RESIDENTIAL SERVICE CLASSIFICATION | F75: 2576311 | G75: 0 | H75: 42520616.6 | I75: 0 | J75: 0 | K75: 0 | L75: 42520616.6 | M75: 0 | N75: 45096927.6 | O75: 0
A76: 2016 | B76: CENTRE WELLINGTON HYDRO LTD. | C76: SENTINEL LIGHTING CONNECTIONS | D76: SENTINEL LIGHTING | E76: CENTRE WELLINGTON HYDRO LTD._SENTINEL LIGHTING SERVICE CLASSIFICATION | F76: 12918 | G76: 36 | H76: 26352 | I76: 73.2 | J76: 0 | K76: 0 | L76: 26352 | M76: 73.2 | N76: 39270 | O76: 109.2
A77: 2016 | B77: CENTRE WELLINGTON HYDRO LTD. | C77: STREET LIGHTING CONNECTIONS | D77: STREET LIGHTING | E77: CENTRE WELLINGTON HYDRO LTD._STREET LIGHTING SERVICE CLASSIFICATION | F77: 0 | G77: 0 | H77: 0 | I77: 0 | J77: 976129 | K77: 2727.2 | L77: 976129 | M77: 2727.2 | N77: 976129 | O77: 2727.2
A78: 2016 | B78: CENTRE WELLINGTON HYDRO LTD. | C78: UNMETERED SCATTERED LOAD CONNECTIONS | D78: UNMETERED SCATTERED LOAD | E78: CENTRE WELLINGTON HYDRO LTD._UNMETERED SCATTERED LOAD SERVICE CLASSIFICATION | F78: 22368 | G78: 0 | H78: 541471 | I78: 0 | J78: 0 | K78: 0 | L78: 541471 | M78: 0 | N78: 563839 | O78: 0
A79: 2016 | B79: CHAPLEAU PUBLIC UTILITIES CORPORATION | C79: GENERAL SERVICE EQUAL TO OR GREATER THAN 50 KW | D79: GENERAL SERVICE 50 TO 4,999 KW | E79: CHAPLEAU PUBLIC UTILITIES CORPORATION_GENERAL SERVICE 50 TO 4,999 KW SERVICE CLASSIFICATION | F79: 728749 | G79: 1659 | H79: 0 | I79: 0 | J79: 6138854 | K79: 16402 | L79: 6138854 | M79: 16402 | N79: 6867603 | O79: 18061
A80: 2016 | B80: CHAPLEAU PUBLIC UTILITIES CORPORATION | C80: GENERAL SERVICE LESS THAN 50 KW | D80: GENERAL SERVICE LESS THAN 50 KW | E80: CHAPLEAU PUBLIC UTILITIES CORPORATION_GENERAL SERVICE LESS THAN 50 KW SERVICE CLASSIFICATION | F80: 127178 | G80: 0 | H80: 4780409 | I80: 0 | J80: 0 | K80: 0 | L80: 4780409 | M80: 0 | N80: 4907587 | O80: 0
A81: 2016 | B81: CHAPLEAU PUBLIC UTILITIES CORPORATION | C81: RESIDENTIAL | D81: RESIDENTIAL | E81: CHAPLEAU PUBLIC UTILITIES CORPORATION_RESIDENTIAL SERVICE CLASSIFICATION | F81: 78296 | G81: 0 | H81: 13648992 | I81: 0 | J81: 0 | K81: 0 | L81: 13648992 | M81: 0 | N81: 13727288 | O81: 0
A82: 2016 | B82: CHAPLEAU PUBLIC UTILITIES CORPORATION | C82: SENTINEL LIGHTING CONNECTIONS | D82: SENTINEL LIGHTING | E82: CHAPLEAU PUBLIC UTILITIES CORPORATION_SENTINEL LIGHTING SERVICE CLASSIFICATION | F82: 0 | G82: 0 | H82: 23735 | I82: 58.92 | J82: 0 | K82: 0 | L82: 23735 | M82: 58.92 | N82: 23735 | O82: 58.92
A83: 2016 | B83: CHAPLEAU PUBLIC UTILITIES CORPORATION | C83: STREET LIGHTING CONNECTIONS | D83: STREET LIGHTING | E83: CHAPLEAU PUBLIC UTILITIES CORPORATION_STREET LIGHTING SERVICE CLASSIFICATION | F83: 0 | G83: 0 | H83: 274259 | I83: 768 | J83: 0 | K83: 0 | L83: 274259 | M83: 768 | N83: 274259 | O83: 768
A84: 2016 | B84: CHAPLEAU PUBLIC UTILITIES CORPORATION | C84: UNMETERED SCATTERED LOAD CONNECTIONS | D84: UNMETERED SCATTERED LOAD | E84: CHAPLEAU PUBLIC UTILITIES CORPORATION_UNMETERED SCATTERED LOAD SERVICE CLASSIFICATION | F84: 0 | G84: 0 | H84: 2892 | I84: 0 | J84: 0 | K84: 0 | L84: 2892 | M84: 0 | N84: 2892 | O84: 0
A85: 2016 | B85: COLLUS POWERSTREAM CORP. | C85: GENERAL SERVICE EQUAL TO OR GREATER THAN 50 KW | D85: GENERAL SERVICE 50 TO 4,999 KW | E85: COLLUS POWERSTREAM CORP._GENERAL SERVICE 50 TO 4,999 KW SERVICE CLASSIFICATION | F85: 20401156 | G85: 52098 | H85: 9040610.3 | I85: 29901.57 | J85: 96056222.61 | K85: 220976 | L85: 105096832.9 | M85: 250877.57 | N85: 125497988.9 | O85: 302975.57
A86: 2016 | B86: COLLUS POWERSTREAM CORP. | C86: GENERAL SERVICE LESS THAN 50 KW | D86: GENERAL SERVICE LESS THAN 50 KW | E86: COLLUS POWERSTREAM CORP._GENERAL SERVICE LESS THAN 50 KW SERVICE CLASSIFICATION | F86: 8328216 | G86: 459 | H86: 37520762.26 | I86: 729.5 | J86: 555426.2 | K86: 3062.88 | L86: 38076188.46 | M86: 3792.38 | N86: 46404404.46 | O86: 4251.38
A87: 2016 | B87: COLLUS POWERSTREAM CORP. | C87: RESIDENTIAL | D87: RESIDENTIAL | E87: COLLUS POWERSTREAM CORP._RESIDENTIAL SERVICE CLASSIFICATION | F87: 7832983 | G87: 0 | H87: 113744317.3 | I87: 0 | J87: 0 | K87: 0 | L87: 113744317.3 | M87: 0 | N87: 121577300.3 | O87: 0
A88: 2016 | B88: COLLUS POWERSTREAM CORP. | C88: STREET LIGHTING CONNECTIONS | D88: STREET LIGHTING | E88: COLLUS POWERSTREAM CORP._STREET LIGHTING SERVICE CLASSIFICATION | F88: 251976 | G88: 708 | H88: 0 | I88: 0 | J88: 1932379.94 | K88: 5430.48 | L88: 1932379.94 | M88: 5430.48 | N88: 2184355.94 | O88: 6138.48
A89: 2016 | B89: COLLUS POWERSTREAM CORP. | C89: UNMETERED SCATTERED LOAD CONNECTIONS | D89: UNMETERED SCATTERED LOAD | E89: COLLUS POWERSTREAM CORP._UNMETERED SCATTERED LOAD SERVICE CLASSIFICATION | F89: 24519 | G89: 0 | H89: 374931.51 | I89: 0 | J89: 0 | K89: 0 | L89: 374931.51 | M89: 0 | N89: 399450.51 | O89: 0
A90: 2016 | B90: COOPERATIVE HYDRO EMBRUN INC. | C90: GENERAL SERVICE EQUAL TO OR GREATER THAN 50 KW | D90: GENERAL SERVICE 50 TO 4,999 KW | E90: COOPERATIVE HYDRO EMBRUN INC._GENERAL SERVICE 50 TO 4,999 KW SERVICE CLASSIFICATION | F90: 1290279 | G90: 0 | H90: 0 | I90: 0 | J90: 3026090 | K90: 12238 | L90: 3026090 | M90: 12238 | N90: 4316369 | O90: 12238
A91: 2016 | B91: COOPERATIVE HYDRO EMBRUN INC. | C91: GENERAL SERVICE LESS THAN 50 KW | D91: GENERAL SERVICE LESS THAN 50 KW | E91: COOPERATIVE HYDRO EMBRUN INC._GENERAL SERVICE LESS THAN 50 KW SERVICE CLASSIFICATION | F91: 331436 | G91: 0 | H91: 4262761 | I91: 0 | J91: 0 | K91: 0 | L91: 4262761 | M91: 0 | N91: 4594197 | O91: 0
A92: 2016 | B92: COOPERATIVE HYDRO EMBRUN INC. | C92: RESIDENTIAL | D92: RESIDENTIAL | E92: COOPERATIVE HYDRO EMBRUN INC._RESIDENTIAL SERVICE CLASSIFICATION | F92: 517654 | G92: 0 | H92: 18859886 | I92: 0 | J92: 0 | K92: 0 | L92: 18859886 | M92: 0 | N92: 19377540 | O92: 0
A93: 2016 | B93: COOPERATIVE HYDRO EMBRUN INC. | C93: STREET LIGHTING CONNECTIONS | D93: STREET LIGHTING | E93: COOPERATIVE HYDRO EMBRUN INC._STREET LIGHTING SERVICE CLASSIFICATION | F93: 373174 | G93: 0 | H93: 0 | I93: 0 | J93: 0 | K93: 1045 | L93: 0 | M93: 1045 | N93: 373174 | O93: 1045
A94: 2016 | B94: COOPERATIVE HYDRO EMBRUN INC. | C94: UNMETERED SCATTERED LOAD CONNECTIONS | D94: UNMETERED SCATTERED LOAD | E94: COOPERATIVE HYDRO EMBRUN INC._UNMETERED SCATTERED LOAD SERVICE CLASSIFICATION | F94: 12998 | G94: 0 | H94: 81286 | I94: 0 | J94: 0 | K94: 0 | L94: 81286 | M94: 0 | N94: 94284 | O94: 0
A95: 2016 | B95: E.L.K. ENERGY INC. | C95: EMBEDDED DISTRIBUTOR(S) | D95: EMBEDDED DISTRIBUTOR | E95: E.L.K. ENERGY INC._EMBEDDED DISTRIBUTOR SERVICE CLASSIFICATION | F95: 0 | G95: 0 | H95: 0 | I95: 0 | J95: 62245251 | K95: 135969 | L95: 62245251 | M95: 135969 | N95: 62245251 | O95: 135969
A96: 2016 | B96: E.L.K. ENERGY INC. | C96: GENERAL SERVICE EQUAL TO OR GREATER THAN 50 KW | D96: GENERAL SERVICE 50 TO 4,999 KW | E96: E.L.K. ENERGY INC._GENERAL SERVICE 50 TO 4,999 KW SERVICE CLASSIFICATION | F96: 0 | G96: 0 | H96: 2335086 | I96: 7813 | J96: 56042062 | K96: 187515 | L96: 58377148 | M96: 195328 | N96: 58377148 | O96: 195328
A97: 2016 | B97: E.L.K. ENERGY INC. | C97: GENERAL SERVICE LESS THAN 50 KW | D97: GENERAL SERVICE LESS THAN 50 KW | E97: E.L.K. ENERGY INC._GENERAL SERVICE LESS THAN 50 KW SERVICE CLASSIFICATION | F97: 0 | G97: 0 | H97: 25473582 | I97: 0 | J97: 3148420 | K97: 0 | L97: 28622002 | M97: 0 | N97: 28622002 | O97: 0
A98: 2016 | B98: E.L.K. ENERGY INC. | C98: RESIDENTIAL | D98: RESIDENTIAL | E98: E.L.K. ENERGY INC._RESIDENTIAL SERVICE CLASSIFICATION | F98: 1 | G98: 1 | H98: 85294090 | I98: 0 | J98: 5444303 | K98: 0 | L98: 90738393 | M98: 0 | N98: 90738394 | O98: 1
A99: 2016 | B99: E.L.K. ENERGY INC. | C99: SENTINEL LIGHTING CONNECTIONS | D99: SENTINEL LIGHTING | E99: E.L.K. ENERGY INC._SENTINEL LIGHTING SERVICE CLASSIFICATION | F99: 0 | G99: 0 | H99: 0 | I99: 0 | J99: 165452 | K99: 437 | L99: 165452 | M99: 437 | N99: 165452 | O99: 437
A100: 2016 | B100: E.L.K. ENERGY INC. | C100: STREET LIGHTING CONNECTIONS | D100: STREET LIGHTING | E100: E.L.K. ENERGY INC._STREET LIGHTING SERVICE CLASSIFICATION | F100: 0 | G100: 0 | H100: 0 | I100: 0 | J100: 2263158 | K100: 6398 | L100: 2263158 | M100: 6398 | N100: 2263158 | O100: 6398
A101: 2016 | B101: E.L.K. ENERGY INC. | C101: UNMETERED SCATTERED LOAD CONNECTIONS | D101: UNMETERED SCATTERED LOAD | E101: E.L.K. ENERGY INC._UNMETERED SCATTERED LOAD SERVICE CLASSIFICATION | F101: 0 | G101: 0 | H101: 0 | I101: 0 | J101: 259607 | K101: 0 | L101: 259607 | M101: 0 | N101: 259607 | O101: 0
A102: 2016 | B102: ENERSOURCE HYDRO MISSISSAUGA INC. | C102: GENERAL SERVICE EQUAL TO OR GREATER THAN 50 KW | D102: GENERAL SERVICE 50 TO 499 KW - INTERVAL METERED | E102: ENERSOURCE HYDRO MISSISSAUGA INC._GENERAL SERVICE 50 TO 499 KW - INTERVAL METERED SERVICE CLASSIFICATION | F102: 61681994.76 | G102: 142274 | H102: 22240156 | I102: 49031.59 | J102: 147967916 | K102: 369467.7 | L102: 170208072 | M102: 418499.29 | N102: 231890066.8 | O102: 560773.29 | P102: ENERSOURCE HYDRO MISSISSAUGA INC. | Q102: ENERSOURCE HYDRO MISSISSAUGA INC._GENERAL SERVICE 50 TO 499 KW - INTERVAL METERED SERVICE CLASSIFICATION
A103: 2016 | B103: ENERSOURCE HYDRO MISSISSAUGA INC. | C103: GENERAL SERVICE EQUAL TO OR GREATER THAN 50 KW | D103: GENERAL SERVICE 50 TO 499 KW - NON INTERVAL METERED | E103: ENERSOURCE HYDRO MISSISSAUGA INC._GENERAL SERVICE 50 TO 499 KW - NON INTERVAL METERED SERVICE CLASSIFICATION | F103: 321688708.9 | G103: 990349 | H103: 323634734 | I103: 893170.84 | J103: 1233871085 | K103: 3574747.38 | L103: 1557505819 | M103: 4467918.22 | N103: 1879194528 | O103: 5458267.22 | P103: ENERSOURCE HYDRO MISSISSAUGA INC. | Q103: ENERSOURCE HYDRO MISSISSAUGA INC._GENERAL SERVICE 50 TO 499 KW - NON INTERVAL METERED SERVICE CLASSIFICATION
A104: 2016 | B104: ENERSOURCE HYDRO MISSISSAUGA INC. | C104: GENERAL SERVICE EQUAL TO OR GREATER THAN 50 KW | D104: GENERAL SERVICE 50 TO 499 KW | E104: ENERSOURCE HYDRO MISSISSAUGA INC._GENERAL SERVICE 50 TO 499 KW SERVICE CLASSIFICATION | F104: =SUM(F102:F103) -> 383370703.7 | G104: =SUM(G102:G103) -> 1132623 | H104: 345874890 | I104: 942202.43 | J104: 1381839001 | K104: 3944215.08 | L104: 1727713891 | M104: 4886417.51 | N104: 2111084595 | O104: 6019040.51
A105: 2016 | B105: ENERSOURCE HYDRO MISSISSAUGA INC. | C105: GENERAL SERVICE EQUAL TO OR GREATER THAN 50 KW | D105: GENERAL SERVICE 500 TO 4,999 KW - INTERVAL METERED | E105: ENERSOURCE HYDRO MISSISSAUGA INC._GENERAL SERVICE 500 TO 4,999 KW - INTERVAL METERED SERVICE CLASSIFICATION | F105: 430881491.5 | G105: 880399 | H105: 69463330 | I105: 147396.18 | J105: 1019039521 | K105: 2306857.91 | L105: 1088502851 | M105: 2454254.09 | N105: 1519384343 | O105: 3334653.09 | P105: ENERSOURCE HYDRO MISSISSAUGA INC. | Q105: ENERSOURCE HYDRO MISSISSAUGA INC._GENERAL SERVICE 500 TO 4,999 KW - INTERVAL METERED SERVICE CLASSIFICATION
A106: 2016 | B106: ENERSOURCE HYDRO MISSISSAUGA INC. | C106: GENERAL SERVICE EQUAL TO OR GREATER THAN 50 KW | D106: GENERAL SERVICE 500 TO 4,999 KW - NON INTERVAL METERED | E106: ENERSOURCE HYDRO MISSISSAUGA INC._GENERAL SERVICE 500 TO 4,999 KW - NON INTERVAL METERED SERVICE CLASSIFICATION | F106: 52532123.48 | G106: 125298 | H106: 97513004 | I106: 207783.18 | J106: 328830618 | K106: 875780.65 | L106: 426343622 | M106: 1083563.83 | N106: 478875745.5 | O106: 1208861.83 | P106: ENERSOURCE HYDRO MISSISSAUGA INC. | Q106: ENERSOURCE HYDRO MISSISSAUGA INC._GENERAL SERVICE 500 TO 4,999 KW - NON INTERVAL METERED SERVICE CLASSIFICATION
A107: 2016 | B107: ENERSOURCE HYDRO MISSISSAUGA INC. | C107: GENERAL SERVICE EQUAL TO OR GREATER THAN 50 KW | D107: GENERAL SERVICE 500 TO 4,999 KW | E107: ENERSOURCE HYDRO MISSISSAUGA INC._GENERAL SERVICE 500 TO 4,999 KW SERVICE CLASSIFICATION | F107: =SUM(F105:F106) -> 483413615 | G107: =SUM(G105:G106) -> 1005697 | H107: 166976334 | I107: 355179.36 | J107: 1347870139 | K107: 3182638.56 | L107: 1514846473 | M107: 3537817.92 | N107: 1998260088 | O107: 4543514.92
A108: 2016 | B108: ENERSOURCE HYDRO MISSISSAUGA INC. | C108: GENERAL SERVICE LESS THAN 50 KW | D108: GENERAL SERVICE LESS THAN 50 KW | E108: ENERSOURCE HYDRO MISSISSAUGA INC._GENERAL SERVICE LESS THAN 50 KW SERVICE CLASSIFICATION | F108: 109960337.6 | G108: 0 | H108: 540980684 | I108: 0 | J108: 0 | K108: 0 | L108: 540980684 | M108: 0 | N108: 650941021.6 | O108: 0
A109: 2016 | B109: ENERSOURCE HYDRO MISSISSAUGA INC. | C109: LARGE USER | D109: LARGE USE - CLASS A CUSTOMERS | E109: ENERSOURCE HYDRO MISSISSAUGA INC._LARGE USE - CLASS A CUSTOMERS SERVICE CLASSIFICATION | F109: 356754141.8 | G109: 669070 | H109: 0 | I109: 0 | J109: 525307049 | K109: 966474.61 | L109: 525307049 | M109: 966474.61 | N109: 882061190.8 | O109: 1635544.61 | P109: ENERSOURCE HYDRO MISSISSAUGA INC. | Q109: ENERSOURCE HYDRO MISSISSAUGA INC._LARGE USE - CLASS A CUSTOMERS SERVICE CLASSIFICATION
A110: 2016 | B110: ENERSOURCE HYDRO MISSISSAUGA INC. | C110: LARGE USER | D110: LARGE USE - CLASS B CUSTOMERS | E110: ENERSOURCE HYDRO MISSISSAUGA INC._LARGE USE - CLASS B CUSTOMERS SERVICE CLASSIFICATION | F110: 0 | G110: 0 | H110: 0 | I110: 0 | J110: 49828833 | K110: 97086.31 | L110: 49828833 | M110: 97086.31 | N110: 49828833 | O110: 97086.31 | P110: ENERSOURCE HYDRO MISSISSAUGA INC. | Q110: ENERSOURCE HYDRO MISSISSAUGA INC._LARGE USE - CLASS B CUSTOMERS SERVICE CLASSIFICATION
A111: 2016 | B111: ENERSOURCE HYDRO MISSISSAUGA INC. | C111: LARGE USER | D111: LARGE USE | E111: ENERSOURCE HYDRO MISSISSAUGA INC._LARGE USE SERVICE CLASSIFICATION | F111: =SUM(F109:F110) -> 356754141.8 | G111: =SUM(G109:G110) -> 669070 | H111: 0 | I111: 0 | J111: 575135882 | K111: 1063560.92 | L111: 575135882 | M111: 1063560.92 | N111: 931890023.8 | O111: 1732630.92
A112: 2016 | B112: ENERSOURCE HYDRO MISSISSAUGA INC. | C112: RESIDENTIAL | D112: RESIDENTIAL | E112: ENERSOURCE HYDRO MISSISSAUGA INC._RESIDENTIAL SERVICE CLASSIFICATION | F112: 82426794.57 | G112: 0 | H112: 1393242590 | I112: 0 | J112: 0 | K112: 0 | L112: 1393242590 | M112: 0 | N112: 1475669385 | O112: 0
A113: 2016 | B113: ENERSOURCE HYDRO MISSISSAUGA INC. | C113: STREET LIGHTING CONNECTIONS | D113: STREET LIGHTING | E113: ENERSOURCE HYDRO MISSISSAUGA INC._STREET LIGHTING SERVICE CLASSIFICATION | F113: 0 | G113: 0 | H113: 0 | I113: 0 | J113: 25086656 | K113: 71868.66 | L113: 25086656 | M113: 71868.66 | N113: 25086656 | O113: 71868.66
A114: 2016 | B114: ENERSOURCE HYDRO MISSISSAUGA INC. | C114: UNMETERED SCATTERED LOAD CONNECTIONS | D114: UNMETERED SCATTERED LOAD | E114: ENERSOURCE HYDRO MISSISSAUGA INC._UNMETERED SCATTERED LOAD SERVICE CLASSIFICATION | F114: 512004.52 | G114: 0 | H114: 10240932 | I114: 0 | J114: 0 | K114: 0 | L114: 10240932 | M114: 0 | N114: 10752936.52 | O114: 0
A115: 2016 | B115: ENTEGRUS POWERLINES INC. | C115: GENERAL SERVICE EQUAL TO OR GREATER THAN 50 KW | D115: GENERAL SERVICE 50 TO 4,999 KW - NEWBURY | E115: ENTEGRUS POWERLINES INC._GENERAL SERVICE 50 TO 4,999 KW - NEWBURY SERVICE CLASSIFICATION | F115: 953822.42 | G115: 1910 | H115: 58232.32 | I115: 175.4 | J115: 517713.26 | K115: 1462.95 | L115: 575945.58 | M115: 1638.35 | N115: 1529768 | O115: 3548.35 | P115: ENTEGRUS POWERLINES INC. | Q115: ENTEGRUS POWERLINES INC._GENERAL SERVICE 50 TO 4,999 KW - NEWBURY SERVICE CLASSIFICATION
A116: 2016 | B116: ENTEGRUS POWERLINES INC. | C116: GENERAL SERVICE EQUAL TO OR GREATER THAN 50 KW | D116: GENERAL SERVICE 50 TO 4,999 KW - STRATHROY, MOUNT BRYDGES AND PARKHILLICE AREAS | E116: ENTEGRUS POWERLINES INC._GENERAL SERVICE 50 TO 4,999 KW - STRATHROY, MOUNT BRYDGES AND PARKHILLICE AREAS SERVICE CLASSIFICATION | F116: 11969320.88 | G116: 29079 | H116: 6172522.55 | I116: 17256.76 | J116: 86323011.61 | K116: 188865.29 | L116: 92495534.16 | M116: 206122.05 | N116: 104464855 | O116: 235201.05 | P116: ENTEGRUS POWERLINES INC. | Q116: ENTEGRUS POWERLINES INC._GENERAL SERVICE 50 TO 4,999 KW - STRATHROY, MOUNT BRYDGES AND PARKHILLICE AREAS SERVICE CLASSIFICATION
A117: 2016 | B117: ENTEGRUS POWERLINES INC. | C117: GENERAL SERVICE EQUAL TO OR GREATER THAN 50 KW | D117: GENERAL SERVICE 50 TO 999 KW - CHATHAM-KENT HYDRO | E117: ENTEGRUS POWERLINES INC._GENERAL SERVICE 50 TO 999 KW - CHATHAM-KENT HYDRO SERVICE CLASSIFICATION | F117: 54682160.99 | G117: 160156 | H117: 41399755.34 | I117: 115964.79 | J117: 144885581.3 | K117: 394694.87 | L117: 186285336.6 | M117: 510659.66 | N117: 240967497.6 | O117: 670815.66 | P117: ENTEGRUS POWERLINES INC. | Q117: ENTEGRUS POWERLINES INC._GENERAL SERVICE 50 TO 999 KW - CHATHAM-KENT HYDRO SERVICE CLASSIFICATION
A118: 2016 | B118: ENTEGRUS POWERLINES INC. | C118: GENERAL SERVICE EQUAL TO OR GREATER THAN 50 KW | D118: GENERAL SERVICE INTERMEDIATE 1,000 TO 4,999 KW - CHATHAM-KENT HYDRO | E118: ENTEGRUS POWERLINES INC._GENERAL SERVICE INTERMEDIATE 1,000 TO 4,999 KW - CHATHAM-KENT HYDRO SERVICE CLASSIFICATION | F118: 38837452.83 | G118: 82157 | H118: 0 | I118: 0 | J118: 81493051.98 | K118: 207120.58 | L118: 81493051.98 | M118: 207120.58 | N118: 120330504.8 | O118: 289277.58 | P118: ENTEGRUS POWERLINES INC. | Q118: ENTEGRUS POWERLINES INC._GENERAL SERVICE INTERMEDIATE 1,000 TO 4,999 KW - CHATHAM-KENT HYDRO SERVICE CLASSIFICATION
A119: 2016 | B119: ENTEGRUS POWERLINES INC. | C119: GENERAL SERVICE EQUAL TO OR GREATER THAN 50 KW | D119: GENERAL SERVICE 50 TO 4,999 KW | E119: ENTEGRUS POWERLINES INC._GENERAL SERVICE 50 TO 4,999 KW SERVICE CLASSIFICATION | F119: =SUM(F115:F118) -> 106442757.1 | G119: =SUM(G115:G118) -> 273302 | H119: 47630510.21 | I119: 133396.95 | J119: 313219358.2 | K119: 792143.69 | L119: 360849868.4 | M119: 925540.64 | N119: 467292625.5 | O119: 1198842.64
A120: 2016 | B120: ENTEGRUS POWERLINES INC. | C120: GENERAL SERVICE EQUAL TO OR GREATER THAN 50 KW | D120: INTERMEDIATE WITH SELF GENERATION - CHATHAM-KENT HYDRO | E120: ENTEGRUS POWERLINES INC._INTERMEDIATE WITH SELF GENERATION - CHATHAM-KENT HYDRO SERVICE CLASSIFICATION | F120: 0 | G120: 0 | H120: 0 | I120: 0 | J120: 27688080.21 | K120: 86830 | L120: 27688080.21 | M120: 86830 | N120: 27688080.21 | O120: 86830 | P120: ENTEGRUS POWERLINES INC. | Q120: ENTEGRUS POWERLINES INC._INTERMEDIATE WITH SELF GENERATION - CHATHAM-KENT HYDRO SERVICE CLASSIFICATION
A121: 2016 | B121: ENTEGRUS POWERLINES INC. | C121: GENERAL SERVICE LESS THAN 50 KW | D121: GENERAL SERVICE LESS THAN 50 KW - CHATHAM-KENT HYDRO | E121: ENTEGRUS POWERLINES INC._GENERAL SERVICE LESS THAN 50 KW - CHATHAM-KENT HYDRO SERVICE CLASSIFICATION | F121: 14347259.97 | G121: 0 | H121: 74992835.68 | I121: 0 | J121: 0 | K121: 0 | L121: 74992835.68 | M121: 0 | N121: 89340095.65 | O121: 0 | P121: ENTEGRUS POWERLINES INC. | Q121: ENTEGRUS POWERLINES INC._GENERAL SERVICE LESS THAN 50 KW - CHATHAM-KENT HYDRO SERVICE CLASSIFICATION
A122: 2016 | B122: ENTEGRUS POWERLINES INC. | C122: GENERAL SERVICE LESS THAN 50 KW | D122: GENERAL SERVICE LESS THAN 50 KW - DUTTON | E122: ENTEGRUS POWERLINES INC._GENERAL SERVICE LESS THAN 50 KW - DUTTON SERVICE CLASSIFICATION | F122: 133334.36 | G122: 0 | H122: 3195549.64 | I122: 0 | J122: 0 | K122: 0 | L122: 3195549.64 | M122: 0 | N122: 3328884 | O122: 0 | P122: ENTEGRUS POWERLINES INC. | Q122: ENTEGRUS POWERLINES INC._GENERAL SERVICE LESS THAN 50 KW - DUTTON SERVICE CLASSIFICATION
A123: 2016 | B123: ENTEGRUS POWERLINES INC. | C123: GENERAL SERVICE LESS THAN 50 KW | D123: GENERAL SERVICE LESS THAN 50 KW - NEWBURY | E123: ENTEGRUS POWERLINES INC._GENERAL SERVICE LESS THAN 50 KW - NEWBURY SERVICE CLASSIFICATION | F123: 22997.65 | G123: 0 | H123: 570116.35 | I123: 0 | J123: 0 | K123: 0 | L123: 570116.35 | M123: 0 | N123: 593114 | O123: 0 | P123: ENTEGRUS POWERLINES INC. | Q123: ENTEGRUS POWERLINES INC._GENERAL SERVICE LESS THAN 50 KW - NEWBURY SERVICE CLASSIFICATION
A124: 2016 | B124: ENTEGRUS POWERLINES INC. | C124: GENERAL SERVICE LESS THAN 50 KW | D124: GENERAL SERVICE LESS THAN 50 KW - STRATHROY, MOUNT BRYDGES AND PARKHILLVICE AREAS | E124: ENTEGRUS POWERLINES INC._GENERAL SERVICE LESS THAN 50 KW - STRATHROY, MOUNT BRYDGES AND PARKHILLVICE AREAS SERVICE CLASSIFICATION | F124: 3742300.32 | G124: 0 | H124: 14895973.08 | I124: 0 | J124: 0 | K124: 0 | L124: 14895973.08 | M124: 0 | N124: 18638273.4 | O124: 0 | P124: ENTEGRUS POWERLINES INC. | Q124: ENTEGRUS POWERLINES INC._GENERAL SERVICE LESS THAN 50 KW - STRATHROY, MOUNT BRYDGES AND PARKHILLVICE AREAS SERVICE CLASSIFICATION
A125: 2016 | B125: ENTEGRUS POWERLINES INC. | C125: GENERAL SERVICE LESS THAN 50 KW | D125: GENERAL SERVICE LESS THAN 50 KW | E125: ENTEGRUS POWERLINES INC._GENERAL SERVICE LESS THAN 50 KW SERVICE CLASSIFICATION | F125: =SUM(F121:F124) -> 18245892.3 | G125: =SUM(G121:G124) -> 0 | H125: 93654474.75 | I125: 0 | J125: 0 | K125: 0 | L125: 93654474.75 | M125: 0 | N125: 111900367.1 | O125: 0
A126: 2016 | B126: ENTEGRUS POWERLINES INC. | C126: LARGE USER | D126: LARGE USE - STRATHROY, MOUNT BRYDGES AND PARKHILL | E126: ENTEGRUS POWERLINES INC._LARGE USE - STRATHROY, MOUNT BRYDGES AND PARKHILL SERVICE CLASSIFICATION | F126: 0 | G126: 0 | H126: 0 | I126: 0 | J126: 30928749.49 | K126: 62210 | L126: 30928749.49 | M126: 62210 | N126: 30928749.49 | O126: 62210 | P126: ENTEGRUS POWERLINES INC. | Q126: ENTEGRUS POWERLINES INC._LARGE USE - STRATHROY, MOUNT BRYDGES AND PARKHILL SERVICE CLASSIFICATION
A127: 2016 | B127: ENTEGRUS POWERLINES INC. | C127: LARGE USER | D127: LARGE USE | E127: ENTEGRUS POWERLINES INC._LARGE USE SERVICE CLASSIFICATION | F127: =F120+F126 -> 0 | G127: =G120+G126 -> 0 | H127: 0 | I127: 0 | J127: 58616829.7 | K127: 149040 | L127: 58616829.7 | M127: 149040 | N127: 58616829.7 | O127: 149040
A128: 2016 | B128: ENTEGRUS POWERLINES INC. | C128: RESIDENTIAL | D128: RESIDENTIAL - CHATHAM-KENT HYDRO | E128: ENTEGRUS POWERLINES INC._RESIDENTIAL - CHATHAM-KENT HYDRO SERVICE CLASSIFICATION | F128: 16860541.2 | G128: 0 | H128: 202217668.3 | I128: 0 | J128: 0 | K128: 0 | L128: 202217668.3 | M128: 0 | N128: 219078209.5 | O128: 0 | P128: ENTEGRUS POWERLINES INC. | Q128: ENTEGRUS POWERLINES INC._RESIDENTIAL - CHATHAM-KENT HYDRO SERVICE CLASSIFICATION
A129: 2016 | B129: ENTEGRUS POWERLINES INC. | C129: RESIDENTIAL | D129: RESIDENTIAL - DUTTON | E129: ENTEGRUS POWERLINES INC._RESIDENTIAL - DUTTON SERVICE CLASSIFICATION | F129: 419902.43 | G129: 0 | H129: 4039081.57 | I129: 0 | J129: 0 | K129: 0 | L129: 4039081.57 | M129: 0 | N129: 4458984 | O129: 0 | P129: ENTEGRUS POWERLINES INC. | Q129: ENTEGRUS POWERLINES INC._RESIDENTIAL - DUTTON SERVICE CLASSIFICATION
A130: 2016 | B130: ENTEGRUS POWERLINES INC. | C130: RESIDENTIAL | D130: RESIDENTIAL - NEWBURY | E130: ENTEGRUS POWERLINES INC._RESIDENTIAL - NEWBURY SERVICE CLASSIFICATION | F130: 147250.48 | G130: 0 | H130: 1167882.52 | I130: 0 | J130: 0 | K130: 0 | L130: 1167882.52 | M130: 0 | N130: 1315133 | O130: 0 | P130: ENTEGRUS POWERLINES INC. | Q130: ENTEGRUS POWERLINES INC._RESIDENTIAL - NEWBURY SERVICE CLASSIFICATION
A131: 2016 | B131: ENTEGRUS POWERLINES INC. | C131: RESIDENTIAL | D131: RESIDENTIAL - STRATHROY, MOUNT BRYDGES AND PARKHILL | E131: ENTEGRUS POWERLINES INC._RESIDENTIAL - STRATHROY, MOUNT BRYDGES AND PARKHILL SERVICE CLASSIFICATION | F131: 5232594.36 | G131: 0 | H131: 50660529.4 | I131: 0 | J131: 0 | K131: 0 | L131: 50660529.4 | M131: 0 | N131: 55893123.76 | O131: 0 | P131: ENTEGRUS POWERLINES INC. | Q131: ENTEGRUS POWERLINES INC._RESIDENTIAL - STRATHROY, MOUNT BRYDGES AND PARKHILL SERVICE CLASSIFICATION
A132: 2016 | B132: ENTEGRUS POWERLINES INC. | C132: RESIDENTIAL | D132: RESIDENTIAL | E132: ENTEGRUS POWERLINES INC._RESIDENTIAL SERVICE CLASSIFICATION | F132: =SUM(F128:F131) -> 22660288.47 | G132: =SUM(G128:G131) -> 0 | H132: 258085161.8 | I132: 0 | J132: 0 | K132: 0 | L132: 258085161.8 | M132: 0 | N132: 280745450.3 | O132: 0
A133: 2016 | B133: ENTEGRUS POWERLINES INC. | C133: SENTINEL LIGHTING CONNECTIONS | D133: SENTINEL LIGHTING - CHATHAM-KENT HYDRO | E133: ENTEGRUS POWERLINES INC._SENTINEL LIGHTING - CHATHAM-KENT HYDRO SERVICE CLASSIFICATION | F133: 6209.02 | G133: 0 | H133: 347478.98 | I133: 983.24 | J133: 0 | K133: 0 | L133: 347478.98 | M133: 983.24 | N133: 353688 | O133: 983.24 | P133: ENTEGRUS POWERLINES INC. | Q133: ENTEGRUS POWERLINES INC._SENTINEL LIGHTING - CHATHAM-KENT HYDRO SERVICE CLASSIFICATION
A134: 2016 | B134: ENTEGRUS POWERLINES INC. | C134: SENTINEL LIGHTING CONNECTIONS | D134: SENTINEL LIGHTING - DUTTON | E134: ENTEGRUS POWERLINES INC._SENTINEL LIGHTING - DUTTON SERVICE CLASSIFICATION | F134: 0 | G134: 0 | H134: 881 | I134: 2 | J134: 0 | K134: 0 | L134: 881 | M134: 2 | N134: 881 | O134: 2 | P134: ENTEGRUS POWERLINES INC. | Q134: ENTEGRUS POWERLINES INC._SENTINEL LIGHTING - DUTTON SERVICE CLASSIFICATION
A135: 2016 | B135: ENTEGRUS POWERLINES INC. | C135: SENTINEL LIGHTING CONNECTIONS | D135: SENTINEL LIGHTING - STRATHROY, MOUNT BRYDGES AND PARKHILL | E135: ENTEGRUS POWERLINES INC._SENTINEL LIGHTING - STRATHROY, MOUNT BRYDGES AND PARKHILL SERVICE CLASSIFICATION | F135: 277.4 | G135: 0 | H135: 43479.58 | I135: 120.9 | J135: 0 | K135: 0 | L135: 43479.58 | M135: 120.9 | N135: 43756.98 | O135: 120.9 | P135: ENTEGRUS POWERLINES INC. | Q135: ENTEGRUS POWERLINES INC._SENTINEL LIGHTING - STRATHROY, MOUNT BRYDGES AND PARKHILL SERVICE CLASSIFICATION
A136: 2016 | B136: ENTEGRUS POWERLINES INC. | C136: SENTINEL LIGHTING CONNECTIONS | D136: SENTINEL LIGHTING | E136: ENTEGRUS POWERLINES INC._SENTINEL LIGHTING SERVICE CLASSIFICATION | F136: =SUM(F133:F135) -> 6486.42 | G136: =SUM(G133:G135) -> 0 | H136: 391839.56 | I136: 1106.14 | J136: 0 | K136: 0 | L136: 391839.56 | M136: 1106.14 | N136: 398325.98 | O136: 1106.14
A137: 2016 | B137: ENTEGRUS POWERLINES INC. | C137: STREET LIGHTING CONNECTIONS | D137: STREET LIGHTING - CHATHAM-KENT HYDRO | E137: ENTEGRUS POWERLINES INC._STREET LIGHTING - CHATHAM-KENT HYDRO SERVICE CLASSIFICATION | F137: 0 | G137: 0 | H137: 0 | I137: 0 | J137: 5926383.7 | K137: 17520.12 | L137: 5926383.7 | M137: 17520.12 | N137: 5926383.7 | O137: 17520.12 | P137: ENTEGRUS POWERLINES INC. | Q137: ENTEGRUS POWERLINES INC._STREET LIGHTING - CHATHAM-KENT HYDRO SERVICE CLASSIFICATION
A138: 2016 | B138: ENTEGRUS POWERLINES INC. | C138: STREET LIGHTING CONNECTIONS | D138: STREET LIGHTING - DUTTON | E138: ENTEGRUS POWERLINES INC._STREET LIGHTING - DUTTON SERVICE CLASSIFICATION | F138: 0 | G138: 0 | H138: 0 | I138: 0 | J138: 116024 | K138: 343.4 | L138: 116024 | M138: 343.4 | N138: 116024 | O138: 343.4 | P138: ENTEGRUS POWERLINES INC. | Q138: ENTEGRUS POWERLINES INC._STREET LIGHTING - DUTTON SERVICE CLASSIFICATION
A139: 2016 | B139: ENTEGRUS POWERLINES INC. | C139: STREET LIGHTING CONNECTIONS | D139: STREET LIGHTING - NEWBURY | E139: ENTEGRUS POWERLINES INC._STREET LIGHTING - NEWBURY SERVICE CLASSIFICATION | F139: 0 | G139: 0 | H139: 0 | I139: 0 | J139: 55093 | K139: 163.1 | L139: 55093 | M139: 163.1 | N139: 55093 | O139: 163.1 | P139: ENTEGRUS POWERLINES INC. | Q139: ENTEGRUS POWERLINES INC._STREET LIGHTING - NEWBURY SERVICE CLASSIFICATION
A140: 2016 | B140: ENTEGRUS POWERLINES INC. | C140: STREET LIGHTING CONNECTIONS | D140: STREET LIGHTING - STRATHROY, MOUNT BRYDGES AND PARKHILL | E140: ENTEGRUS POWERLINES INC._STREET LIGHTING - STRATHROY, MOUNT BRYDGES AND PARKHILL SERVICE CLASSIFICATION | F140: 96717.37 | G140: 270 | H140: 0 | I140: 0 | J140: 1235616.33 | K140: 3696.82 | L140: 1235616.33 | M140: 3696.82 | N140: 1332333.7 | O140: 3966.82 | P140: ENTEGRUS POWERLINES INC. | Q140: ENTEGRUS POWERLINES INC._STREET LIGHTING - STRATHROY, MOUNT BRYDGES AND PARKHILL SERVICE CLASSIFICATION
A141: 2016 | B141: ENTEGRUS POWERLINES INC. | C141: STREET LIGHTING CONNECTIONS | D141: STREET LIGHTING | E141: ENTEGRUS POWERLINES INC._STREET LIGHTING SERVICE CLASSIFICATION | F141: =SUM(F137:F140) -> 96717.37 | G141: =SUM(G137:G140) -> 270 | H141: 0 | I141: 0 | J141: 7333117.03 | K141: 21723.44 | L141: 7333117.03 | M141: 21723.44 | N141: 7429834.4 | O141: 21993.44
A142: 2016 | B142: ENTEGRUS POWERLINES INC. | C142: UNMETERED SCATTERED LOAD CONNECTIONS | D142: UNMETERED SCATTERED LOAD - CHATHAM-KENT HYDRO | E142: ENTEGRUS POWERLINES INC._UNMETERED SCATTERED LOAD - CHATHAM-KENT HYDRO SERVICE CLASSIFICATION | F142: 0 | G142: 0 | H142: 922042.96 | I142: 0 | J142: 0 | K142: 0 | L142: 922042.96 | M142: 0 | N142: 922042.96 | O142: 0 | P142: ENTEGRUS POWERLINES INC. | Q142: ENTEGRUS POWERLINES INC._UNMETERED SCATTERED LOAD - CHATHAM-KENT HYDRO SERVICE CLASSIFICATION
A143: 2016 | B143: ENTEGRUS POWERLINES INC. | C143: UNMETERED SCATTERED LOAD CONNECTIONS | D143: UNMETERED SCATTERED LOAD - STRATHROY, MOUNT BRYDGES AND PARKHILL | E143: ENTEGRUS POWERLINES INC._UNMETERED SCATTERED LOAD - STRATHROY, MOUNT BRYDGES AND PARKHILL SERVICE CLASSIFICATION | F143: 0 | G143: 0 | H143: 325760 | I143: 0 | J143: 0 | K143: 0 | L143: 325760 | M143: 0 | N143: 325760 | O143: 0 | P143: ENTEGRUS POWERLINES INC. | Q143: ENTEGRUS POWERLINES INC._UNMETERED SCATTERED LOAD - STRATHROY, MOUNT BRYDGES AND PARKHILL SERVICE CLASSIFICATION
A144: 2016 | B144: ENTEGRUS POWERLINES INC. | C144: UNMETERED SCATTERED LOAD CONNECTIONS | D144: UNMETERED SCATTERED LOAD | E144: ENTEGRUS POWERLINES INC._UNMETERED SCATTERED LOAD SERVICE CLASSIFICATION | F144: =SUM(F142:F143) -> 0 | G144: =SUM(G142:G143) -> 0 | H144: 1247802.96 | I144: 0 | J144: 0 | K144: 0 | L144: 1247802.96 | M144: 0 | N144: 1247802.96 | O144: 0
A145: 2016 | B145: ENWIN UTILITIES LTD. | C145: GENERAL SERVICE EQUAL TO OR GREATER THAN 50 KW | D145: GENERAL SERVICE 3,000 TO 4,999 KW - FORMER TOU | E145: ENWIN UTILITIES LTD._GENERAL SERVICE 3,000 TO 4,999 KW - INTERMEDIATE USE SERVICE CLASSIFICATION | F145: 0 | G145: 0 | H145: 0 | I145: 0 | J145: 44363940.88 | K145: 128585.57 | L145: 44363940.88 | M145: 128585.57 | N145: 44363940.88 | O145: 128585.57 | P145: ENWIN UTILITIES LTD. | Q145: ENWIN UTILITIES LTD._GENERAL SERVICE 3,000 TO 4,999 KW - INTERMEDIATE USE SERVICE CLASSIFICATION
A146: 2016 | B146: ENWIN UTILITIES LTD. | C146: GENERAL SERVICE EQUAL TO OR GREATER THAN 50 KW | D146: GENERAL SERVICE 50 TO 4,999 KW | E146: ENWIN UTILITIES LTD._GENERAL SERVICE 50 TO 4,999 KW SERVICE CLASSIFICATION | F146: 174752141.2 | G146: 468512 | H146: 191415995.8 | I146: 490048.72 | J146: 577037480.6 | K146: 1454493.73 | L146: 768453476.5 | M146: 1944542.45 | N146: 943205617.7 | O146: 2413054.45
A147: 2016 | B147: ENWIN UTILITIES LTD. | C147: GENERAL SERVICE LESS THAN 50 KW | D147: GENERAL SERVICE LESS THAN 50 KW | E147: ENWIN UTILITIES LTD._GENERAL SERVICE LESS THAN 50 KW SERVICE CLASSIFICATION | F147: 34745536.8 | G147: 0 | H147: 174375677.2 | I147: 0 | J147: 0 | K147: 0 | L147: 174375677.2 | M147: 0 | N147: 209121214 | O147: 0
A148: 2016 | B148: ENWIN UTILITIES LTD. | C148: LARGE USER | D148: LARGE USE - 3TS | E148: ENWIN UTILITIES LTD._LARGE USE - 3TS SERVICE CLASSIFICATION | F148: 0 | G148: 0 | H148: 0 | I148: 0 | J148: 241052438.8 | K148: 487724.93 | L148: 241052438.8 | M148: 487724.93 | N148: 241052438.8 | O148: 487724.93 | P148: ENWIN UTILITIES LTD. | Q148: ENWIN UTILITIES LTD._LARGE USE - 3TS SERVICE CLASSIFICATION
A149: 2016 | B149: ENWIN UTILITIES LTD. | C149: LARGE USER | D149: LARGE USE - FORD ANNEX | E149: ENWIN UTILITIES LTD._LARGE USE - FORD ANNEX SERVICE CLASSIFICATION | F149: 0 | G149: 0 | H149: 0 | I149: 0 | J149: 47202925.82 | K149: 82844.53 | L149: 47202925.82 | M149: 82844.53 | N149: 47202925.82 | O149: 82844.53 | P149: ENWIN UTILITIES LTD. | Q149: ENWIN UTILITIES LTD._LARGE USE - FORD ANNEX SERVICE CLASSIFICATION
A150: 2016 | B150: ENWIN UTILITIES LTD. | C150: LARGE USER | D150: LARGE USE - REGULAR | E150: ENWIN UTILITIES LTD._LARGE USE - REGULAR SERVICE CLASSIFICATION | F150: 24214121.3 | G150: 73464 | H150: 0 | I150: 0 | J150: 276980348 | K150: 485855.81 | L150: 276980348 | M150: 485855.81 | N150: 301194469.3 | O150: 559319.81 | P150: ENWIN UTILITIES LTD. | Q150: ENWIN UTILITIES LTD._LARGE USE - REGULAR SERVICE CLASSIFICATION
A151: 2016 | B151: ENWIN UTILITIES LTD. | C151: RESIDENTIAL | D151: RESIDENTIAL | E151: ENWIN UTILITIES LTD._RESIDENTIAL SERVICE CLASSIFICATION | F151: 30900103.9 | G151: 0 | H151: 568006955.2 | I151: 0 | J151: 0 | K151: 0 | L151: 568006955.2 | M151: 0 | N151: 598907059.1 | O151: 0
A152: 2016 | B152: ENWIN UTILITIES LTD. | C152: SENTINEL LIGHTING CONNECTIONS | D152: SENTINEL LIGHTING | E152: ENWIN UTILITIES LTD._SENTINEL LIGHTING SERVICE CLASSIFICATION | F152: 58012 | G152: 157 | H152: 823714.68 | I152: 2293.64 | J152: 0 | K152: 0 | L152: 823714.68 | M152: 2293.64 | N152: 881726.68 | O152: 2450.64
A153: 2016 | B153: ENWIN UTILITIES LTD. | C153: STREET LIGHTING CONNECTIONS | D153: STREET LIGHTING | E153: ENWIN UTILITIES LTD._STREET LIGHTING SERVICE CLASSIFICATION | F153: 0 | G153: 0 | H153: 10890.8 | I153: 31.89 | J153: 17151516.73 | K153: 49113.48 | L153: 17162407.53 | M153: 49145.37 | N153: 17162407.53 | O153: 49145.37
A154: 2016 | B154: ENWIN UTILITIES LTD. | C154: UNMETERED SCATTERED LOAD CONNECTIONS | D154: UNMETERED SCATTERED LOAD | E154: ENWIN UTILITIES LTD._UNMETERED SCATTERED LOAD SERVICE CLASSIFICATION | F154: 363906 | G154: 0 | H154: 240196.8 | I154: 0 | J154: 1689700.2 | K154: 0 | L154: 1929897 | M154: 0 | N154: 2293803 | O154: 0
A155: 2016 | B155: ERIE THAMES POWERLINES CORPORATION | C155: EMBEDDED DISTRIBUTOR(S) | D155: EMBEDDED DISTRIBUTOR | E155: ERIE THAMES POWERLINES CORPORATION_EMBEDDED DISTRIBUTOR SERVICE CLASSIFICATION | F155: 0 | G155: 0 | H155: 0 | I155: 0 | J155: 16862049 | K155: 36700.7 | L155: 16862049 | M155: 36700.7 | N155: 16862049 | O155: 36700.7
A156: 2016 | B156: ERIE THAMES POWERLINES CORPORATION | C156: EMBEDDED DISTRIBUTOR(S) | D156: EMBEDDED DISTRIBUTOR - CLINTON POWER AND WEST PERTH POWER | E156: ERIE THAMES POWERLINES CORPORATION_EMBEDDED DISTRIBUTOR - CLINTON POWER AND WEST PERTH POWER SERVICE CLASSIFICATION | F156: 0 | G156: 0 | H156: 0 | I156: 0 | J156: 0 | K156: 0 | L156: 0 | M156: 0 | N156: 0 | O156: 0 | P156: ERIE THAMES POWERLINES CORPORATION | Q156: ERIE THAMES POWERLINES CORPORATION_EMBEDDED DISTRIBUTOR - CLINTON POWER AND WEST PERTH POWER SERVICE CLASSIFICATION
A157: 2016 | B157: ERIE THAMES POWERLINES CORPORATION | C157: GENERAL SERVICE EQUAL TO OR GREATER THAN 50 KW | D157: GENERAL SERVICE 1,000 TO 4,999 KW | E157: ERIE THAMES POWERLINES CORPORATION_GENERAL SERVICE 1,000 TO 4,999 KW SERVICE CLASSIFICATION | F157: 0 | G157: 0 | H157: 0 | I157: 0 | J157: 79838715 | K157: 216209 | L157: 79838715 | M157: 216209 | N157: 79838715 | O157: 216209
A158: 2016 | B158: ERIE THAMES POWERLINES CORPORATION | C158: GENERAL SERVICE EQUAL TO OR GREATER THAN 50 KW | D158: GENERAL SERVICE 1,000 TO 4,999 KW-CLINTON & WEST PERTH POWER | E158: ERIE THAMES POWERLINES CORPORATION_GENERAL SERVICE 1,000 TO 4,999 KW-CLINTON & WEST PERTH POWER SERVICE CLASSIFICATION | F158: 0 | G158: 0 | H158: 0 | I158: 0 | J158: 0 | K158: 0 | L158: 0 | M158: 0 | N158: 0 | O158: 0 | P158: ERIE THAMES POWERLINES CORPORATION | Q158: ERIE THAMES POWERLINES CORPORATION_GENERAL SERVICE 1,000 TO 4,999 KW-CLINTON & WEST PERTH POWER SERVICE CLASSIFICATION
A159: 2016 | B159: ERIE THAMES POWERLINES CORPORATION | C159: GENERAL SERVICE EQUAL TO OR GREATER THAN 50 KW | D159: GENERAL SERVICE 50 TO 999 KW | E159: ERIE THAMES POWERLINES CORPORATION_GENERAL SERVICE 50 TO 999 KW SERVICE CLASSIFICATION | F159: 41214007.07 | G159: 124951 | H159: 52477287.48 | I159: 45503.5 | J159: 21437537.45 | K159: 18588.65 | L159: 73914824.93 | M159: 64092.15 | N159: 115128832 | O159: 189043.15
A160: 2016 | B160: ERIE THAMES POWERLINES CORPORATION | C160: GENERAL SERVICE EQUAL TO OR GREATER THAN 50 KW | D160: GENERAL SERVICE 50 TO 999 KW - CLINTON POWER | E160: ERIE THAMES POWERLINES CORPORATION_GENERAL SERVICE 50 TO 999 KW - CLINTON POWER SERVICE CLASSIFICATION | F160: 0 | G160: 0 | H160: 0 | I160: 0 | J160: 0 | K160: 0 | L160: 0 | M160: 0 | N160: 0 | O160: 0 | P160: ERIE THAMES POWERLINES CORPORATION | Q160: ERIE THAMES POWERLINES CORPORATION_GENERAL SERVICE 50 TO 999 KW - CLINTON POWER SERVICE CLASSIFICATION
A161: 2016 | B161: ERIE THAMES POWERLINES CORPORATION | C161: GENERAL SERVICE EQUAL TO OR GREATER THAN 50 KW | D161: GENERAL SERVICE 50 TO 999 KW - WEST PERTH POWER | E161: ERIE THAMES POWERLINES CORPORATION_GENERAL SERVICE 50 TO 999 KW - WEST PERTH POWER SERVICE CLASSIFICATION | F161: 0 | G161: 0 | H161: 0 | I161: 0 | J161: 0 | K161: 0 | L161: 0 | M161: 0 | N161: 0 | O161: 0 | P161: ERIE THAMES POWERLINES CORPORATION | Q161: ERIE THAMES POWERLINES CORPORATION_GENERAL SERVICE 50 TO 999 KW - WEST PERTH POWER SERVICE CLASSIFICATION
A162: 2016 | B162: ERIE THAMES POWERLINES CORPORATION | C162: GENERAL SERVICE LESS THAN 50 KW | D162: GENERAL SERVICE LESS THAN 50 KW | E162: ERIE THAMES POWERLINES CORPORATION_GENERAL SERVICE LESS THAN 50 KW SERVICE CLASSIFICATION | F162: 11218433.04 | G162: 29859 | H162: 23190364.1 | I162: 26814.6 | J162: 143833.92 | K162: 166.31 | L162: 23334198.02 | M162: 26980.91 | N162: 34552631.06 | O162: 56839.91
A163: 2016 | B163: ERIE THAMES POWERLINES CORPORATION | C163: GENERAL SERVICE LESS THAN 50 KW | D163: GENERAL SERVICE LESS THAN 50 KW - CLINTON POWER | E163: ERIE THAMES POWERLINES CORPORATION_GENERAL SERVICE LESS THAN 50 KW - CLINTON POWER SERVICE CLASSIFICATION | F163: 0 | G163: 0 | H163: 0 | I163: 0 | J163: 0 | K163: 0 | L163: 0 | M163: 0 | N163: 0 | O163: 0 | P163: ERIE THAMES POWERLINES CORPORATION | Q163: ERIE THAMES POWERLINES CORPORATION_GENERAL SERVICE LESS THAN 50 KW - CLINTON POWER SERVICE CLASSIFICATION
A164: 2016 | B164: ERIE THAMES POWERLINES CORPORATION | C164: GENERAL SERVICE LESS THAN 50 KW | D164: GENERAL SERVICE LESS THAN 50 KW - WEST PERTH POWER | E164: ERIE THAMES POWERLINES CORPORATION_GENERAL SERVICE LESS THAN 50 KW - WEST PERTH POWER SERVICE CLASSIFICATION | F164: 0 | G164: 0 | H164: 0 | I164: 0 | J164: 0 | K164: 0 | L164: 0 | M164: 0 | N164: 0 | O164: 0 | P164: ERIE THAMES POWERLINES CORPORATION | Q164: ERIE THAMES POWERLINES CORPORATION_GENERAL SERVICE LESS THAN 50 KW - WEST PERTH POWER SERVICE CLASSIFICATION
A165: 2016 | B165: ERIE THAMES POWERLINES CORPORATION | C165: LARGE USER | D165: LARGE USE | E165: ERIE THAMES POWERLINES CORPORATION_LARGE USE SERVICE CLASSIFICATION | F165: 0 | G165: 0 | H165: 0 | I165: 0 | J165: 100247112 | K165: 185866 | L165: 100247112 | M165: 185866 | N165: 100247112 | O165: 185866
A166: 2016 | B166: ERIE THAMES POWERLINES CORPORATION | C166: LARGE USER | D166: LARGE USE - CLINTON POWER AND WEST PERTH POWER | E166: ERIE THAMES POWERLINES CORPORATION_LARGE USE - CLINTON POWER AND WEST PERTH POWER SERVICE CLASSIFICATION | F166: 0 | G166: 0 | H166: 0 | I166: 0 | J166: 0 | K166: 0 | L166: 0 | M166: 0 | N166: 0 | O166: 0 | P166: ERIE THAMES POWERLINES CORPORATION | Q166: ERIE THAMES POWERLINES CORPORATION_LARGE USE - CLINTON POWER AND WEST PERTH POWER SERVICE CLASSIFICATION
A167: 2016 | B167: ERIE THAMES POWERLINES CORPORATION | C167: RESIDENTIAL | D167: RESIDENTIAL | E167: ERIE THAMES POWERLINES CORPORATION_RESIDENTIAL SERVICE CLASSIFICATION | F167: 13939301.86 | G167: 0 | H167: 122954160 | I167: 0 | J167: 0 | K167: 0 | L167: 122954160 | M167: 0 | N167: 136893461.9 | O167: 0
A168: 2016 | B168: ERIE THAMES POWERLINES CORPORATION | C168: RESIDENTIAL | D168: RESIDENTIAL - CLINTON POWER | E168: ERIE THAMES POWERLINES CORPORATION_RESIDENTIAL - CLINTON POWER SERVICE CLASSIFICATION | F168: 0 | G168: 0 | H168: 0 | I168: 0 | J168: 0 | K168: 0 | L168: 0 | M168: 0 | N168: 0 | O168: 0 | P168: ERIE THAMES POWERLINES CORPORATION | Q168: ERIE THAMES POWERLINES CORPORATION_RESIDENTIAL - CLINTON POWER SERVICE CLASSIFICATION
A169: 2016 | B169: ERIE THAMES POWERLINES CORPORATION | C169: RESIDENTIAL | D169: RESIDENTIAL - WEST PERTH POWER | E169: ERIE THAMES POWERLINES CORPORATION_RESIDENTIAL - WEST PERTH POWER SERVICE CLASSIFICATION | F169: 0 | G169: 0 | H169: 0 | I169: 0 | J169: 0 | K169: 0 | L169: 0 | M169: 0 | N169: 0 | O169: 0 | P169: ERIE THAMES POWERLINES CORPORATION | Q169: ERIE THAMES POWERLINES CORPORATION_RESIDENTIAL - WEST PERTH POWER SERVICE CLASSIFICATION
A170: 2016 | B170: ERIE THAMES POWERLINES CORPORATION | C170: SENTINEL LIGHTING CONNECTIONS | D170: SENTINEL LIGHTING | E170: ERIE THAMES POWERLINES CORPORATION_SENTINEL LIGHTING SERVICE CLASSIFICATION | F170: 36344.98 | G170: 0 | H170: 247578 | I170: 0 | J170: 0 | K170: 0 | L170: 247578 | M170: 0 | N170: 283922.98 | O170: 0
A171: 2016 | B171: ERIE THAMES POWERLINES CORPORATION | C171: SENTINEL LIGHTING CONNECTIONS | D171: SENTINEL LIGHTING - CLINTON POWER | E171: ERIE THAMES POWERLINES CORPORATION_SENTINEL LIGHTING - CLINTON POWER SERVICE CLASSIFICATION | F171: 0 | G171: 0 | H171: 0 | I171: 0 | J171: 0 | K171: 0 | L171: 0 | M171: 0 | N171: 0 | O171: 0 | P171: ERIE THAMES POWERLINES CORPORATION | Q171: ERIE THAMES POWERLINES CORPORATION_SENTINEL LIGHTING - CLINTON POWER SERVICE CLASSIFICATION
A172: 2016 | B172: ERIE THAMES POWERLINES CORPORATION | C172: SENTINEL LIGHTING CONNECTIONS | D172: SENTINEL LIGHTING - WEST PERTH POWER | E172: ERIE THAMES POWERLINES CORPORATION_SENTINEL LIGHTING - WEST PERTH POWER SERVICE CLASSIFICATION | F172: 0 | G172: 0 | H172: 0 | I172: 0 | J172: 0 | K172: 0 | L172: 0 | M172: 0 | N172: 0 | O172: 0 | P172: ERIE THAMES POWERLINES CORPORATION | Q172: ERIE THAMES POWERLINES CORPORATION_SENTINEL LIGHTING - WEST PERTH POWER SERVICE CLASSIFICATION
A173: 2016 | B173: ERIE THAMES POWERLINES CORPORATION | C173: STREET LIGHTING CONNECTIONS | D173: STREET LIGHTING | E173: ERIE THAMES POWERLINES CORPORATION_STREET LIGHTING SERVICE CLASSIFICATION | F173: 750026.65 | G173: 2214 | H173: 577257.45 | I173: 1477.15 | J173: 731428.93 | K173: 1867.17 | L173: 1308686.38 | M173: 3344.32 | N173: 2058713.03 | O173: 5558.32
A174: 2016 | B174: ERIE THAMES POWERLINES CORPORATION | C174: STREET LIGHTING CONNECTIONS | D174: STREET LIGHTING - CLINTON POWER | E174: ERIE THAMES POWERLINES CORPORATION_STREET LIGHTING - CLINTON POWER SERVICE CLASSIFICATION | F174: 0 | G174: 0 | H174: 0 | I174: 0 | J174: 0 | K174: 0 | L174: 0 | M174: 0 | N174: 0 | O174: 0 | P174: ERIE THAMES POWERLINES CORPORATION | Q174: ERIE THAMES POWERLINES CORPORATION_STREET LIGHTING - CLINTON POWER SERVICE CLASSIFICATION
A175: 2016 | B175: ERIE THAMES POWERLINES CORPORATION | C175: STREET LIGHTING CONNECTIONS | D175: STREET LIGHTING - WEST PERTH POWER | E175: ERIE THAMES POWERLINES CORPORATION_STREET LIGHTING - WEST PERTH POWER SERVICE CLASSIFICATION | F175: 0 | G175: 0 | H175: 0 | I175: 0 | J175: 0 | K175: 0 | L175: 0 | M175: 0 | N175: 0 | O175: 0 | P175: ERIE THAMES POWERLINES CORPORATION | Q175: ERIE THAMES POWERLINES CORPORATION_STREET LIGHTING - WEST PERTH POWER SERVICE CLASSIFICATION
A176: 2016 | B176: ERIE THAMES POWERLINES CORPORATION | C176: UNMETERED SCATTERED LOAD CONNECTIONS | D176: UNMETERED SCATTERED LOAD | E176: ERIE THAMES POWERLINES CORPORATION_UNMETERED SCATTERED LOAD SERVICE CLASSIFICATION | F176: 55152 | G176: 0 | H176: 488540 | I176: 0 | J176: 0 | K176: 0 | L176: 488540 | M176: 0 | N176: 543692 | O176: 0
A177: 2016 | B177: ERIE THAMES POWERLINES CORPORATION | C177: UNMETERED SCATTERED LOAD CONNECTIONS | D177: UNMETERED SCATTERED LOAD - CLINTON POWER | E177: ERIE THAMES POWERLINES CORPORATION_UNMETERED SCATTERED LOAD - CLINTON POWER SERVICE CLASSIFICATION | F177: 0 | G177: 0 | H177: 0 | I177: 0 | J177: 0 | K177: 0 | L177: 0 | M177: 0 | N177: 0 | O177: 0 | P177: ERIE THAMES POWERLINES CORPORATION | Q177: ERIE THAMES POWERLINES CORPORATION_UNMETERED SCATTERED LOAD - CLINTON POWER SERVICE CLASSIFICATION
A178: 2016 | B178: ERIE THAMES POWERLINES CORPORATION | C178: UNMETERED SCATTERED LOAD CONNECTIONS | D178: UNMETERED SCATTERED LOAD - WEST PERTH POWER | E178: ERIE THAMES POWERLINES CORPORATION_UNMETERED SCATTERED LOAD - WEST PERTH POWER SERVICE CLASSIFICATION | F178: 0 | G178: 0 | H178: 0 | I178: 0 | J178: 0 | K178: 0 | L178: 0 | M178: 0 | N178: 0 | O178: 0 | P178: ERIE THAMES POWERLINES CORPORATION | Q178: ERIE THAMES POWERLINES CORPORATION_UNMETERED SCATTERED LOAD - WEST PERTH POWER SERVICE CLASSIFICATION
A179: 2016 | B179: ESPANOLA REGIONAL HYDRO DISTRIBUTION CORPORATION | C179: GENERAL SERVICE EQUAL TO OR GREATER THAN 50 KW | D179: GENERAL SERVICE 50 TO 4,999 KW | E179: ESPANOLA REGIONAL HYDRO DISTRIBUTION CORPORATION_GENERAL SERVICE 50 TO 4,999 KW SERVICE CLASSIFICATION | F179: 6861106.97 | G179: 16428 | H179: 1223832.26 | I179: 3357.84 | J179: 8538397.45 | K179: 21429.24 | L179: 9762229.71 | M179: 24787.08 | N179: 16623336.68 | O179: 41215.08
A180: 2016 | B180: ESPANOLA REGIONAL HYDRO DISTRIBUTION CORPORATION | C180: GENERAL SERVICE LESS THAN 50 KW | D180: GENERAL SERVICE LESS THAN 50 KW | E180: ESPANOLA REGIONAL HYDRO DISTRIBUTION CORPORATION_GENERAL SERVICE LESS THAN 50 KW SERVICE CLASSIFICATION | F180: 1656804.7 | G180: 3382 | H180: 8703355.28 | I180: 11013.64 | J180: 0 | K180: 0 | L180: 8703355.28 | M180: 11013.64 | N180: 10360159.98 | O180: 14395.64
A181: 2016 | B181: ESPANOLA REGIONAL HYDRO DISTRIBUTION CORPORATION | C181: RESIDENTIAL | D181: RESIDENTIAL | E181: ESPANOLA REGIONAL HYDRO DISTRIBUTION CORPORATION_RESIDENTIAL SERVICE CLASSIFICATION | F181: 1482942.24 | G181: 0 | H181: 29382015.21 | I181: 0 | J181: 0 | K181: 0 | L181: 29382015.21 | M181: 0 | N181: 30864957.45 | O181: 0
A182: 2016 | B182: ESPANOLA REGIONAL HYDRO DISTRIBUTION CORPORATION | C182: SENTINEL LIGHTING CONNECTIONS | D182: SENTINEL LIGHTING | E182: ESPANOLA REGIONAL HYDRO DISTRIBUTION CORPORATION_SENTINEL LIGHTING SERVICE CLASSIFICATION | F182: 0 | G182: 0 | H182: 24718 | I182: 0 | J182: 0 | K182: 0 | L182: 24718 | M182: 0 | N182: 24718 | O182: 0
A183: 2016 | B183: ESPANOLA REGIONAL HYDRO DISTRIBUTION CORPORATION | C183: STREET LIGHTING CONNECTIONS | D183: STREET LIGHTING | E183: ESPANOLA REGIONAL HYDRO DISTRIBUTION CORPORATION_STREET LIGHTING SERVICE CLASSIFICATION | F183: 192677.09 | G183: 543 | H183: 0 | I183: 0 | J183: 176757.3 | K183: 496.8 | L183: 176757.3 | M183: 496.8 | N183: 369434.39 | O183: 1039.8
A184: 2016 | B184: ESPANOLA REGIONAL HYDRO DISTRIBUTION CORPORATION | C184: UNMETERED SCATTERED LOAD CONNECTIONS | D184: UNMETERED SCATTERED LOAD | E184: ESPANOLA REGIONAL HYDRO DISTRIBUTION CORPORATION_UNMETERED SCATTERED LOAD SERVICE CLASSIFICATION | F184: 10735.13 | G184: 0 | H184: 112568.89 | I184: 0 | J184: 0 | K184: 0 | L184: 112568.89 | M184: 0 | N184: 123304.02 | O184: 0
A185: 2016 | B185: ESSEX POWERLINES CORPORATION | C185: GENERAL SERVICE EQUAL TO OR GREATER THAN 50 KW | D185: GENERAL SERVICE 3,000 TO 4,999 KW | E185: ESSEX POWERLINES CORPORATION_GENERAL SERVICE 3,000 TO 4,999 KW SERVICE CLASSIFICATION | F185: 0 | G185: 0 | H185: 0 | I185: 0 | J185: 0 | K185: 0 | L185: 0 | M185: 0 | N185: 0 | O185: 0
A186: 2016 | B186: ESSEX POWERLINES CORPORATION | C186: GENERAL SERVICE EQUAL TO OR GREATER THAN 50 KW | D186: GENERAL SERVICE 50 TO 2,999 KW | E186: ESSEX POWERLINES CORPORATION_GENERAL SERVICE 50 TO 2,999 KW SERVICE CLASSIFICATION | F186: 31917523.5 | G186: 94559 | H186: 18047401.7 | I186: 52720.99 | J186: 121127285.5 | K186: 357795.94 | L186: 139174687.2 | M186: 410516.93 | N186: 171092210.8 | O186: 505075.93
A187: 2016 | B187: ESSEX POWERLINES CORPORATION | C187: GENERAL SERVICE LESS THAN 50 KW | D187: GENERAL SERVICE LESS THAN 50 KW | E187: ESSEX POWERLINES CORPORATION_GENERAL SERVICE LESS THAN 50 KW SERVICE CLASSIFICATION | F187: 14667783.29 | G187: 0 | H187: 49036035.22 | I187: 0 | J187: 2156790.88 | K187: 0 | L187: 51192826.1 | M187: 0 | N187: 65860609.39 | O187: 0
A188: 2016 | B188: ESSEX POWERLINES CORPORATION | C188: RESIDENTIAL | D188: RESIDENTIAL | E188: ESSEX POWERLINES CORPORATION_RESIDENTIAL SERVICE CLASSIFICATION | F188: 13725748.86 | G188: 0 | H188: 232839201.3 | I188: 0 | J188: 3779.98 | K188: 0 | L188: 232842981.3 | M188: 0 | N188: 246568730.1 | O188: 0
A189: 2016 | B189: ESSEX POWERLINES CORPORATION | C189: SENTINEL LIGHTING CONNECTIONS | D189: SENTINEL LIGHTING | E189: ESSEX POWERLINES CORPORATION_SENTINEL LIGHTING SERVICE CLASSIFICATION | F189: 28782 | G189: 77 | H189: 292982.83 | I189: 819.01 | J189: 0 | K189: 0 | L189: 292982.83 | M189: 819.01 | N189: 321764.83 | O189: 896.01
A190: 2016 | B190: ESSEX POWERLINES CORPORATION | C190: STREET LIGHTING CONNECTIONS | D190: STREET LIGHTING | E190: ESSEX POWERLINES CORPORATION_STREET LIGHTING SERVICE CLASSIFICATION | F190: 3593540.5 | G190: 10936 | H190: 0 | I190: 0 | J190: 2774114.59 | K190: 0 | L190: 2774114.59 | M190: 0 | N190: 6367655.09 | O190: 10936
A191: 2016 | B191: ESSEX POWERLINES CORPORATION | C191: UNMETERED SCATTERED LOAD CONNECTIONS | D191: UNMETERED SCATTERED LOAD | E191: ESSEX POWERLINES CORPORATION_UNMETERED SCATTERED LOAD SERVICE CLASSIFICATION | F191: 469298 | G191: 0 | H191: 1096642.07 | I191: 0 | J191: 0 | K191: 0 | L191: 1096642.07 | M191: 0 | N191: 1565940.07 | O191: 0
A192: 2016 | B192: FESTIVAL HYDRO INC. | C192: GENERAL SERVICE EQUAL TO OR GREATER THAN 50 KW | D192: GENERAL SERVICE 50 TO 4,999 KW | E192: FESTIVAL HYDRO INC._GENERAL SERVICE 50 TO 4,999 KW SERVICE CLASSIFICATION | F192: 68865557.8 | G192: 175825 | H192: 9852698.86 | I192: 25156 | J192: 294618242.2 | K192: 752223 | L192: 304470941 | M192: 777379 | N192: 373336498.8 | O192: 953204
A193: 2016 | B193: FESTIVAL HYDRO INC. | C193: GENERAL SERVICE LESS THAN 50 KW | D193: GENERAL SERVICE LESS THAN 50 KW | E193: FESTIVAL HYDRO INC._GENERAL SERVICE LESS THAN 50 KW SERVICE CLASSIFICATION | F193: 16435776.8 | G193: 0 | H193: 47119887.3 | I193: 0 | J193: 0 | K193: 0 | L193: 47119887.3 | M193: 0 | N193: 63555664.1 | O193: 0
A194: 2016 | B194: FESTIVAL HYDRO INC. | C194: LARGE USER | D194: LARGE USE | E194: FESTIVAL HYDRO INC._LARGE USE SERVICE CLASSIFICATION | F194: 24639647.6 | G194: 39140 | H194: 0 | I194: 0 | J194: 0 | K194: 0 | L194: 0 | M194: 0 | N194: 24639647.6 | O194: 39140
A195: 2016 | B195: FESTIVAL HYDRO INC. | C195: RESIDENTIAL | D195: RESIDENTIAL | E195: FESTIVAL HYDRO INC._RESIDENTIAL SERVICE CLASSIFICATION | F195: 11631368.4 | G195: 0 | H195: 127285427.1 | I195: 0 | J195: 0 | K195: 0 | L195: 127285427.1 | M195: 0 | N195: 138916795.5 | O195: 0
A196: 2016 | B196: FESTIVAL HYDRO INC. | C196: RESIDENTIAL | D196: RESIDENTIAL - HENSALL | E196: FESTIVAL HYDRO INC._RESIDENTIAL - HENSALL SERVICE CLASSIFICATION | F196: 0 | G196: 0 | H196: 0 | I196: 0 | J196: 0 | K196: 0 | L196: 0 | M196: 0 | N196: 0 | O196: 0 | P196: FESTIVAL HYDRO INC. | Q196: FESTIVAL HYDRO INC._RESIDENTIAL - HENSALL SERVICE CLASSIFICATION
A197: 2016 | B197: FESTIVAL HYDRO INC. | C197: SENTINEL LIGHTING CONNECTIONS | D197: SENTINEL LIGHTING | E197: FESTIVAL HYDRO INC._SENTINEL LIGHTING SERVICE CLASSIFICATION | F197: 0 | G197: 0 | H197: 130859.43 | I197: 363.5 | J197: 0 | K197: 0 | L197: 130859.43 | M197: 363.5 | N197: 130859.43 | O197: 363.5
A198: 2016 | B198: FESTIVAL HYDRO INC. | C198: STREET LIGHTING CONNECTIONS | D198: STREET LIGHTING | E198: FESTIVAL HYDRO INC._STREET LIGHTING SERVICE CLASSIFICATION | F198: 4001878.5 | G198: 10315 | H198: 305392.5 | I198: 787.61 | J198: 0 | K198: 0 | L198: 305392.5 | M198: 787.61 | N198: 4307271 | O198: 11102.61
A199: 2016 | B199: FESTIVAL HYDRO INC. | C199: UNMETERED SCATTERED LOAD CONNECTIONS | D199: UNMETERED SCATTERED LOAD | E199: FESTIVAL HYDRO INC._UNMETERED SCATTERED LOAD SERVICE CLASSIFICATION | F199: 62685.7 | G199: 0 | H199: 265611.49 | I199: 0 | J199: 334915.81 | K199: 0 | L199: 600527.3 | M199: 0 | N199: 663213 | O199: 0
A200: 2016 | B200: FORT FRANCES POWER CORPORATION | C200: GENERAL SERVICE EQUAL TO OR GREATER THAN 50 KW | D200: GENERAL SERVICE 50 TO 4,999 KW | E200: FORT FRANCES POWER CORPORATION_GENERAL SERVICE 50 TO 4,999 KW SERVICE CLASSIFICATION | F200: 433800 | G200: 0 | H200: 3461107 | I200: 0 | J200: 19696144 | K200: 0 | L200: 23157251 | M200: 0 | N200: 23591051 | O200: 0
A201: 2016 | B201: FORT FRANCES POWER CORPORATION | C201: GENERAL SERVICE LESS THAN 50 KW | D201: GENERAL SERVICE LESS THAN 50 KW | E201: FORT FRANCES POWER CORPORATION_GENERAL SERVICE LESS THAN 50 KW SERVICE CLASSIFICATION | F201: 380754.29 | G201: 0 | H201: 12927617 | I201: 0 | J201: 0 | K201: 0 | L201: 12927617 | M201: 0 | N201: 13308371.29 | O201: 0
... 381 more rows

Sheet 5. Allocating Def-Var Balances
A11: No input required. This workshseet allocates the deferral/variance account balances (Group 1 and 1568) to the appropriate classes as per EDDVAR dated July 31, 2009
A13: Allocation of Group 1 Accounts (including Account 1568)
C14: % of Total kWh | D14: % of Total non-RPP kWh | E14: % of Customer Numbers ** | F14: % of Total kWh adjusted for WMP | I14: allocated based on Total less WMP | N14: allocated based on Total less WMP | O14: 1595_(2009) | P14: 1595_(2010) | Q14: 1595_(2011) | R14: 1595_(2012) | S14: 1595_(2013) | T14: 1595_(2014) | U14: 1595_(2015) | V14: 1568
A15: Rate Class | G15: 1550 | H15: 1551 | I15: 1580 | J15: 1580 (Class A) | K15: 1580 (Class B) | L15: 1584 | M15: 1586 | N15: 1588
A17: RESIDENTIAL SERVICE CLASSIFICATION | C17: 0.2821896538 | D17: 0.01971295815 | E17: 0.8973004588 | F17: 0.2835320346 | G17: 30588.79409 | H17: -8160.947672 | I17: -920608.3857 | J17: 0 | L17: -117889.2429 | M17: -20148.05909 | N17: -331020.5316 | O17: 0 | P17: 0 | Q17: 0 | R17: 0 | S17: 0 | T17: 33572.2932 | U17: 0 | V17: 0
A18: GENERAL SERVICE LESS THAN 50 kW SERVICE CLASSIFICATION | C18: 0.136712428 | D18: 0.04136667934 | E18: 0.1026995412 | F18: 0.1373627713 | G18: 14819.35377 | H18: -934.0523276 | I18: -446007.1657 | J18: 0 | L18: -57113.8042 | M18: -9761.130648 | N18: -160369.5245 | O18: 0 | P18: 0 | Q18: 0 | R18: 0 | S18: 0 | T18: 15931.1646 | U18: 0 | V18: 0
A19: GENERAL SERVICE 50 TO 4,999 KW SERVICE CLASSIFICATION | C19: 0.4857265325 | D19: 0.774779988 | E19: 0 | F19: 0.4832801252 | G19: 52651.78468 | H19: 0 | I19: -1569176.254 | J19: 0 | L19: -202920.0306 | M19: -34680.3887 | N19: -564224.23 | O19: 0 | P19: 0 | Q19: 0 | R19: 0 | S19: 0 | T19: 81836.0271 | U19: 0 | V19: 0
A20: LARGE USE SERVICE CLASSIFICATION | C20: 0.06483210452 | D20: 0.1138047105 | E20: 0 | F20: 0.06514051192 | G20: 7027.670466 | H20: 0 | I20: -211506.6172 | J20: 0 | L20: -27084.64898 | M20: -4628.947431 | N20: -76050.83112 | O20: 0 | P20: 0 | Q20: 0 | R20: 0 | S20: 0 | T20: 6583.3614 | U20: 0 | V20: 0
A21: UNMETERED SCATTERED LOAD SERVICE CLASSIFICATION | C21: 0.001847095183 | D21: 4.592093861e-06 | E21: 0 | F21: 0.001855881845 | G21: 200.2214236 | H21: 0 | I21: -6025.916583 | J21: 0 | L21: -771.653566 | M21: -131.8807489 | N21: -2166.721639 | O21: 0 | P21: 0 | Q21: 0 | R21: 0 | S21: 0 | T21: 142.497 | U21: 0 | V21: 0
A22: STREET LIGHTING SERVICE CLASSIFICATION | C22: 0.005304630791 | D22: 0.009277122547 | E22: 0 | F22: 0.005329865008 | G22: 575.0113685 | H22: 0 | I22: -17305.69326 | J22: 0 | L22: -2216.094387 | M22: -378.7453339 | N22: -6222.558768 | O22: 0 | P22: 0 | Q22: 0 | R22: 0 | S22: 0 | T22: 911.9808 | U22: 0 | V22: 0
A23: EMBEDDED DISTRIBUTOR SERVICE CLASSIFICATION | C23: 0.02338755513 | D23: 0.04105394943 | E23: 0 | F23: 0.02349881012 | G23: 2535.164201 | H23: 0 | I23: -76298.96805 | J23: 0 | L23: -9770.525358 | M23: -1669.848049 | N23: -27434.60233 | O23: 0 | P23: 0 | Q23: 0 | R23: 0 | S23: 0 | T23: 3505.4262 | U23: 0 | V23: 0
A25: Total | C25: =SUM($C$17:$C$23) -> 1 | D25: =SUM($D$17:$D$23) -> 1 | E25: =SUM($E$17:$E$23) -> 1 | F25: =SUM($F$17:$F$23) -> 1 | G25: =SUM($G$17:$G$23) -> 108398 | H25: =SUM($H$17:$H$23) -> -9095 | I25: =SUM($I$17:$I$23) -> -3246929 | J25: =SUM($J$17:$J$23) -> 0 | K25: =SUM($K$17:$K$23) -> 0 | L25: =SUM($L$17:$L$23) -> -417766 | M25: =SUM($M$17:$M$23) -> -71399 | N25: =SUM($N$17:$N$23) -> -1167489 | O25: =SUM($O$17:$O$23) -> 0 | P25: =SUM($P$17:$P$23) -> 0 | Q25: =SUM($Q$17:$Q$23) -> 0 | R25: =SUM($R$17:$R$23) -> 0 | S25: =SUM($S$17:$S$23) -> 0 | T25: =SUM($T$17:$T$23) -> 142482.7503 | U25: =SUM($U$17:$U$23) -> 0 | V25: =SUM($V$17:$V$23) -> 0
A28: ** Used to allocate Account 1551 as this account records the variances arising from the Smart Metering Entity Charges to Residential and GS<50 customers.

Sheet 6. GA calculation
B2: FALSE
B6: Total
A13: The purpose of this tab is to calculate the GA rate riders for all current Class B customers of the distributor. Effective January 2017, the billing determinant and all rate riders for the disposition of GA balances will be calculated on an energy basis (kWhs) regardless of the billing determinant used for distribution rates for the particular class (see Chapter 3, Filing Requirements, section 3.2.5.2)
C14: Total Metered Non-RPP consumption minus WMP | E14: Total Metered Class A Consumption in 2015 (partial and/or full year Class A customers)* | G14: Total Metered Consumption for New Class A customer(s) in the period prior to becoming Class A (i.e. Jan. 1 - June 30, 2015) | I14: Metered Consumption for Current Class B Customers (Non-RPP consumption LESS WMP, Class A and new Class A's former Class B consumption if applicable) | K14: % of total kWh | L14: Total GA $ allocated to Current Class B Customers | M14: GA Rate Rider
C15: kWh | D15: kW | E15: kWh | F15: kW | G15: kWh | H15: kW | I15: kWh | J15: kW
A17: RESIDENTIAL SERVICE CLASSIFICATION | B17: kWh | C17: 16106600 | D17: 0 | I17: =(C17-E17-G17) -> 16106600 | J17: 0 | K17: =(I17/I24) -> 0.022455071 | L17: =(1689612*K17) -> 37940.35741 | M17: =(L17/I17) -> 0.002355578298 | N17: kWh
A18: GENERAL SERVICE LESS THAN 50 kW SERVICE CLASSIFICATION | B18: kWh | C18: 33798913 | D18: 0 | I18: 33798913 | J18: 0 | K18: =(I18/I24) -> 0.04712086915 | L18: 79615.98596 | M18: =(L18/I18) -> 0.002355578298 | N18: kWh
A19: GENERAL SERVICE 50 TO 4,999 KW SERVICE CLASSIFICATION | B19: kWh | C19: 626248595 | D19: 1500671 | I19: 626248595 | J19: 1500671 | K19: =(I19/I24) -> 0.8730866018 | L19: 1475177.6 | M19: =(L19/I19) -> 0.002355578298 | N19: kWh
A20: LARGE USE SERVICE CLASSIFICATION | B20: kWh | C20: 92984875 | D20: 170151 | E20: 92984875 | I20: 0 | J20: 170151 | K20: =(I20/I24) -> 0 | L20: 0 | M20: 0
A21: UNMETERED SCATTERED LOAD SERVICE CLASSIFICATION | B21: kWh | C21: 3752 | D21: 0 | I21: 3752 | J21: 0 | K21: =(I21/I24) -> 5.23086352e-06 | L21: 8.838129774 | M21: =(L21/I21) -> 0.002355578298 | N21: kWh
A22: STREET LIGHTING SERVICE CLASSIFICATION | B22: kWh | C22: 7579933 | D22: 21110 | I22: 7579933 | J22: 21110 | K22: =(I22/I24) -> 0.01056758929 | L22: 17855.12567 | M22: =(L22/I22) -> 0.002355578298 | N22: kWh
A23: EMBEDDED DISTRIBUTOR SERVICE CLASSIFICATION | B23: kWh | C23: 33543395 | D23: 75403 | I23: 33543395 | J23: 75403 | K23: =(I23/I24) -> 0.04676463786 | L23: 79014.0933 | M23: =(L23/I23) -> 0.002355578298 | N23: kWh
B24: Total | C24: 810266063 | D24: 1767335 | E24: =SUM(E17:E23) -> 92984875 | F24: 0 | G24: 0 | H24: 0 | I24: 717281188 | J24: 1767335 | K24: 1 | L24: 1689612
A30: *For new Class A customers (who became Class A in 2015), add their consumption only related to July to December period.

Sheet 6.a GA allocation_Class A (hidden)
A14: This tab allocates the GA balance to former Class B customers who contributed to the current GA balance but are now Class A customers. The tables below calculate specific amounts for each customer who made the change. Consistent with both decisions for 2016 rates and EDDVAR, distributors are generally expected to settle the amount through 12 equal adjustments to bills. A one-time settlement is acceptable if the affected customer has expressed a clear preference for this approach. (see Filing Requirements section 3.2.5.2)
A16: Year of Group 1 Account Balance Last Disposed | C16: (e.g. If in the 2015 EDR process, you received approval to dispose the GA variance account balance as of December 31, 2013, please enter 2013 in cell B16.)
A18: Allocation of total Non-RPP consumption (kWh) between Class B and New Class A (Former Class B) customers
C19: Total | D19: 2015 | E19: 2014 | F19: 2013 | G19: 2012
A20: Total Class B Consumption for Years Since Last Disposition (Non-RPP consumption LESS WMP and Class A) | B20: A | C20: =SUM(D20:G20) -> 0
A21: New Class A Customer(s)' Former Class B Consumption | B21: B | C21: =SUM(D21:G21) -> 0 | D21: =D59 -> 0 | E21: =E59 -> 0 | F21: =F59 -> 0 | G21: =G59 -> 0
A22: Portion of Consumption of Former Class B Customers | B22: C=B/A | C22: =IFERROR(+C21/C20,0) -> 0
A25: Allocation of Total GA Balance $
A27: Total GA Balance | B27: D | C27: ='3. Continuity Schedule'!BT29 -> 1689612
A28: New Class A Customer(s)' Former Class B Portion of GA Balance | B28: E=C*D | C28: =+C22*C27 -> 0
A29: GA Balance to be disposed to Current Class B Customers | B29: F=D-E | C29: =+C27-C28 -> 1689612
A31: Allocation of GA Balances to Former Class B Customers
A32: # of Former Class B customer(s)
A33: Customer | C33: Total Metered kWh Consumption for each new Class A customer for the period prior to becoming Class A | D33: Metered kWh Consumption for each new Class A customer for the period prior to becoming Class A in 2015 | E33: Metered kWh Consumption for each new Class A customer for the period prior to becoming Class A in 2014 | F33: Metered kWh Consumption for each new Class A customer for the period prior to becoming Class A in 2013 | G33: Metered kWh Consumption for each new Class A customer for the period prior to becoming Class A in 2012 | H33: % of kWh | I33: Customer specific GA allocation for the period prior to becoming Class A | J33: Monthly Equal Payments

Sheet 7. Calculation of Def-Var RR
A11: Input required at cell C13 only. This workshseet calculates rate riders related to the Deferral/Variance Account Disposition (if applicable) and rate riders for Account 1568. Rate Riders will not be generated for the microFIT class.
A12: Default Rate Rider Recovery Period (in months) | C12: 12
A13: Proposed Rate Rider Recovery Period (in months) | C13: 12 | D13: =IF(C13>0, "Rate Rider Recovery to be used below", "If no rate rider recovery period is proposed then the default recovery period of 12 months will be used") -> Rate Rider Recovery to be used below
C15: Total Metered kWh | D15: Metered kW or kVA | E15: Total Metered kWh less WMP consumption | F15: Total Metered kW less WMP consumption | G15: Allocation of Group 1 Account Balances to All Classes 2 | H15: Allocation of Group 1 Account Balances to Non-WMP Classes Only (If Applicable) 2 | I15: Deferral/Variance Account Rate Rider 2 | J15: Deferral/Variance Account Rate Rider for Non-WMP (if applicable) 2 | K15: Account 1568 Rate Rider
A16: Rate Class | B16: Unit | L16: Revenue Reconciliation: | N16: Revenue Reconcilation 1
A17: RESIDENTIAL SERVICE CLASSIFICATION | B17: kWh | C17: 404728026 | D17: 0 | E17: 404728026 | F17: 0 | G17: -1333666.08 | I17: =IF(ISERROR(G17/C17),0,IF(OR(ISBLANK(C13), OR(C13=0, C13="")), G17/C17/(C12/12), G17/C17/(C13/12))) -> -0.003295215537 | J17: =IF(ISERROR(H17/E17),0,IF(OR(ISBLANK(C13), OR(C13=0, C13="")), H17/E17/(C12/12), H17/E17/(C13/12))) -> 0 | K17: =IF(ISERROR(0/C17), 0, IF(OR(ISBLANK(C13), OR(C13=0, C13="")), (0/C17)/(C12/12), (0/C17)/(C13/12))) -> 0 | L17: =C17*I17 -> -1333666.08 | M17: =E17*J17 -> 0
A18: GENERAL SERVICE LESS THAN 50 kW SERVICE CLASSIFICATION | B18: kWh | C18: 196078596 | D18: 0 | E18: 196078596 | F18: 0 | G18: -643435.159 | I18: =IF(ISERROR(G18/C18),0,IF(OR(ISBLANK(C13), OR(C13=0, C13="")), G18/C18/(C12/12), G18/C18/(C13/12))) -> -0.003281516556 | J18: =IF(ISERROR(H18/E18),0,IF(OR(ISBLANK(C13), OR(C13=0, C13="")), H18/E18/(C12/12), H18/E18/(C13/12))) -> 0 | K18: =IF(ISERROR(0/C18), 0, IF(OR(ISBLANK(C13), OR(C13=0, C13="")), (0/C18)/(C12/12), (0/C18)/(C13/12))) -> 0 | L18: =C18*I18 -> -643435.159 | M18: =E18*J18 -> 0
A19: GENERAL SERVICE 50 TO 4,999 KW SERVICE CLASSIFICATION | B19: kW | C19: 696649002 | D19: 1747019 | E19: 689858595 | F19: 1734974 | G19: -103112.6075 | H19: -2133400.484 | I19: =IF(ISERROR(G19/D19),0,IF(OR(ISBLANK(C13), OR(C13=0, C13="")), G19/D19/(C12/12), G19/D19/(C13/12))) -> -0.05902202982 | J19: =IF(ISERROR(H19/F19),0,IF(OR(ISBLANK(C13), OR(C13=0, C13="")), H19/F19/(C12/12), H19/F19/(C13/12))) -> -1.229644066 | K19: =IF(ISERROR(0/D19), 0, IF(OR(ISBLANK(C13), OR(C13=0, C13="")), (0/D19)/(C12/12), (0/D19)/(C13/12))) -> 0 | L19: =D19*I19 -> -103112.6075 | M19: =F19*J19 -> -2133400.484
A20: LARGE USE SERVICE CLASSIFICATION | B20: kW | C20: 92984875 | D20: 170151 | E20: 92984875 | F20: 170151 | G20: -305660.0129 | I20: =IF(ISERROR(G20/D20),0,IF(OR(ISBLANK(C13), OR(C13=0, C13="")), G20/D20/(C12/12), G20/D20/(C13/12))) -> -1.796404446 | J20: =IF(ISERROR(H20/F20),0,IF(OR(ISBLANK(C13), OR(C13=0, C13="")), H20/F20/(C12/12), H20/F20/(C13/12))) -> 0 | K20: =IF(ISERROR(0/D20), 0, IF(OR(ISBLANK(C13), OR(C13=0, C13="")), (0/D20)/(C12/12), (0/D20)/(C13/12))) -> 0 | L20: =D20*I20 -> -305660.0129 | M20: =F20*J20 -> 0
A21: UNMETERED SCATTERED LOAD SERVICE CLASSIFICATION | B21: kWh | C21: 2649180 | D21: 0 | E21: 2649180 | F21: 0 | G21: -8753.454113 | I21: =IF(ISERROR(G21/C21),0,IF(OR(ISBLANK(C13), OR(C13=0, C13="")), G21/C21/(C12/12), G21/C21/(C13/12))) -> -0.003304212667 | J21: =IF(ISERROR(H21/E21),0,IF(OR(ISBLANK(C13), OR(C13=0, C13="")), H21/E21/(C12/12), H21/E21/(C13/12))) -> 0 | K21: =IF(ISERROR(0/C21), 0, IF(OR(ISBLANK(C13), OR(C13=0, C13="")), (0/C21)/(C12/12), (0/C21)/(C13/12))) -> 0 | L21: =C21*I21 -> -8753.454113 | M21: =E21*J21 -> 0
A22: STREET LIGHTING SERVICE CLASSIFICATION | B22: kW | C22: 7608120 | D22: 21206 | E22: 7608120 | F22: 21206 | G22: -24636.09958 | I22: =IF(ISERROR(G22/D22),0,IF(OR(ISBLANK(C13), OR(C13=0, C13="")), G22/D22/(C12/12), G22/D22/(C13/12))) -> -1.161751371 | J22: =IF(ISERROR(H22/F22),0,IF(OR(ISBLANK(C13), OR(C13=0, C13="")), H22/F22/(C12/12), H22/F22/(C13/12))) -> 0 | K22: =IF(ISERROR(0/D22), 0, IF(OR(ISBLANK(C13), OR(C13=0, C13="")), (0/D22)/(C12/12), (0/D22)/(C13/12))) -> 0 | L22: =D22*I22 -> -24636.09958 | M22: =F22*J22 -> 0
A23: EMBEDDED DISTRIBUTOR SERVICE CLASSIFICATION | B23: kW | C23: 33543395 | D23: 75403 | E23: 33543395 | F23: 75403 | G23: -109133.3534 | I23: =IF(ISERROR(G23/D23),0,IF(OR(ISBLANK(C13), OR(C13=0, C13="")), G23/D23/(C12/12), G23/D23/(C13/12))) -> -1.447334368 | J23: =IF(ISERROR(H23/F23),0,IF(OR(ISBLANK(C13), OR(C13=0, C13="")), H23/F23/(C12/12), H23/F23/(C13/12))) -> 0 | K23: =IF(ISERROR(0/D23), 0, IF(OR(ISBLANK(C13), OR(C13=0, C13="")), (0/D23)/(C12/12), (0/D23)/(C13/12))) -> 0 | L23: =D23*I23 -> -109133.3534 | M23: =F23*J23 -> 0
L24: =SUM(L17:L23) -> -2528396.766 | M24: =SUM(M17:M23) -> -2133400.484 | N24: =SUM(L24:M24) -> -4661797.25
A30: 1 When calculating the revenue reconciliation for distributors with Class A customers, the balances of sub-account 1580-CBR Class A and B will not be taken into consideration since the rate riders, if any, are calculated outside of the model.
A31: 2 Only for rate classes with WMP customers are the Deferral/Variance Account Rate Riders for Non-WMP (column H and J) calculated separately. For all rate classes without WMP customers, balances in account 1580 and 1588 are included in column G and disposed through a combined Deferral/Variance Account and Rate Rider.

Sheet 8. STS - Tax Change
T1: Tax Rates | U1: Effective
T2: Federal & Provincial | U2: 2016-01-01
T3: As of June 20, 2012
T5: Federal income tax | U5: 0.38
T6: General corporate rate | U6: -0.1
T7: Federal tax abatement | U7: =SUM(U5:U6) -> 0.28
T8: Adjusted federal rate | U8: -0.13
T9: Rate reduction | U9: =U7+U8 -> 0.15
T10: Ontario income tax | U10: 0.115
T12: Combined federal and Ontario | U12: =U9+U10 -> 0.265
A13: Summary - Sharing of Tax Change Forecast Amounts
T14: Federal & Ontario Small Business
A15: ="For the " & '1. Information Sheet'!F32 & " year, enter any Tax Credits from the Cost of Service Tax Calculation (Positive #)" -> For the 2016 year, enter any Tax Credits from the Cost of Service Tax Calculation (Positive #) | T15: Federal small business threshold | U15: 500000
T16: Ontario Small Business Threshold | U16: 500000
A18: 1. Tax Related Amounts Forecast from Capital Tax Rate Changes | L18: ='1. Information Sheet'!F32 -> 2016 | N18: 2017 | T18: Federal small business rate | U18: 0.105
A19: Taxable Capital (if you are not claiming capital tax, please enter your OEB-Approved Rate Base) | L19: 208658217 | N19: =L19 -> 208658217
T20: Ontario small business rate | U20: 0.045
A21: Deduction from taxable capital up to $15,000,000 | N21: =L21 -> 0
A23: Net Taxable Capital | L23: =L19-L21 -> 208658217 | N23: =N19-N21 -> 208658217
A25: Rate | L25: 0 | N25: 0 | T25: Ontario Tax Rate (Maximum 11.5%)
T26: Federal tax rate (Maximum 15%)
A27: Ontario Capital Tax (Deductible, not grossed-up) | L27: =IF(L23>0, L23*L25, 0)*181/365 -> 0 | N27: 0 | T27: Combined tax rate (Maximum 26.5%)
A29: 2. Tax Related Amounts Forecast from lncome Tax Rate Changes
A30: Regulatory Taxable Income | L30: 2427393 | N30: =L30 -> 2427393
A32: Corporate Tax Rate | L32: 0.265 | N32: =IF(ratebase>15000000, 26.5%, IF(ratebase<10000000, 15%, 15%+11.5%*((ratebase-10000000)/5000000))) -> 0.265
A34: Tax Impact | L34: =+L30*L32 -> 643259.145 | N34: =N30*N32-L15 -> 643259.145
A36: Grossed-up Tax Amount | L36: =L34/(1-L32) -> 875182.5102 | N36: =N34/(1-N32) -> 875182.5102
A38: Tax Related Amounts Forecast from Capital Tax Rate Changes | L38: =L27 -> 0 | N38: =N27 -> 0
A40: Tax Related Amounts Forecast from lncome Tax Rate Changes | L40: =L36 -> 875182.5102 | N40: =N36 -> 875182.5102
A42: Total Tax Related Amounts | L42: =SUM(L40,L38) -> 875182.5102 | N42: =SUM(N40,N38) -> 875182.5102
A44: Incremental Tax Savings | N44: =N42-L42 -> 0
A46: Sharing of Tax Amount (50%) | N46: =0.5*N44 -> 0

Sheet 9. Shared Tax - Rate Rider
A12: Calculation of Rebased Revenue Requirement and Allocation of Tax Sharing Amount. Enter data from the last OEB-Approved Cost of Service application in columns C through H.
A13: As per Chapter 3 Filing Requirements, shared tax rate riders are based on a 1 year disposition.
A15: Rate Class | C15: Re-based Billed Customers or Connections | D15: Re-based Billed kWh | E15: Re-based Billed kW | F15: Re-baed Service Charge | G15: Re-based Distribution Volumetric Rate kWh | H15: Re-based Distribution Volumetric Rate kW | I15: Service Charge Revenue | J15: Distribution Volumetric Rate Revenue kWh | K15: Distribution Volumetric Rate Revenue kW | L15: Revenue Requirement from Rates | M15: Service Charge % Revenue | N15: Distribution Volumetric Rate % Revenue kWh | O15: Distribution Volumetric Rate % Revenue kW | P15: Total % Revenue
C16: A | D16: B | E16: C | F16: D | G16: E | H16: F | I16: G = A * D *12 | J16: H = B * E | K16: I = C * F | L16: J = G + H + I | M16: K = G / J | N16: L = H / J | O16: M = I / J | P16: N = J / R
A17: RESIDENTIAL SERVICE CLASSIFICATION | B17: kWh | C17: 49453 | D17: 408868804 | F17: 19.71 | G17: 0.0154 | I17: =F17*C17*12 -> 11696623.56 | J17: =D17*G17 -> 6296579.582 | K17: 0 | L17: =I17+J17+K17 -> 17993203.14 | M17: =IF(ISERROR(I17/L17),0,I17/L17) -> 0.650057884 | N17: =IF(ISERROR(J17/L17),0,J17/L17) -> 0.349942116 | O17: =IF(ISERROR(K17/L17),0,K17/L17) -> 0 | P17: =IF(ISERROR(L17/L24),0,L17/L24) -> 0.5218257342
A18: GENERAL SERVICE LESS THAN 50 kW SERVICE CLASSIFICATION | B18: kWh | C18: 5642 | D18: 196732916 | F18: 31.96 | G18: 0.0159 | I18: 2163819.84 | J18: 3128053.364 | K18: 0 | L18: 5291873.204 | M18: 0.4088948764 | N18: 0.5911051236 | O18: 0 | P18: =IF(ISERROR(L18/L24),0,L18/L24) -> 0.1534710412
A19: GENERAL SERVICE 50 TO 4,999 KW SERVICE CLASSIFICATION | B19: kW | C19: 695 | D19: 728547534 | E19: 1787340 | F19: 119.38 | H19: 5.0649 | I19: 995629.2 | J19: 0 | K19: 9052698.366 | L19: 10048327.57 | M19: 0.0990840708 | N19: 0 | O19: 0.9009159292 | P19: =IF(ISERROR(L19/L24),0,L19/L24) -> 0.2914142562
A20: LARGE USE SERVICE CLASSIFICATION | B20: kW | C20: 1 | D20: 94944937 | E20: 173364 | F20: 6975.72 | H20: 4.0196 | I20: 83708.64 | J20: 0 | K20: 696853.9344 | L20: 780562.5744 | M20: 0.1072414214 | N20: 0 | O20: 0.8927585786 | P20: =IF(ISERROR(L20/L24),0,L20/L24) -> 0.02263730561
A21: UNMETERED SCATTERED LOAD SERVICE CLASSIFICATION | B21: kWh | C21: 563 | D21: 3140372 | F21: 10.61 | G21: 0.0132 | I21: 71681.16 | J21: 41452.9104 | K21: 0 | L21: 113134.0704 | M21: 0.6335948114 | N21: 0.3664051886 | O21: 0 | P21: =IF(ISERROR(L21/L24),0,L21/L24) -> 0.00328103167
A22: STREET LIGHTING SERVICE CLASSIFICATION | B22: kW | C22: 13828 | D22: 7594660 | E22: 21115 | F22: 0.33 | H22: 9.3754 | I22: 54758.88 | J22: 0 | K22: 197961.571 | L22: 252720.451 | M22: 0.216677676 | N22: 0 | O22: 0.783322324 | P22: =IF(ISERROR(L22/L24),0,L22/L24) -> 0.007329213917
A23: EMBEDDED DISTRIBUTOR SERVICE CLASSIFICATION | B23: kW | C23: 1 | D23: 31378863 | E23: 71406 | F23: 0 | H23: 0.02 | I23: 0 | J23: 0 | K23: 1428.12 | L23: 1428.12 | M23: 0 | N23: 0 | O23: 1 | P23: =IF(ISERROR(L23/L24),0,L23/L24) -> 4.141729305e-05
A24: Total | C24: =SUM(C17:C23) -> 70183 | D24: =SUM(D17:D23) -> 1471208086 | E24: =SUM(E17:E23) -> 2053225 | I24: =SUM(I17:I23) -> 15066221.28 | J24: =SUM(J17:J23) -> 9466085.856 | K24: =SUM(K17:K23) -> 9948941.991 | L24: =SUM(L17:L23) -> 34481249.13 | P24: =SUM(P17:P23) -> 1
A27: Rate Class | C27: Total kWh (most recent RRR filing) | D27: Total kW (most recent RRR filing) | E27: Allocation of Tax Savings by Rate Class | F27: Distribution Rate Rider
A28: RESIDENTIAL SERVICE CLASSIFICATION | B28: kWh | C28: 404728026 | D28: 0 | E28: =P17*E35 -> 0 | F28: 0 | G28: $/customer | H28: If the allocated tax sharing amount does not produce a rate rider in one or more rate class (except for the Standby rate class), a distributor is required to transfer the entire OEB-approved tax sharing amount into account 1595 for disposition at a later date (see Filing Requirements, Appendix B)
A29: GENERAL SERVICE LESS THAN 50 kW SERVICE CLASSIFICATION | B29: kWh | C29: 196078596 | D29: 0 | E29: =P18*E35 -> 0 | F29: 0 | G29: kWh
A30: GENERAL SERVICE 50 TO 4,999 KW SERVICE CLASSIFICATION | B30: kW | C30: 696649002 | D30: 1747019 | E30: =P19*E35 -> 0 | F30: 0 | G30: kW
A31: LARGE USE SERVICE CLASSIFICATION | B31: kW | C31: 92984875 | D31: 170151 | E31: =P20*E35 -> 0 | F31: 0 | G31: kW
A32: UNMETERED SCATTERED LOAD SERVICE CLASSIFICATION | B32: kWh | C32: 2649180 | D32: 0 | E32: =P21*E35 -> 0 | F32: 0 | G32: kWh
A33: STREET LIGHTING SERVICE CLASSIFICATION | B33: kW | C33: 7608120 | D33: 21206 | E33: =P22*E35 -> 0 | F33: 0 | G33: kW
A34: EMBEDDED DISTRIBUTOR SERVICE CLASSIFICATION | B34: kW | C34: 33543395 | D34: 75403 | E34: =P23*E35 -> 0 | F34: 0 | G34: kW
A35: Total | C35: =SUM(C28:C34) -> 1434241194 | D35: =SUM(D28:D34) -> 2013779 | E35: =ROUND('8. STS - Tax Change'!N46,2) -> 0

Sheet 10. RTSR Current Rates
AZ1: 1
A13: Columns E and F have been populated with data from the most recent RRR filing. Rate classes that have more than one Network or Connection charge will notice that the cells are highlighted in green and unlocked. If the data needs to be modified, please make the necessary adjustments and note the changes in your manager's summary. As well, the Loss Factor has been imported from Tab 2.
A15: Rate Class | B15: Rate Description | C15: Unit | D15: Rate | E15: Non-Loss Adjusted Metered kWh | F15: Non-Loss Adjusted Metered kW | G15: Applicable Loss Factor | H15: Loss Adjusted Billed kWh
A17: Residential Service Classification | B17: Retail Transmission Rate – Network Service Rate | C17: $/kWh | D17: 0.0074 | E17: 404728026 | F17: 0 | G17: 1.0362 | H17: =E17*G17 -> 419379180.5
A18: Residential Service Classification | B18: Retail Transmission Rate – Line and Transformation Connection Service Rate | C18: $/kWh | D18: 0.0023 | E18: 404728026 | F18: 0 | G18: 1.0362 | H18: =E18*G18 -> 419379180.5
A19: General Service Less Than 50 kW Service Classification | B19: Retail Transmission Rate – Network Service Rate | C19: $/kWh | D19: 0.0067 | E19: 196078596 | F19: 0 | G19: 1.0362 | H19: =E19*G19 -> 203176641.2
A20: General Service Less Than 50 kW Service Classification | B20: Retail Transmission Rate – Line and Transformation Connection Service Rate | C20: $/kWh | D20: 0.0021 | E20: 196078596 | F20: 0 | G20: 1.0362 | H20: =E20*G20 -> 203176641.2
A21: General Service 50 To 4,999 kW Service Classification | B21: Retail Transmission Rate – Network Service Rate – (less than 1,000 kW) | C21: $/kW | D21: 2.7741 | E21: 177709217 | F21: 526536
A22: General Service 50 To 4,999 kW Service Classification | B22: Retail Transmission Rate – Network Service Rate – Interval Metered (less than 1,000 kW) | C22: $/kW | D22: 2.9465 | E22: 269188387 | F22: 696360
A23: General Service 50 To 4,999 kW Service Classification | B23: Retail Transmission Rate – Network Service Rate – Interval Metered (1,000 to 4,999 kW) | C23: $/kW | D23: 2.9427 | E23: 249751398 | F23: 517566
A24: General Service 50 To 4,999 kW Service Classification | B24: Retail Transmission Rate – Line and Transformation Connection Service Rate – (less than 1,000 kW) | C24: $/kW | D24: 0.8036 | E24: 177709217 | F24: 526536
A25: General Service 50 To 4,999 kW Service Classification | B25: Retail Transmission Rate – Line and Trans. Connection Service Rate – Interval Metered(less than 1,000 kW) | C25: $/kW | D25: 1.0037 | E25: 269188387 | F25: 701972
A26: General Service 50 To 4,999 kW Service Classification | B26: Retail Transmission Rate – Line and Trans. Connection Service Rate – Interval Metered (1,000 to 4,999 kW) | C26: $/kW | D26: 1.0026 | E26: 249751398 | F26: 518511
A27: Large Use Service Classification | B27: Retail Transmission Rate – Network Service Rate – Interval Metered | C27: $/kW | D27: 3.2624 | E27: 92984875 | F27: 170151
A28: Large Use Service Classification | B28: Retail Transmission Rate – Line and Transformation Connection Service Rate – Interval Metered | C28: $/kW | D28: 1.0072 | E28: 92984875 | F28: 170151
A29: Unmetered Scattered Load Service Classification | B29: Retail Transmission Rate – Network Service Rate | C29: $/kWh | D29: 0.0067 | E29: 2649180 | F29: 0 | G29: 1.0362 | H29: =E29*G29 -> 2745080.316
A30: Unmetered Scattered Load Service Classification | B30: Retail Transmission Rate – Line and Transformation Connection Service Rate | C30: $/kWh | D30: 0.0021 | E30: 2649180 | F30: 0 | G30: 1.0362 | H30: =E30*G30 -> 2745080.316
A31: Street Lighting Service Classification | B31: Retail Transmission Rate – Network Service Rate | C31: $/kW | D31: 2.0924 | E31: 7608120 | F31: 21206
A32: Street Lighting Service Classification | B32: Retail Transmission Rate – Line and Transformation Connection Service Rate | C32: $/kW | D32: 0.621 | E32: 7608120 | F32: 21206

Sheet 11. RTSR - UTRs & Sub-Tx
B18: Uniform Transmission Rates | C18: Unit | E18: 2015 | H18: 2016 | J18: 2017
B20: Rate Description | E20: Rate | H20: Rate | J20: Rate
B22: Network Service Rate | C22: kW | E22: 3.78 | H22: 3.66 | J22: =H22 -> 3.66
B24: Line Connection Service Rate | C24: kW | E24: 0.86 | H24: 0.87 | J24: =H24 -> 0.87
B26: Transformation Connection Service Rate | C26: kW | E26: 2 | H26: 2.02 | J26: =H26 -> 2.02
B29: Hydro One Sub-Transmission Rates | C29: Unit | E29: 2015 - 2016 | H29: 2016 | J29: 2017
E30: Jan - Apr 2015 | F30: May - Jan 2016 | H30: Feb - Dec 2016
B33: Rate Description | E33: Rate | H33: Rate | J33: Rate
B35: Network Service Rate | C35: kW | E35: 3.23 | F35: 3.4121 | H35: 3.3396 | J35: =H35 -> 3.3396
B37: Line Connection Service Rate | C37: kW | E37: 0.65 | F37: 0.7879 | H37: 0.7791 | J37: =H37 -> 0.7791
B39: Transformation Connection Service Rate | C39: kW | E39: 1.62 | F39: 1.8018 | H39: 1.7713 | J39: =H39 -> 1.7713
B41: Both Line and Transformation Connection Service Rate | C41: kW | E41: =E39+E37 -> 2.27 | F41: =SUM(F39,F37) -> 2.5897 | H41: =SUM(H39,H37) -> 2.5504 | J41: =H41 -> 2.5504
B44: Kitchener Wilmot Hydro Sub-Transmission Rates | C44: Unit | E44: 2015 | H44: 2016 | J44: 2017
B48: Rate Description | E48: Rate | H48: Rate | J48: Rate
B50: Network Service Rate | C50: kW | E50: 3.1105 | H50: 3.0422 | J50: 3.0422
B52: Line Connection Service Rate | C52: kW | E52: 0.7149 | H52: 0.7391 | J52: 0.7391
B54: Transformation Connection Service Rate | C54: kW
B56: Both Line and Transformation Connection Service Rate | C56: kW | E56: =E54+E52 -> 0.7149 | H56: =H54+H52 -> 0.7391 | J56: =J54+J52 -> 0.7391
B59: Energy + Sub-Transmission Rates | C59: Unit | E59: 2015 | H59: 2016 | J59: 2017
B63: Rate Description | E63: Rate | H63: Rate | J63: Rate
B65: Network Service Rate | C65: kW | E65: 2.6758 | H65: 2.5507 | J65: 2.4994
B67: Line Connection Service Rate | C67: kW | E67: 1.869 | H67: 1.8474 | J67: 1.8475
B69: Transformation Connection Service Rate | C69: kW
B71: Both Line and Transformation Connection Service Rate | C71: kW | E71: =E69+E67 -> 1.869 | H71: =H69+H67 -> 1.8474 | J71: =J69+J67 -> 1.8475
E73: Historical 2015 | H73: Current 2016 | J73: Forecast 2017
B74: Low Voltage Switchgear Credit (if applicable, enter as a negative value) | C74: $

Sheet 12. RTSR - Historical Wholesale
B13: In the green shaded cells, enter billing detail for wholesale transmission for the same reporting period as the billing determinants on Tab 10. For Hydro One Sub-transmission Rates, if you are charged a combined Line and Transformer connection rate, please ensure that both the Line Connection and Transformation Connection columns are completed. If any of the Hydro One Sub-transmission rates (column E, I and M) are highlighted in orange, please double check the billing data entered in "Units Billed" and "Amount" columns. The highlighted rates do not match the Hydro One Sub-transmission rates approved for that time period. If data has been entered correctly, please provide explanation for the discrepancy in rates.
B16: IESO | D16: Network | H16: Line Connection | L16: Transformation Connection | P16: Total Line
B17: Month | D17: Units Billed | E17: Rate | F17: Amount | H17: Units Billed | I17: Rate | J17: Amount | L17: Units Billed | M17: Rate | N17: Amount | P17: Amount
B19: January | D19: 213748 | E19: =IF(D19<>0,F19/D19,0) -> 3.78 | F19: 807967.44 | H19: 214801 | I19: =IF(H19<>0,J19/H19,0) -> 0.86 | J19: 184728.86 | L19: 23257 | M19: =IF(L19<>0,N19/L19,0) -> 2.00000688 | N19: 46514.16 | P19: =J19+N19 -> 231243.02
B20: February | D20: 204564 | E20: 3.78 | F20: 773251.92 | H20: 215513 | I20: 0.86 | J20: 185341.18 | L20: 23952 | M20: 2 | N20: 47904 | P20: 233245.18
B21: March | D21: 200240 | E21: 3.78 | F21: 756907.2 | H21: 203791 | I21: 0.86 | J21: 175260.26 | L21: 24327 | M21: 2 | N21: 48654 | P21: 223914.26
B22: April | D22: 176680 | E22: 3.78 | F22: 667850.4 | H22: 188347 | I22: 0.86 | J22: 161978.42 | L22: 23129 | M22: 2 | N22: 46258 | P22: 208236.42
B23: May | D23: 211203 | E23: 3.78 | F23: 798347.34 | H23: 212978 | I23: 0.86 | J23: 183161.08 | L23: 21385 | M23: 2 | N23: 42770 | P23: 225931.08
B24: June | D24: 208753 | E24: 3.78 | F24: 789086.34 | H24: 218979 | I24: 0.86 | J24: 188321.94 | L24: 21930 | M24: 2 | N24: 43860 | P24: 232181.94
B25: July | D25: 242447 | E25: 3.78 | F25: 916449.66 | H25: 247962 | I25: 0.86 | J25: 213247.32 | L25: 26302 | M25: 2 | N25: 52604 | P25: 265851.32
B26: August | D26: 238065 | E26: 3.78 | F26: 899885.7 | H26: 242656 | I26: 0.86 | J26: 208684.16 | L26: 23977 | M26: 2 | N26: 47954 | P26: 256638.16
B27: September | D27: 240898 | E27: 3.78 | F27: 910594.44 | H27: 245819 | I27: 0.86 | J27: 211404.34 | L27: 24989 | M27: 2 | N27: 49978 | P27: 261382.34
B28: October | D28: 170343 | E28: 3.78 | F28: 643896.54 | H28: 186135 | I28: 0.86 | J28: 160076.1 | L28: 20484 | M28: 2 | N28: 40968 | P28: 201044.1
B29: November | D29: 187768 | E29: 3.78 | F29: 709763.04 | H29: 203363 | I29: 0.86 | J29: 174892.18 | L29: 21379 | M29: 2 | N29: 42758 | P29: 217650.18
B30: December | D30: 188229 | E30: 3.78 | F30: 711505.62 | H30: 206092 | I30: 0.86 | J30: 177239.12 | L30: 21962 | M30: 2 | N30: 43924 | P30: 221163.12
B32: Total | D32: =SUM(D19:D30) -> 2482938 | E32: =IF(D32<>0,F32/D32,0) -> 3.78 | F32: =SUM(F19:F30) -> 9385505.64 | H32: =SUM(H19:H30) -> 2586436 | I32: =IF(H32<>0,J32/H32,0) -> 0.86 | J32: =SUM(J19:J30) -> 2224334.96 | L32: =SUM(L19:L30) -> 277073 | M32: =IF(L32<>0,N32/L32,0) -> 2.000000577 | N32: =SUM(N19:N30) -> 554146.16 | P32: =SUM(P19:P30) -> 2778481.12
B34: Hydro One | D34: Network | H34: Line Connection | L34: Transformation Connection | P34: Total Line
B36: Month | D36: Units Billed | E36: Rate | F36: Amount | H36: Units Billed | I36: Rate | J36: Amount | L36: Units Billed | M36: Rate | N36: Amount | P36: Amount
B38: January | D38: 3518.297214 | E38: =IF(D38<>0,F38/D38,0) -> 3.23 | F38: 11364.1 | H38: 3606.723077 | I38: =IF(H38<>0,J38/H38,0) -> 0.65 | J38: 2344.37 | L38: 3606.728395 | M38: =IF(L38<>0,N38/L38,0) -> 1.62 | N38: 5842.9 | P38: =J38+N38 -> 8187.27
B39: February | D39: 3388.634675 | E39: =IF(D39<>0,F39/D39,0) -> 3.23 | F39: 10945.29 | H39: 3524.984615 | I39: 0.65 | J39: 2291.24 | L39: 3524.981481 | M39: 1.62 | N39: 5710.47 | P39: =J39+N39 -> 8001.71
B40: March | D40: 3071.393189 | E40: 3.23 | F40: 9920.6 | H40: 3211.215385 | I40: 0.65 | J40: 2087.29 | L40: 3211.222222 | M40: 1.62 | N40: 5202.18 | P40: 7289.47
B41: April | D41: 2357.065015 | E41: 3.23 | F41: 7613.32 | H41: 2357.061538 | I41: 0.65 | J41: 1532.09 | L41: 2357.067901 | M41: 1.62 | N41: 3818.45 | P41: 5350.54
B42: May | D42: 2854.11 | E42: 3.301537082 | F42: 9422.95 | H42: 2889.86 | I42: 0.7041759808 | J42: 2034.97 | L42: 2889.86 | M42: 1.691424498 | N42: 4887.98 | P42: 6922.95
B43: June | D43: 2557.691744 | E43: 3.4121 | F43: 8727.1 | H43: 2739.713162 | I43: 0.7879 | J43: 2158.62 | L43: 2739.71584 | M43: 1.8018 | N43: 4936.42 | P43: 7095.04
B44: July | D44: 2711.210105 | E44: 3.4121 | F44: 9250.92 | H44: 2879.718238 | I44: 0.7879 | J44: 2268.93 | L44: 2879.72028 | M44: 1.8018 | N44: 5188.68 | P44: 7457.61
B45: August | D45: 2773.73465 | E45: 3.4121 | F45: 9464.26 | H45: 2936.362483 | I45: 0.7879 | J45: 2313.56 | L45: 2936.363636 | M45: 1.8018 | N45: 5290.74 | P45: 7604.3
B46: September | D46: 2994.836025 | E46: 3.4121 | F46: 10218.68 | H46: 3124.774718 | I46: 0.7879 | J46: 2462.01 | L46: 3124.780775 | M46: 1.8018 | N46: 5630.23 | P46: 8092.24
B47: October | D47: 2679.094985 | E47: 3.4121 | F47: 9141.34 | H47: 2845.500698 | I47: 0.7879 | J47: 2241.97 | L47: 2845.493395 | M47: 1.8018 | N47: 5127.01 | P47: 7368.98
B48: November | D48: 2927.056651 | E48: 3.4121 | F48: 9987.41 | H48: 2955.819266 | I48: 0.7879 | J48: 2328.89 | L48: 2955.821956 | M48: 1.8018 | N48: 5325.8 | P48: 7654.69
B49: December | D49: 2968.761173 | E49: 3.4121 | F49: 10129.71 | H49: 3067.445107 | I49: 0.7879 | J49: 2416.84 | L49: 3067.449217 | M49: 1.8018 | N49: 5526.93 | P49: 7943.77
B51: Total | D51: =SUM(D38:D49) -> 34801.88543 | E51: =IF(D51<>0,F51/D51,0) -> 3.33848809 | F51: =SUM(F38:F49) -> 116185.68 | H51: =SUM(H38:H49) -> 36139.17829 | I51: =IF(H51<>0,J51/H51,0) -> 0.7327443859 | J51: =SUM(J38:J49) -> 26480.78 | L51: =SUM(L38:L49) -> 36139.2051 | M51: =IF(L51<>0,N51/L51,0) -> 1.729085901 | N51: =SUM(N38:N49) -> 62487.79 | P51: =SUM(P38:P49) -> 88968.57
B53: Kitchener Wilmot Hydro | D53: Network | H53: Line Connection | L53: Transformation Connection | P53: Total Line
B54: (if needed)
B55: Month | D55: Units Billed | E55: Rate | F55: Amount | H55: Units Billed | I55: Rate | J55: Amount | L55: Units Billed | M55: Rate | N55: Amount | P55: Amount
B57: January | D57: 4589.43 | E57: =IF(D57<>0,F57/D57,0) -> 3.110493024 | F57: 14275.39 | H57: 4589.425094 | I57: =IF(H57<>0,J57/H57,0) -> 0.7149 | J57: 3280.98 | M57: =IF(L57<>0,N57/L57,0) -> 0 | P57: =J57+N57 -> 3280.98
B58: February | D58: 4594.801479 | E58: 3.1105 | F58: 14292.13 | H58: 4622.017065 | I58: 0.7149 | J58: 3304.28 | M58: 0 | P58: 3304.28
B59: March | D59: 4141.199164 | E59: 3.1105 | F59: 12881.2 | H59: 4316.925444 | I59: 0.7149 | J59: 3086.17 | M59: 0 | P59: 3086.17
B60: April | D60: 3557.569523 | E60: 3.1105 | F60: 11065.82 | H60: 3557.574486 | I60: 0.7149 | J60: 2543.31 | M60: 0 | P60: 2543.31
B61: May | D61: 3663.411027 | E61: 3.1105 | F61: 11395.04 | H61: 3663.40747 | I61: 0.7149 | J61: 2618.97 | M61: 0 | P61: 2618.97
B62: June | D62: 3686.259444 | E62: 3.1105 | F62: 11466.11 | H62: 3686.263813 | I62: 0.7149 | J62: 2635.31 | M62: 0 | P62: 2635.31
B63: July | D63: 4452.001286 | E63: 3.1105 | F63: 13847.95 | H63: 4451.993286 | I63: 0.7149 | J63: 3182.73 | M63: 0 | P63: 3182.73
B64: August | D64: 4396.219257 | E64: 3.1105 | F64: 13674.44 | H64: 4396.223248 | I64: 0.7149 | J64: 3142.86 | M64: 0 | P64: 3142.86
B65: September | D65: 4570.268446 | E65: 3.1105 | F65: 14215.82 | H65: 4570.275563 | I65: 0.7149 | J65: 3267.29 | M65: 0 | P65: 3267.29
B66: October | D66: 3580.421154 | E66: 3.1105 | F66: 11136.9 | H66: 3580.416842 | I66: 0.7149 | J66: 2559.64 | M66: 0 | P66: 2559.64
B67: November | D67: 4004.449445 | E67: 3.1105 | F67: 12455.84 | H67: 4004.448175 | I67: 0.7149 | J67: 2862.78 | M67: 0 | P67: 2862.78
B68: December | D68: 4269.551519 | E68: 3.1105 | F68: 13280.44 | H68: 4269.548189 | I68: 0.7149 | J68: 3052.3 | M68: 0 | P68: 3052.3
B70: Total | D70: =SUM(D57:D68) -> 49505.58174 | E70: =IF(D70<>0,F70/D70,0) -> 3.110499353 | F70: =SUM(F57:F68) -> 153987.08 | H70: =SUM(H57:H68) -> 49708.51867 | I70: =IF(H70<>0,J70/H70,0) -> 0.7149 | J70: =SUM(J57:J68) -> 35536.62 | L70: =SUM(L57:L68) -> 0 | M70: =IF(L70<>0,N70/L70,0) -> 0 | N70: =SUM(N57:N68) -> 0 | P70: =SUM(P57:P68) -> 35536.62
B72: Energy + | D72: Network | H72: Line Connection | L72: Transformation Connection | P72: Total Line
B73: (if needed)
B74: Month | D74: Units Billed | E74: Rate | F74: Amount | H74: Units Billed | I74: Rate | J74: Amount | L74: Units Billed | M74: Rate | N74: Amount | P74: Amount
B76: January | D76: 9581.449627 | E76: =IF(D76<>0,F76/D76,0) -> 2.7207 | F76: 26068.25 | H76: 9581.447396 | I76: =IF(H76<>0,J76/H76,0) -> 1.9124 | J76: 18323.56 | M76: =IF(L76<>0,N76/L76,0) -> 0 | P76: =J76+N76 -> 18323.56
B77: February | D77: 9339.699342 | E77: 2.7207 | F77: 25410.52 | H77: 9570.638988 | I77: 1.9124 | J77: 18302.89 | M77: 0 | P77: 18302.89
B78: March | D78: 8997.581505 | E78: 2.7207 | F78: 24479.72 | H78: 9084.741686 | I78: 1.9124 | J78: 17373.66 | M78: 0 | P78: 17373.66
B79: April | D79: 8466.861469 | E79: 2.7207 | F79: 23035.79 | H79: 8498.201213 | I79: 1.9124 | J79: 16251.96 | M79: 0 | P79: 16251.96
B80: May | D80: 8843.819251 | E80: 2.6534 | F80: 23466.19 | H80: 8858.279651 | I80: 1.8473 | J80: 16363.9 | M80: 0 | P80: 16363.9
B81: June | D81: 8508.099043 | E81: 2.6534 | F81: 22575.39 | H81: 8508.098306 | I81: 1.8473 | J81: 15717.01 | M81: 0 | P81: 15717.01
B82: July | D82: 9586.440039 | E82: 2.6534 | F82: 25436.66 | H82: 9586.439669 | I82: 1.8473 | J82: 17709.03 | M82: 0 | P82: 17709.03
B83: August | D83: 9720.648979 | E83: 2.6534 | F83: 25792.77 | H83: 9720.651762 | I83: 1.8473 | J83: 17956.96 | M83: 0 | P83: 17956.96
B84: September | D84: 9644.478782 | E84: 2.6534 | F84: 25590.66 | H84: 9644.481135 | I84: 1.8473 | J84: 17816.25 | M84: 0 | P84: 17816.25
B85: October | D85: 8122.069797 | E85: 2.6534 | F85: 21551.1 | H85: 8122.070048 | I85: 1.8473 | J85: 15003.9 | M85: 0 | P85: 15003.9
B86: November | D86: 8684.401146 | E86: 2.6534 | F86: 23043.19 | H86: 8684.398852 | I86: 1.8473 | J86: 16042.69 | M86: 0 | P86: 16042.69
B87: December | D87: 8573.211728 | E87: 2.6534 | F87: 22748.16 | H87: 8573.209549 | I87: 1.8473 | J87: 15837.29 | M87: 0 | P87: 15837.29
B89: Total | D89: =SUM(D76:D87) -> 108068.7607 | E89: =IF(D89<>0,F89/D89,0) -> 2.676059188 | F89: =SUM(F76:F87) -> 289198.4 | H89: =SUM(H76:H87) -> 108432.6583 | I89: =IF(H89<>0,J89/H89,0) -> 1.869354706 | J89: =SUM(J76:J87) -> 202699.1 | L89: =SUM(L76:L87) -> 0 | M89: =IF(L89<>0,N89/L89,0) -> 0 | N89: =SUM(N76:N87) -> 0 | P89: =SUM(P76:P87) -> 202699.1
B91: Total | D91: Network | H91: Line Connection | L91: Transformation Connection | P91: Total Line
B93: Month | D93: Units Billed | E93: Rate | F93: Amount | H93: Units Billed | I93: Rate | J93: Amount | L93: Units Billed | M93: Rate | N93: Amount | P93: Amount
B95: January | D95: =D19+D38+D57+D76 -> 231437.1768 | E95: =IF(D95<>0,F95/D95,0) -> 3.71450772 | F95: =F19+F38+F57+F76 -> 859675.18 | H95: =H19+H38+H57+H76 -> 232578.5956 | I95: =IF(H95<>0,J95/H95,0) -> 0.8972354893 | J95: =J19+J38+J57+J76 -> 208677.77 | L95: =L19+L38+L57+L76 -> 26863.7284 | M95: =IF(L95<>0,N95/L95,0) -> 1.948987096 | N95: =N19+N38+N57+N76 -> 52357.06 | P95: =J95+N95 -> 261034.83
B96: February | D96: =D20+D39+D58+D77 -> 221887.1355 | E96: 3.71314839 | F96: =F20+F39+F58+F77 -> 823899.86 | H96: =H20+H39+H58+H77 -> 233230.6407 | I96: 0.8971359398 | J96: =J20+J39+J58+J77 -> 209239.59 | L96: =L20+L39+L58+L77 -> 27476.98148 | M96: 1.95125036 | N96: =N20+N39+N58+N77 -> 53614.47 | P96: 262854.06
B97: March | D97: 216450.1739 | E97: 3.715352617 | F97: 804188.72 | H97: 220403.8825 | I97: 0.89747684 | J97: 197807.38 | L97: 27538.22222 | M97: 1.955688336 | N97: 53856.18 | P97: 251663.56
B98: April | D98: 191061.496 | E98: 3.713805999 | F98: 709565.33 | H98: 202759.8372 | I98: 0.8991217515 | J98: 182305.78 | L98: 25486.0679 | M98: 1.964855865 | N98: 50076.45 | P98: 232382.23
B99: May | D99: 226564.3403 | E99: 3.719170982 | F99: 842631.52 | H99: 228389.5471 | I99: 0.8939941542 | J99: 204178.92 | L99: 24274.86 | M99: 1.963264876 | N99: 47657.98 | P99: 251836.9
B100: June | D100: 223505.0502 | E100: 3.721861941 | F100: 831854.94 | H100: 233913.0753 | I100: 0.8927798489 | J100: 208832.88 | L100: 24669.71584 | M100: 1.977988734 | N100: 48796.42 | P100: 257629.3
B101: July | D101: 259196.6514 | E101: 3.722984787 | F101: 964985.19 | H101: 264880.1512 | I101: 0.8925093441 | J101: 236408.01 | L101: 29181.72028 | M101: 1.980441161 | N101: 57792.68 | P101: 294200.69
B102: August | D102: 254955.6029 | E102: 3.721499584 | F102: 948817.17 | H102: 259709.2375 | I102: 0.8936822665 | J102: 232097.54 | L102: 26913.36364 | M102: 1.978375528 | N102: 53244.74 | P102: 285342.28
B103: September | D103: 258107.5833 | E103: 3.72177984 | F103: 960619.6 | H103: 263158.5314 | I103: 0.892807422 | J103: 234949.89 | L103: 28113.78077 | M103: 1.977970535 | N103: 55608.23 | P103: 290558.12
B104: October | D104: 184724.5859 | E104: 3.712152752 | F104: 685725.88 | H104: 200682.9876 | I104: 0.8963470803 | J104: 179881.61 | L104: 23329.4934 | M104: 1.975825588 | N104: 46095.01 | P104: 225976.62
B105: November | D105: 203383.9072 | E105: 3.713418088 | F105: 755249.48 | H105: 219007.6663 | I105: 0.8955236286 | J105: 196126.54 | L105: 24334.82196 | M105: 1.975925696 | N105: 48083.8 | P105: 244210.34
B106: December | D106: 204040.5244 | E106: 3.713301229 | F106: 757663.93 | H106: 222002.2028 | I106: 0.89434045 | J106: 198545.55 | L106: 25029.44922 | M106: 1.975709876 | N106: 49450.93 | P106: 247996.48
B108: Total | D108: =SUM(D95:D106) -> 2675314.228 | E108: =IF(D108<>0,F108/D108,0) -> 3.717274291 | F108: =SUM(F95:F106) -> 9944876.8 | H108: =SUM(H95:H106) -> 2780716.355 | I108: =IF(H108<>0,J108/H108,0) -> 0.8951115979 | J108: =SUM(J95:J106) -> 2489051.46 | L108: =SUM(L95:L106) -> 313212.2051 | M108: =IF(L108<>0,N108/L108,0) -> 1.968741767 | N108: =SUM(N95:N106) -> 616633.95 | P108: =SUM(P95:P106) -> 3105685.41
N110: Low Voltage Switchgear Credit (if applicable) | P110: ='11. RTSR - UTRs & Sub-Tx'!E74 -> 0
N112: Total including deduction for Low Voltage Switchgear Credit | P112: =P108+P110 -> 3105685.41

Sheet 13. RTSR - Current Wholesale
B13: The purpose of this sheet is to calculate the expected billing when current 2016 Uniform Transmission Rates are applied against historical 2015 transmission units.
B16: IESO | D16: Network | H16: Line Connection | L16: Transformation Connection | P16: Total Line
B18: Month | D18: Units Billed | E18: Rate | F18: Amount | H18: Units Billed | I18: Rate | J18: Amount | L18: Units Billed | M18: Rate | N18: Amount | P18: Amount
B20: January | D20: ='12. RTSR - Historical Wholesale'!D19 -> 213748 | E20: ='11. RTSR - UTRs & Sub-Tx'!H22 -> 3.66 | F20: =D20*E20 -> 782317.68 | H20: ='12. RTSR - Historical Wholesale'!H19 -> 214801 | I20: ='11. RTSR - UTRs & Sub-Tx'!H24 -> 0.87 | J20: =H20*I20 -> 186876.87 | L20: ='12. RTSR - Historical Wholesale'!L19 -> 23257 | M20: ='11. RTSR - UTRs & Sub-Tx'!H26 -> 2.02 | N20: =L20*M20 -> 46979.14 | P20: =J20+N20 -> 233856.01
B21: February | D21: ='12. RTSR - Historical Wholesale'!D20 -> 204564 | E21: =E20 -> 3.66 | F21: =D21*E21 -> 748704.24 | H21: ='12. RTSR - Historical Wholesale'!H20 -> 215513 | I21: =I20 -> 0.87 | J21: =H21*I21 -> 187496.31 | L21: ='12. RTSR - Historical Wholesale'!L20 -> 23952 | M21: =M20 -> 2.02 | N21: =L21*M21 -> 48383.04 | P21: 235879.35
B22: March | D22: ='12. RTSR - Historical Wholesale'!D21 -> 200240 | E22: =E21 -> 3.66 | F22: 732878.4 | H22: ='12. RTSR - Historical Wholesale'!H21 -> 203791 | I22: =I21 -> 0.87 | J22: 177298.17 | L22: ='12. RTSR - Historical Wholesale'!L21 -> 24327 | M22: =M21 -> 2.02 | N22: 49140.54 | P22: 226438.71
B23: April | D23: ='12. RTSR - Historical Wholesale'!D22 -> 176680 | E23: 3.66 | F23: 646648.8 | H23: ='12. RTSR - Historical Wholesale'!H22 -> 188347 | I23: 0.87 | J23: 163861.89 | L23: ='12. RTSR - Historical Wholesale'!L22 -> 23129 | M23: 2.02 | N23: 46720.58 | P23: 210582.47
B24: May | D24: ='12. RTSR - Historical Wholesale'!D23 -> 211203 | E24: 3.66 | F24: 773002.98 | H24: ='12. RTSR - Historical Wholesale'!H23 -> 212978 | I24: 0.87 | J24: 185290.86 | L24: ='12. RTSR - Historical Wholesale'!L23 -> 21385 | M24: 2.02 | N24: 43197.7 | P24: 228488.56
B25: June | D25: ='12. RTSR - Historical Wholesale'!D24 -> 208753 | E25: 3.66 | F25: 764035.98 | H25: ='12. RTSR - Historical Wholesale'!H24 -> 218979 | I25: 0.87 | J25: 190511.73 | L25: ='12. RTSR - Historical Wholesale'!L24 -> 21930 | M25: 2.02 | N25: 44298.6 | P25: 234810.33
B26: July | D26: ='12. RTSR - Historical Wholesale'!D25 -> 242447 | E26: 3.66 | F26: 887356.02 | H26: ='12. RTSR - Historical Wholesale'!H25 -> 247962 | I26: 0.87 | J26: 215726.94 | L26: ='12. RTSR - Historical Wholesale'!L25 -> 26302 | M26: 2.02 | N26: 53130.04 | P26: 268856.98
B27: August | D27: ='12. RTSR - Historical Wholesale'!D26 -> 238065 | E27: 3.66 | F27: 871317.9 | H27: ='12. RTSR - Historical Wholesale'!H26 -> 242656 | I27: 0.87 | J27: 211110.72 | L27: ='12. RTSR - Historical Wholesale'!L26 -> 23977 | M27: 2.02 | N27: 48433.54 | P27: 259544.26
B28: September | D28: ='12. RTSR - Historical Wholesale'!D27 -> 240898 | E28: 3.66 | F28: 881686.68 | H28: ='12. RTSR - Historical Wholesale'!H27 -> 245819 | I28: 0.87 | J28: 213862.53 | L28: ='12. RTSR - Historical Wholesale'!L27 -> 24989 | M28: 2.02 | N28: 50477.78 | P28: 264340.31
B29: October | D29: ='12. RTSR - Historical Wholesale'!D28 -> 170343 | E29: 3.66 | F29: 623455.38 | H29: ='12. RTSR - Historical Wholesale'!H28 -> 186135 | I29: 0.87 | J29: 161937.45 | L29: ='12. RTSR - Historical Wholesale'!L28 -> 20484 | M29: 2.02 | N29: 41377.68 | P29: 203315.13
B30: November | D30: ='12. RTSR - Historical Wholesale'!D29 -> 187768 | E30: 3.66 | F30: 687230.88 | H30: ='12. RTSR - Historical Wholesale'!H29 -> 203363 | I30: 0.87 | J30: 176925.81 | L30: ='12. RTSR - Historical Wholesale'!L29 -> 21379 | M30: 2.02 | N30: 43185.58 | P30: 220111.39
B31: December | D31: ='12. RTSR - Historical Wholesale'!D30 -> 188229 | E31: 3.66 | F31: 688918.14 | H31: ='12. RTSR - Historical Wholesale'!H30 -> 206092 | I31: 0.87 | J31: 179300.04 | L31: ='12. RTSR - Historical Wholesale'!L30 -> 21962 | M31: 2.02 | N31: 44363.24 | P31: 223663.28
B33: Total | D33: =SUM(D20:D31) -> 2482938 | E33: =IF(D33<>0,F33/D33,0) -> 3.66 | F33: =SUM(F20:F31) -> 9087553.08 | H33: =SUM(H20:H31) -> 2586436 | I33: =IF(H33<>0,J33/H33,0) -> 0.87 | J33: =SUM(J20:J31) -> 2250199.32 | L33: =SUM(L20:L31) -> 277073 | M33: =IF(L33<>0,N33/L33,0) -> 2.02 | N33: =SUM(N20:N31) -> 559687.46 | P33: =SUM(P20:P31) -> 2809886.78
B35: Hydro One | D35: Network | H35: Line Connection | L35: Transformation Connection | P35: Total Line
B37: Month | D37: Units Billed | E37: Rate | F37: Amount | H37: Units Billed | I37: Rate | J37: Amount | L37: Units Billed | M37: Rate | N37: Amount | P37: Amount
B39: January | D39: ='12. RTSR - Historical Wholesale'!D38 -> 3518.297214 | E39: ='11. RTSR - UTRs & Sub-Tx'!F35 -> 3.4121 | F39: =D39*E39 -> 12004.78192 | H39: ='12. RTSR - Historical Wholesale'!H38 -> 3606.723077 | I39: ='11. RTSR - UTRs & Sub-Tx'!F37 -> 0.7879 | J39: =H39*I39 -> 2841.737112 | L39: ='12. RTSR - Historical Wholesale'!L38 -> 3606.728395 | M39: ='11. RTSR - UTRs & Sub-Tx'!F39 -> 1.8018 | N39: =L39*M39 -> 6498.603222 | P39: =J39+N39 -> 9340.340335
B40: February | D40: ='12. RTSR - Historical Wholesale'!D39 -> 3388.634675 | E40: ='11. RTSR - UTRs & Sub-Tx'!H35 -> 3.3396 | F40: =D40*E40 -> 11316.68436 | H40: ='12. RTSR - Historical Wholesale'!H39 -> 3524.984615 | I40: ='11. RTSR - UTRs & Sub-Tx'!H37 -> 0.7791 | J40: =H40*I40 -> 2746.315514 | L40: ='12. RTSR - Historical Wholesale'!L39 -> 3524.981481 | M40: ='11. RTSR - UTRs & Sub-Tx'!H39 -> 1.7713 | N40: =L40*M40 -> 6243.799698 | P40: 8990.115212
B41: March | D41: ='12. RTSR - Historical Wholesale'!D40 -> 3071.393189 | E41: =E40 -> 3.3396 | F41: 10257.22469 | H41: ='12. RTSR - Historical Wholesale'!H40 -> 3211.215385 | I41: =I40 -> 0.7791 | J41: 2501.857906 | L41: ='12. RTSR - Historical Wholesale'!L40 -> 3211.222222 | M41: =M40 -> 1.7713 | N41: 5688.037922 | P41: 8189.895828
B42: April | D42: ='12. RTSR - Historical Wholesale'!D41 -> 2357.065015 | E42: 3.3396 | F42: 7871.654326 | H42: ='12. RTSR - Historical Wholesale'!H41 -> 2357.061538 | I42: 0.7791 | J42: 1836.386645 | L42: ='12. RTSR - Historical Wholesale'!L41 -> 2357.067901 | M42: =M41 -> 1.7713 | N42: 4175.074373 | P42: 6011.461018
B43: May | D43: ='12. RTSR - Historical Wholesale'!D42 -> 2854.11 | E43: 3.3396 | F43: 9531.585756 | H43: ='12. RTSR - Historical Wholesale'!H42 -> 2889.86 | I43: 0.7791 | J43: 2251.489926 | L43: ='12. RTSR - Historical Wholesale'!L42 -> 2889.86 | M43: 1.7713 | N43: 5118.809018 | P43: 7370.298944
B44: June | D44: ='12. RTSR - Historical Wholesale'!D43 -> 2557.691744 | E44: 3.3396 | F44: 8541.667349 | H44: ='12. RTSR - Historical Wholesale'!H43 -> 2739.713162 | I44: 0.7791 | J44: 2134.510524 | L44: ='12. RTSR - Historical Wholesale'!L43 -> 2739.71584 | M44: 1.7713 | N44: 4852.858667 | P44: 6987.369191
B45: July | D45: ='12. RTSR - Historical Wholesale'!D44 -> 2711.210105 | E45: 3.3396 | F45: 9054.357267 | H45: ='12. RTSR - Historical Wholesale'!H44 -> 2879.718238 | I45: 0.7791 | J45: 2243.58848 | L45: ='12. RTSR - Historical Wholesale'!L44 -> 2879.72028 | M45: 1.7713 | N45: 5100.848531 | P45: 7344.437011
B46: August | D46: ='12. RTSR - Historical Wholesale'!D45 -> 2773.73465 | E46: 3.3396 | F46: 9263.164238 | H46: ='12. RTSR - Historical Wholesale'!H45 -> 2936.362483 | I46: 0.7791 | J46: 2287.72001 | L46: ='12. RTSR - Historical Wholesale'!L45 -> 2936.363636 | M46: 1.7713 | N46: 5201.180909 | P46: 7488.900919
B47: September | D47: ='12. RTSR - Historical Wholesale'!D46 -> 2994.836025 | E47: 3.3396 | F47: 10001.55439 | H47: ='12. RTSR - Historical Wholesale'!H46 -> 3124.774718 | I47: 0.7791 | J47: 2434.511982 | L47: ='12. RTSR - Historical Wholesale'!L46 -> 3124.780775 | M47: 1.7713 | N47: 5534.924186 | P47: 7969.436169
B48: October | D48: ='12. RTSR - Historical Wholesale'!D47 -> 2679.094985 | E48: 3.3396 | F48: 8947.105614 | H48: ='12. RTSR - Historical Wholesale'!H47 -> 2845.500698 | I48: 0.7791 | J48: 2216.929594 | L48: ='12. RTSR - Historical Wholesale'!L47 -> 2845.493395 | M48: 1.7713 | N48: 5040.222451 | P48: 7257.152045
B49: November | D49: ='12. RTSR - Historical Wholesale'!D48 -> 2927.056651 | E49: 3.3396 | F49: 9775.198393 | H49: ='12. RTSR - Historical Wholesale'!H48 -> 2955.819266 | I49: 0.7791 | J49: 2302.87879 | L49: ='12. RTSR - Historical Wholesale'!L48 -> 2955.821956 | M49: 1.7713 | N49: 5235.64743 | P49: 7538.526221
B50: December | D50: ='12. RTSR - Historical Wholesale'!D49 -> 2968.761173 | E50: 3.3396 | F50: 9914.474815 | H50: ='12. RTSR - Historical Wholesale'!H49 -> 3067.445107 | I50: 0.7791 | J50: 2389.846483 | L50: ='12. RTSR - Historical Wholesale'!L49 -> 3067.449217 | M50: 1.7713 | N50: 5433.372799 | P50: 7823.219282
B52: Total | D52: =SUM(D39:D50) -> 34801.88543 | E52: =IF(D52<>0,F52/D52,0) -> 3.346929389 | F52: =SUM(F39:F50) -> 116479.4531 | H52: =SUM(H39:H50) -> 36139.17829 | I52: =IF(H52<>0,J52/H52,0) -> 0.7799782481 | J52: =SUM(J39:J50) -> 28187.77297 | L52: =SUM(L39:L50) -> 36139.2051 | M52: =IF(L52<>0,N52/L52,0) -> 1.77434393 | N52: =SUM(N39:N50) -> 64123.37921 | P52: =SUM(P39:P50) -> 92311.15218
B54: ='12. RTSR - Historical Wholesale'!B53 -> Kitchener Wilmot Hydro | D54: Network | H54: Line Connection | L54: Transformation Connection | P54: Total Line
B56: Month | D56: Units Billed | E56: Rate | F56: Amount | H56: Units Billed | I56: Rate | J56: Amount | L56: Units Billed | M56: Rate | N56: Amount | P56: Amount
B58: January | D58: ='12. RTSR - Historical Wholesale'!D57 -> 4589.43 | E58: ='11. RTSR - UTRs & Sub-Tx'!H50 -> 3.0422 | F58: =D58*E58 -> 13961.96395 | H58: ='12. RTSR - Historical Wholesale'!H57 -> 4589.425094 | I58: ='11. RTSR - UTRs & Sub-Tx'!H52 -> 0.7391 | J58: =H58*I58 -> 3392.044087 | L58: ='12. RTSR - Historical Wholesale'!L57 -> 0 | M58: ='11. RTSR - UTRs & Sub-Tx'!H54 -> 0 | N58: =L58*M58 -> 0 | P58: =J58+N58 -> 3392.044087
B59: February | D59: ='12. RTSR - Historical Wholesale'!D58 -> 4594.801479 | E59: =E58 -> 3.0422 | F59: =D59*E59 -> 13978.30506 | H59: ='12. RTSR - Historical Wholesale'!H58 -> 4622.017065 | I59: =I58 -> 0.7391 | J59: =H59*I59 -> 3416.132813 | L59: ='12. RTSR - Historical Wholesale'!L58 -> 0 | M59: =M58 -> 0 | N59: =L59*M59 -> 0 | P59: 3416.132813
B60: March | D60: ='12. RTSR - Historical Wholesale'!D59 -> 4141.199164 | E60: =E59 -> 3.0422 | F60: 12598.3561 | H60: ='12. RTSR - Historical Wholesale'!H59 -> 4316.925444 | I60: =I59 -> 0.7391 | J60: 3190.639596 | L60: ='12. RTSR - Historical Wholesale'!L59 -> 0 | M60: =M59 -> 0 | N60: 0 | P60: 3190.639596
B61: April | D61: ='12. RTSR - Historical Wholesale'!D60 -> 3557.569523 | E61: 3.0422 | F61: 10822.838 | H61: ='12. RTSR - Historical Wholesale'!H60 -> 3557.574486 | I61: 0.7391 | J61: 2629.403303 | L61: ='12. RTSR - Historical Wholesale'!L60 -> 0 | M61: =M60 -> 0 | N61: 0 | P61: 2629.403303
B62: May | D62: ='12. RTSR - Historical Wholesale'!D61 -> 3663.411027 | E62: 3.0422 | F62: 11144.82903 | H62: ='12. RTSR - Historical Wholesale'!H61 -> 3663.40747 | I62: 0.7391 | J62: 2707.624461 | L62: ='12. RTSR - Historical Wholesale'!L61 -> 0 | M62: 0 | N62: 0 | P62: 2707.624461
B63: June | D63: ='12. RTSR - Historical Wholesale'!D62 -> 3686.259444 | E63: 3.0422 | F63: 11214.33848 | H63: ='12. RTSR - Historical Wholesale'!H62 -> 3686.263813 | I63: 0.7391 | J63: 2724.517584 | L63: ='12. RTSR - Historical Wholesale'!L62 -> 0 | M63: 0 | N63: 0 | P63: 2724.517584
B64: July | D64: ='12. RTSR - Historical Wholesale'!D63 -> 4452.001286 | E64: 3.0422 | F64: 13543.87831 | H64: ='12. RTSR - Historical Wholesale'!H63 -> 4451.993286 | I64: 0.7391 | J64: 3290.468238 | L64: ='12. RTSR - Historical Wholesale'!L63 -> 0 | M64: 0 | N64: 0 | P64: 3290.468238
B65: August | D65: ='12. RTSR - Historical Wholesale'!D64 -> 4396.219257 | E65: 3.0422 | F65: 13374.17822 | H65: ='12. RTSR - Historical Wholesale'!H64 -> 4396.223248 | I65: 0.7391 | J65: 3249.248603 | L65: ='12. RTSR - Historical Wholesale'!L64 -> 0 | M65: 0 | N65: 0 | P65: 3249.248603
B66: September | D66: ='12. RTSR - Historical Wholesale'!D65 -> 4570.268446 | E66: 3.0422 | F66: 13903.67067 | H66: ='12. RTSR - Historical Wholesale'!H65 -> 4570.275563 | I66: 0.7391 | J66: 3377.890669 | L66: ='12. RTSR - Historical Wholesale'!L65 -> 0 | M66: 0 | N66: 0 | P66: 3377.890669
B67: October | D67: ='12. RTSR - Historical Wholesale'!D66 -> 3580.421154 | E67: 3.0422 | F67: 10892.35724 | H67: ='12. RTSR - Historical Wholesale'!H66 -> 3580.416842 | I67: 0.7391 | J67: 2646.286088 | L67: ='12. RTSR - Historical Wholesale'!L66 -> 0 | M67: 0 | N67: 0 | P67: 2646.286088
B68: November | D68: ='12. RTSR - Historical Wholesale'!D67 -> 4004.449445 | E68: 3.0422 | F68: 12182.3361 | H68: ='12. RTSR - Historical Wholesale'!H67 -> 4004.448175 | I68: 0.7391 | J68: 2959.687646 | L68: ='12. RTSR - Historical Wholesale'!L67 -> 0 | M68: 0 | N68: 0 | P68: 2959.687646
B69: December | D69: ='12. RTSR - Historical Wholesale'!D68 -> 4269.551519 | E69: 3.0422 | F69: 12988.82963 | H69: ='12. RTSR - Historical Wholesale'!H68 -> 4269.548189 | I69: 0.7391 | J69: 3155.623066 | L69: ='12. RTSR - Historical Wholesale'!L68 -> 0 | M69: 0 | N69: 0 | P69: 3155.623066
B71: Total | D71: =SUM(D58:D69) -> 49505.58174 | E71: =IF(D71<>0,F71/D71,0) -> 3.0422 | F71: =SUM(F58:F69) -> 150605.8808 | H71: =SUM(H58:H69) -> 49708.51867 | I71: =IF(H71<>0,J71/H71,0) -> 0.7391 | J71: =SUM(J58:J69) -> 36739.56615 | L71: =SUM(L58:L69) -> 0 | M71: =IF(L71<>0,N71/L71,0) -> 0 | N71: =SUM(N58:N69) -> 0 | P71: =SUM(P58:P69) -> 36739.56615
B73: ='12. RTSR - Historical Wholesale'!B72 -> Energy + | D73: Network | H73: Line Connection | L73: Transformation Connection | P73: Total Line
B75: Month | D75: Units Billed | E75: Rate | F75: Amount | H75: Units Billed | I75: Rate | J75: Amount | L75: Units Billed | M75: Rate | N75: Amount | P75: Amount
B77: January | D77: ='12. RTSR - Historical Wholesale'!D76 -> 9581.449627 | E77: ='11. RTSR - UTRs & Sub-Tx'!H65 -> 2.5507 | F77: =D77*E77 -> 24439.40356 | H77: ='12. RTSR - Historical Wholesale'!H76 -> 9581.447396 | I77: ='11. RTSR - UTRs & Sub-Tx'!H67 -> 1.8474 | J77: =H77*I77 -> 17700.76592 | L77: ='12. RTSR - Historical Wholesale'!L76 -> 0 | M77: ='11. RTSR - UTRs & Sub-Tx'!H69 -> 0 | N77: =L77*M77 -> 0 | P77: =J77+N77 -> 17700.76592
B78: February | D78: ='12. RTSR - Historical Wholesale'!D77 -> 9339.699342 | E78: =E77 -> 2.5507 | F78: =D78*E78 -> 23822.77111 | H78: ='12. RTSR - Historical Wholesale'!H77 -> 9570.638988 | I78: =I77 -> 1.8474 | J78: =H78*I78 -> 17680.79847 | L78: ='12. RTSR - Historical Wholesale'!L77 -> 0 | M78: =M77 -> 0 | N78: =L78*M78 -> 0 | P78: 17680.79847
B79: March | D79: ='12. RTSR - Historical Wholesale'!D78 -> 8997.581505 | E79: =E78 -> 2.5507 | F79: 22950.13114 | H79: ='12. RTSR - Historical Wholesale'!H78 -> 9084.741686 | I79: =I78 -> 1.8474 | J79: 16783.15179 | L79: ='12. RTSR - Historical Wholesale'!L78 -> 0 | M79: =M78 -> 0 | N79: 0 | P79: 16783.15179
B80: April | D80: ='12. RTSR - Historical Wholesale'!D79 -> 8466.861469 | E80: 2.5507 | F80: 21596.42355 | H80: ='12. RTSR - Historical Wholesale'!H79 -> 8498.201213 | I80: 1.8474 | J80: 15699.57692 | L80: ='12. RTSR - Historical Wholesale'!L79 -> 0 | M80: =M79 -> 0 | N80: 0 | P80: 15699.57692
B81: May | D81: ='12. RTSR - Historical Wholesale'!D80 -> 8843.819251 | E81: 2.5507 | F81: 22557.92976 | H81: ='12. RTSR - Historical Wholesale'!H80 -> 8858.279651 | I81: 1.8474 | J81: 16364.78583 | L81: ='12. RTSR - Historical Wholesale'!L80 -> 0 | M81: 0 | N81: 0 | P81: 16364.78583
B82: June | D82: ='12. RTSR - Historical Wholesale'!D81 -> 8508.099043 | E82: 2.5507 | F82: 21701.60823 | H82: ='12. RTSR - Historical Wholesale'!H81 -> 8508.098306 | I82: 1.8474 | J82: 15717.86081 | L82: ='12. RTSR - Historical Wholesale'!L81 -> 0 | M82: 0 | N82: 0 | P82: 15717.86081
B83: July | D83: ='12. RTSR - Historical Wholesale'!D82 -> 9586.440039 | E83: 2.5507 | F83: 24452.13261 | H83: ='12. RTSR - Historical Wholesale'!H82 -> 9586.439669 | I83: 1.8474 | J83: 17709.98864 | L83: ='12. RTSR - Historical Wholesale'!L82 -> 0 | M83: 0 | N83: 0 | P83: 17709.98864
B84: August | D84: ='12. RTSR - Historical Wholesale'!D83 -> 9720.648979 | E84: 2.5507 | F84: 24794.45935 | H84: ='12. RTSR - Historical Wholesale'!H83 -> 9720.651762 | I84: 1.8474 | J84: 17957.93207 | L84: ='12. RTSR - Historical Wholesale'!L83 -> 0 | M84: 0 | N84: 0 | P84: 17957.93207
B85: September | D85: ='12. RTSR - Historical Wholesale'!D84 -> 9644.478782 | E85: 2.5507 | F85: 24600.17203 | H85: ='12. RTSR - Historical Wholesale'!H84 -> 9644.481135 | I85: 1.8474 | J85: 17817.21445 | L85: ='12. RTSR - Historical Wholesale'!L84 -> 0 | M85: 0 | N85: 0 | P85: 17817.21445
B86: October | D86: ='12. RTSR - Historical Wholesale'!D85 -> 8122.069797 | E86: 2.5507 | F86: 20716.96343 | H86: ='12. RTSR - Historical Wholesale'!H85 -> 8122.070048 | I86: 1.8474 | J86: 15004.71221 | L86: ='12. RTSR - Historical Wholesale'!L85 -> 0 | M86: 0 | N86: 0 | P86: 15004.71221
B87: November | D87: ='12. RTSR - Historical Wholesale'!D86 -> 8684.401146 | E87: 2.5507 | F87: 22151.302 | H87: ='12. RTSR - Historical Wholesale'!H86 -> 8684.398852 | I87: 1.8474 | J87: 16043.55844 | L87: ='12. RTSR - Historical Wholesale'!L86 -> 0 | M87: 0 | N87: 0 | P87: 16043.55844
B88: December | D88: ='12. RTSR - Historical Wholesale'!D87 -> 8573.211728 | E88: 2.5507 | F88: 21867.69116 | H88: ='12. RTSR - Historical Wholesale'!H87 -> 8573.209549 | I88: 1.8474 | J88: 15838.14732 | L88: ='12. RTSR - Historical Wholesale'!L87 -> 0 | M88: 0 | N88: 0 | P88: 15838.14732
B90: Total | D90: =SUM(D77:D88) -> 108068.7607 | E90: =IF(D90<>0,F90/D90,0) -> 2.5507 | F90: =SUM(F77:F88) -> 275650.9879 | H90: =SUM(H77:H88) -> 108432.6583 | I90: =IF(H90<>0,J90/H90,0) -> 1.8474 | J90: =SUM(J77:J88) -> 200318.4929 | L90: =SUM(L77:L88) -> 0 | M90: =IF(L90<>0,N90/L90,0) -> 0 | N90: =SUM(N77:N88) -> 0 | P90: =SUM(P77:P88) -> 200318.4929
B92: Total | D92: Network | H92: Line Connection | L92: Transformation Connection | P92: Total Line
B94: Month | D94: Units Billed | E94: Rate | F94: Amount | H94: Units Billed | I94: Rate | J94: Amount | L94: Units Billed | M94: Rate | N94: Amount | P94: Amount
B96: January | D96: =D20+D39+D58+D77 -> 231437.1768 | E96: =IF(D96<>0,F96/D96,0) -> 3.598055597 | F96: =F20+F39+F58+F77 -> 832723.8294 | H96: =H20+H39+H58+H77 -> 232578.5956 | I96: =IF(H96<>0,J96/H96,0) -> 0.906409365 | J96: =J20+J39+J58+J77 -> 210811.4171 | L96: =L20+L39+L58+L77 -> 26863.7284 | M96: =IF(L96<>0,N96/L96,0) -> 1.990704434 | N96: =N20+N39+N58+N77 -> 53477.74322 | P96: =J96+N96 -> 264289.1603
B97: February | D97: =D21+D40+D59+D78 -> 221887.1355 | E97: 3.595620804 | F97: =F21+F40+F59+F78 -> 797822.0005 | H97: =H21+H40+H59+H78 -> 233230.6407 | I97: 0.9061397601 | J97: =J21+J40+J59+J78 -> 211339.5568 | L97: =L21+L40+L59+L78 -> 27476.98148 | M97: 1.988094643 | N97: =N21+N40+N59+N78 -> 54626.8397 | P97: 265966.3965
B98: March | D98: 216450.1739 | E98: 3.597521305 | F98: 778684.1119 | H98: 220403.8825 | I98: 0.9063988212 | J98: 199773.8193 | L98: 27538.22222 | M98: 1.990999182 | N98: 54828.57792 | P98: 254602.3972
B99: April | D99: 191061.496 | E99: 3.595385414 | F99: 686939.7159 | H99: 202759.8372 | I99: 0.9076119777 | J99: 184027.2569 | L99: 25486.0679 | M99: 1.996999089 | N99: 50895.65437 | P99: 234922.9112
B100: May | D100: 226564.3403 | E100: 3.602673411 | F100: 816237.3245 | H100: 228389.5471 | I100: 0.9046594418 | J100: 206614.7602 | L100: 24274.86 | M100: 1.990392901 | N100: 48316.50902 | P100: 254931.2692
B101: June | D101: 223505.0502 | E101: 3.603916749 | F101: 805493.5941 | H101: 233913.0753 | I101: 0.9024233411 | J101: 211088.6189 | L101: 24669.71584 | M101: 1.992380414 | N101: 49151.45867 | P101: 260240.0776
B102: July | D102: 259196.6514 | E102: 3.60500949 | F102: 934406.3882 | H102: 264880.1512 | I102: 0.9021853253 | J102: 238970.9854 | L102: 29181.72028 | M102: 1.995457703 | N102: 58230.88853 | P102: 297201.8739
B103: August | D103: 254955.6029 | E103: 3.603567411 | F103: 918749.7018 | H103: 259709.2375 | I103: 0.9033395306 | J103: 234605.6207 | L103: 26913.36364 | M103: 1.992865761 | N103: 53634.72091 | P103: 288240.3416
B104: September | D104: 258107.5833 | E104: 3.603892863 | F104: 930192.0771 | H104: 263158.5314 | I104: 0.9024679756 | J104: 237492.1471 | L104: 28113.78077 | M104: 1.992357578 | N104: 56012.70419 | P104: 293504.8513
B105: October | D105: 184724.5859 | E105: 3.594604383 | F105: 664011.8063 | H105: 200682.9876 | I105: 0.9059331838 | J105: 181805.3779 | L105: 23329.4934 | M105: 1.989666113 | N105: 46417.90245 | P105: 228223.2803
B106: November | D106: 203383.9072 | E106: 3.595858327 | F106: 731339.7165 | H106: 219007.6663 | I106: 0.9051369673 | J106: 198231.9349 | L106: 24334.82196 | M106: 1.989791728 | N106: 48421.22743 | P106: 246653.1623
B107: December | D107: 204040.5244 | E107: 3.595801068 | F107: 733689.1356 | H107: 222002.2028 | I107: 0.9039714665 | J107: 200683.6569 | L107: 25029.44922 | M107: 1.989520919 | N107: 49796.6128 | P107: 250480.2697
B109: Total | D109: =SUM(D96:D107) -> 2675314.228 | E109: =IF(D109<>0,F109/D109,0) -> 3.599685338 | F109: =SUM(F96:F107) -> 9630289.402 | H109: =SUM(H96:H107) -> 2780716.355 | I109: =IF(H109<>0,J109/H109,0) -> 0.9046032859 | J109: =SUM(J96:J107) -> 2515445.152 | L109: =SUM(L96:L107) -> 313212.2051 | M109: =IF(L109<>0,N109/L109,0) -> 1.99165559 | N109: =SUM(N96:N107) -> 623810.8392 | P109: =SUM(P96:P107) -> 3139255.991
N111: Low Voltage Switchgear Credit (if applicable) | P111: ='11. RTSR - UTRs & Sub-Tx'!H74 -> 0
N113: Total including deduction for Low Voltage Switchgear Credit | P113: =P109+P111 -> 3139255.991

Sheet 14. RTSR - Forecast Wholesale
B13: The purpose of this sheet is to calculate the expected billing when forecasted 2017 Uniform Transmission Rates are applied against historical 2015 transmission units.
B16: IESO | D16: Network | H16: Line Connection | L16: Transformation Connection | P16: Total Line
B18: Month | D18: Units Billed | E18: Rate | F18: Amount | H18: Units Billed | I18: Rate | J18: Amount | L18: Units Billed | M18: Rate | N18: Amount | P18: Amount
B20: January | D20: ='12. RTSR - Historical Wholesale'!D19 -> 213748 | E20: ='11. RTSR - UTRs & Sub-Tx'!J22 -> 3.66 | F20: =D20*E20 -> 782317.68 | H20: ='12. RTSR - Historical Wholesale'!H19 -> 214801 | I20: ='11. RTSR - UTRs & Sub-Tx'!J24 -> 0.87 | J20: =H20*I20 -> 186876.87 | L20: ='12. RTSR - Historical Wholesale'!L19 -> 23257 | M20: ='11. RTSR - UTRs & Sub-Tx'!J26 -> 2.02 | N20: =L20*M20 -> 46979.14 | P20: =J20+N20 -> 233856.01
B21: February | D21: ='12. RTSR - Historical Wholesale'!D20 -> 204564 | E21: =E20 -> 3.66 | F21: 748704.24 | H21: ='12. RTSR - Historical Wholesale'!H20 -> 215513 | I21: =I20 -> 0.87 | J21: 187496.31 | L21: ='12. RTSR - Historical Wholesale'!L20 -> 23952 | M21: =M20 -> 2.02 | N21: 48383.04 | P21: 235879.35
B22: March | D22: ='12. RTSR - Historical Wholesale'!D21 -> 200240 | E22: 3.66 | F22: 732878.4 | H22: ='12. RTSR - Historical Wholesale'!H21 -> 203791 | I22: 0.87 | J22: 177298.17 | L22: ='12. RTSR - Historical Wholesale'!L21 -> 24327 | M22: 2.02 | N22: 49140.54 | P22: 226438.71
B23: April | D23: ='12. RTSR - Historical Wholesale'!D22 -> 176680 | E23: 3.66 | F23: 646648.8 | H23: ='12. RTSR - Historical Wholesale'!H22 -> 188347 | I23: 0.87 | J23: 163861.89 | L23: ='12. RTSR - Historical Wholesale'!L22 -> 23129 | M23: 2.02 | N23: 46720.58 | P23: 210582.47
B24: May | D24: ='12. RTSR - Historical Wholesale'!D23 -> 211203 | E24: 3.66 | F24: 773002.98 | H24: ='12. RTSR - Historical Wholesale'!H23 -> 212978 | I24: 0.87 | J24: 185290.86 | L24: ='12. RTSR - Historical Wholesale'!L23 -> 21385 | M24: 2.02 | N24: 43197.7 | P24: 228488.56
B25: June | D25: ='12. RTSR - Historical Wholesale'!D24 -> 208753 | E25: 3.66 | F25: 764035.98 | H25: ='12. RTSR - Historical Wholesale'!H24 -> 218979 | I25: 0.87 | J25: 190511.73 | L25: ='12. RTSR - Historical Wholesale'!L24 -> 21930 | M25: 2.02 | N25: 44298.6 | P25: 234810.33
B26: July | D26: ='12. RTSR - Historical Wholesale'!D25 -> 242447 | E26: 3.66 | F26: 887356.02 | H26: ='12. RTSR - Historical Wholesale'!H25 -> 247962 | I26: 0.87 | J26: 215726.94 | L26: ='12. RTSR - Historical Wholesale'!L25 -> 26302 | M26: 2.02 | N26: 53130.04 | P26: 268856.98
B27: August | D27: ='12. RTSR - Historical Wholesale'!D26 -> 238065 | E27: 3.66 | F27: 871317.9 | H27: ='12. RTSR - Historical Wholesale'!H26 -> 242656 | I27: 0.87 | J27: 211110.72 | L27: ='12. RTSR - Historical Wholesale'!L26 -> 23977 | M27: 2.02 | N27: 48433.54 | P27: 259544.26
B28: September | D28: ='12. RTSR - Historical Wholesale'!D27 -> 240898 | E28: 3.66 | F28: 881686.68 | H28: ='12. RTSR - Historical Wholesale'!H27 -> 245819 | I28: 0.87 | J28: 213862.53 | L28: ='12. RTSR - Historical Wholesale'!L27 -> 24989 | M28: 2.02 | N28: 50477.78 | P28: 264340.31
B29: October | D29: ='12. RTSR - Historical Wholesale'!D28 -> 170343 | E29: 3.66 | F29: 623455.38 | H29: ='12. RTSR - Historical Wholesale'!H28 -> 186135 | I29: 0.87 | J29: 161937.45 | L29: ='12. RTSR - Historical Wholesale'!L28 -> 20484 | M29: 2.02 | N29: 41377.68 | P29: 203315.13
B30: November | D30: ='12. RTSR - Historical Wholesale'!D29 -> 187768 | E30: 3.66 | F30: 687230.88 | H30: ='12. RTSR - Historical Wholesale'!H29 -> 203363 | I30: 0.87 | J30: 176925.81 | L30: ='12. RTSR - Historical Wholesale'!L29 -> 21379 | M30: 2.02 | N30: 43185.58 | P30: 220111.39
B31: December | D31: ='12. RTSR - Historical Wholesale'!D30 -> 188229 | E31: 3.66 | F31: 688918.14 | H31: ='12. RTSR - Historical Wholesale'!H30 -> 206092 | I31: 0.87 | J31: 179300.04 | L31: ='12. RTSR - Historical Wholesale'!L30 -> 21962 | M31: 2.02 | N31: 44363.24 | P31: 223663.28
B33: Total | D33: =SUM(D20:D31) -> 2482938 | E33: =IF(D33<>0,F33/D33,0) -> 3.66 | F33: =SUM(F20:F31) -> 9087553.08 | H33: =SUM(H20:H31) -> 2586436 | I33: =IF(H33<>0,J33/H33,0) -> 0.87 | J33: =SUM(J20:J31) -> 2250199.32 | L33: =SUM(L20:L31) -> 277073 | M33: =IF(L33<>0,N33/L33,0) -> 2.02 | N33: =SUM(N20:N31) -> 559687.46 | P33: =SUM(P20:P31) -> 2809886.78
B35: Hydro One | D35: Network | H35: Line Connection | L35: Transformation Connection | P35: Total Line
B37: Month | D37: Units Billed | E37: Rate | F37: Amount | H37: Units Billed | I37: Rate | J37: Amount | L37: Units Billed | M37: Rate | N37: Amount | P37: Amount
B39: January | D39: ='12. RTSR - Historical Wholesale'!D38 -> 3518.297214 | E39: ='11. RTSR - UTRs & Sub-Tx'!J35 -> 3.3396 | F39: =D39*E39 -> 11749.70537 | H39: ='12. RTSR - Historical Wholesale'!H38 -> 3606.723077 | I39: ='11. RTSR - UTRs & Sub-Tx'!J37 -> 0.7791 | J39: =H39*I39 -> 2809.997949 | L39: ='12. RTSR - Historical Wholesale'!L38 -> 3606.728395 | M39: ='11. RTSR - UTRs & Sub-Tx'!J39 -> 1.7713 | N39: =L39*M39 -> 6388.598006 | P39: =J39+N39 -> 9198.595955
B40: February | D40: ='12. RTSR - Historical Wholesale'!D39 -> 3388.634675 | E40: =E39 -> 3.3396 | F40: 11316.68436 | H40: ='12. RTSR - Historical Wholesale'!H39 -> 3524.984615 | I40: =I39 -> 0.7791 | J40: 2746.315514 | L40: ='12. RTSR - Historical Wholesale'!L39 -> 3524.981481 | M40: =M39 -> 1.7713 | N40: 6243.799698 | P40: 8990.115212
B41: March | D41: ='12. RTSR - Historical Wholesale'!D40 -> 3071.393189 | E41: 3.3396 | F41: 10257.22469 | H41: ='12. RTSR - Historical Wholesale'!H40 -> 3211.215385 | I41: 0.7791 | J41: 2501.857906 | L41: ='12. RTSR - Historical Wholesale'!L40 -> 3211.222222 | M41: 1.7713 | N41: 5688.037922 | P41: 8189.895828
B42: April | D42: ='12. RTSR - Historical Wholesale'!D41 -> 2357.065015 | E42: 3.3396 | F42: 7871.654326 | H42: ='12. RTSR - Historical Wholesale'!H41 -> 2357.061538 | I42: 0.7791 | J42: 1836.386645 | L42: ='12. RTSR - Historical Wholesale'!L41 -> 2357.067901 | M42: 1.7713 | N42: 4175.074373 | P42: 6011.461018
B43: May | D43: ='12. RTSR - Historical Wholesale'!D42 -> 2854.11 | E43: 3.3396 | F43: 9531.585756 | H43: ='12. RTSR - Historical Wholesale'!H42 -> 2889.86 | I43: 0.7791 | J43: 2251.489926 | L43: ='12. RTSR - Historical Wholesale'!L42 -> 2889.86 | M43: 1.7713 | N43: 5118.809018 | P43: 7370.298944
B44: June | D44: ='12. RTSR - Historical Wholesale'!D43 -> 2557.691744 | E44: 3.3396 | F44: 8541.667349 | H44: ='12. RTSR - Historical Wholesale'!H43 -> 2739.713162 | I44: 0.7791 | J44: 2134.510524 | L44: ='12. RTSR - Historical Wholesale'!L43 -> 2739.71584 | M44: 1.7713 | N44: 4852.858667 | P44: 6987.369191
B45: July | D45: ='12. RTSR - Historical Wholesale'!D44 -> 2711.210105 | E45: 3.3396 | F45: 9054.357267 | H45: ='12. RTSR - Historical Wholesale'!H44 -> 2879.718238 | I45: 0.7791 | J45: 2243.58848 | L45: ='12. RTSR - Historical Wholesale'!L44 -> 2879.72028 | M45: 1.7713 | N45: 5100.848531 | P45: 7344.437011
B46: August | D46: ='12. RTSR - Historical Wholesale'!D45 -> 2773.73465 | E46: 3.3396 | F46: 9263.164238 | H46: ='12. RTSR - Historical Wholesale'!H45 -> 2936.362483 | I46: 0.7791 | J46: 2287.72001 | L46: ='12. RTSR - Historical Wholesale'!L45 -> 2936.363636 | M46: 1.7713 | N46: 5201.180909 | P46: 7488.900919
B47: September | D47: ='12. RTSR - Historical Wholesale'!D46 -> 2994.836025 | E47: 3.3396 | F47: 10001.55439 | H47: ='12. RTSR - Historical Wholesale'!H46 -> 3124.774718 | I47: 0.7791 | J47: 2434.511982 | L47: ='12. RTSR - Historical Wholesale'!L46 -> 3124.780775 | M47: 1.7713 | N47: 5534.924186 | P47: 7969.436169
B48: October | D48: ='12. RTSR - Historical Wholesale'!D47 -> 2679.094985 | E48: 3.3396 | F48: 8947.105614 | H48: ='12. RTSR - Historical Wholesale'!H47 -> 2845.500698 | I48: 0.7791 | J48: 2216.929594 | L48: ='12. RTSR - Historical Wholesale'!L47 -> 2845.493395 | M48: 1.7713 | N48: 5040.222451 | P48: 7257.152045
B49: November | D49: ='12. RTSR - Historical Wholesale'!D48 -> 2927.056651 | E49: 3.3396 | F49: 9775.198393 | H49: ='12. RTSR - Historical Wholesale'!H48 -> 2955.819266 | I49: 0.7791 | J49: 2302.87879 | L49: ='12. RTSR - Historical Wholesale'!L48 -> 2955.821956 | M49: 1.7713 | N49: 5235.64743 | P49: 7538.526221
B50: December | D50: ='12. RTSR - Historical Wholesale'!D49 -> 2968.761173 | E50: 3.3396 | F50: 9914.474815 | H50: ='12. RTSR - Historical Wholesale'!H49 -> 3067.445107 | I50: 0.7791 | J50: 2389.846483 | L50: ='12. RTSR - Historical Wholesale'!L49 -> 3067.449217 | M50: 1.7713 | N50: 5433.372799 | P50: 7823.219282
B52: Total | D52: =SUM(D39:D50) -> 34801.88543 | E52: =IF(D52<>0,F52/D52,0) -> 3.3396 | F52: =SUM(F39:F50) -> 116224.3766 | H52: =SUM(H39:H50) -> 36139.17829 | I52: =IF(H52<>0,J52/H52,0) -> 0.7791 | J52: =SUM(J39:J50) -> 28156.0338 | L52: =SUM(L39:L50) -> 36139.2051 | M52: =IF(L52<>0,N52/L52,0) -> 1.7713 | N52: =SUM(N39:N50) -> 64013.37399 | P52: =SUM(P39:P50) -> 92169.4078
B54: ='12. RTSR - Historical Wholesale'!B53 -> Kitchener Wilmot Hydro | D54: Network | H54: Line Connection | L54: Transformation Connection | P54: Total Line
B56: Month | D56: Units Billed | E56: Rate | F56: Amount | H56: Units Billed | I56: Rate | J56: Amount | L56: Units Billed | M56: Rate | N56: Amount | P56: Amount
B58: January | D58: ='12. RTSR - Historical Wholesale'!D57 -> 4589.43 | E58: ='11. RTSR - UTRs & Sub-Tx'!J50 -> 3.0422 | F58: =D58*E58 -> 13961.96395 | H58: ='12. RTSR - Historical Wholesale'!H57 -> 4589.425094 | I58: ='11. RTSR - UTRs & Sub-Tx'!J52 -> 0.7391 | J58: =H58*I58 -> 3392.044087 | L58: ='12. RTSR - Historical Wholesale'!L57 -> 0 | M58: ='11. RTSR - UTRs & Sub-Tx'!J54 -> 0 | N58: =L58*M58 -> 0 | P58: =J58+N58 -> 3392.044087
B59: February | D59: ='12. RTSR - Historical Wholesale'!D58 -> 4594.801479 | E59: =E58 -> 3.0422 | F59: 13978.30506 | H59: ='12. RTSR - Historical Wholesale'!H58 -> 4622.017065 | I59: =I58 -> 0.7391 | J59: 3416.132813 | L59: ='12. RTSR - Historical Wholesale'!L58 -> 0 | M59: =M58 -> 0 | N59: 0 | P59: 3416.132813
B60: March | D60: ='12. RTSR - Historical Wholesale'!D59 -> 4141.199164 | E60: 3.0422 | F60: 12598.3561 | H60: ='12. RTSR - Historical Wholesale'!H59 -> 4316.925444 | I60: 0.7391 | J60: 3190.639596 | L60: ='12. RTSR - Historical Wholesale'!L59 -> 0 | M60: 0 | N60: 0 | P60: 3190.639596
B61: April | D61: ='12. RTSR - Historical Wholesale'!D60 -> 3557.569523 | E61: 3.0422 | F61: 10822.838 | H61: ='12. RTSR - Historical Wholesale'!H60 -> 3557.574486 | I61: 0.7391 | J61: 2629.403303 | L61: ='12. RTSR - Historical Wholesale'!L60 -> 0 | M61: 0 | N61: 0 | P61: 2629.403303
B62: May | D62: ='12. RTSR - Historical Wholesale'!D61 -> 3663.411027 | E62: 3.0422 | F62: 11144.82903 | H62: ='12. RTSR - Historical Wholesale'!H61 -> 3663.40747 | I62: 0.7391 | J62: 2707.624461 | L62: ='12. RTSR - Historical Wholesale'!L61 -> 0 | M62: 0 | N62: 0 | P62: 2707.624461
B63: June | D63: ='12. RTSR - Historical Wholesale'!D62 -> 3686.259444 | E63: 3.0422 | F63: 11214.33848 | H63: ='12. RTSR - Historical Wholesale'!H62 -> 3686.263813 | I63: 0.7391 | J63: 2724.517584 | L63: ='12. RTSR - Historical Wholesale'!L62 -> 0 | M63: 0 | N63: 0 | P63: 2724.517584
B64: July | D64: ='12. RTSR - Historical Wholesale'!D63 -> 4452.001286 | E64: 3.0422 | F64: 13543.87831 | H64: ='12. RTSR - Historical Wholesale'!H63 -> 4451.993286 | I64: 0.7391 | J64: 3290.468238 | L64: ='12. RTSR - Historical Wholesale'!L63 -> 0 | M64: 0 | N64: 0 | P64: 3290.468238
B65: August | D65: ='12. RTSR - Historical Wholesale'!D64 -> 4396.219257 | E65: 3.0422 | F65: 13374.17822 | H65: ='12. RTSR - Historical Wholesale'!H64 -> 4396.223248 | I65: 0.7391 | J65: 3249.248603 | L65: ='12. RTSR - Historical Wholesale'!L64 -> 0 | M65: 0 | N65: 0 | P65: 3249.248603
B66: September | D66: ='12. RTSR - Historical Wholesale'!D65 -> 4570.268446 | E66: 3.0422 | F66: 13903.67067 | H66: ='12. RTSR - Historical Wholesale'!H65 -> 4570.275563 | I66: 0.7391 | J66: 3377.890669 | L66: ='12. RTSR - Historical Wholesale'!L65 -> 0 | M66: 0 | N66: 0 | P66: 3377.890669
B67: October | D67: ='12. RTSR - Historical Wholesale'!D66 -> 3580.421154 | E67: 3.0422 | F67: 10892.35724 | H67: ='12. RTSR - Historical Wholesale'!H66 -> 3580.416842 | I67: 0.7391 | J67: 2646.286088 | L67: ='12. RTSR - Historical Wholesale'!L66 -> 0 | M67: 0 | N67: 0 | P67: 2646.286088
B68: November | D68: ='12. RTSR - Historical Wholesale'!D67 -> 4004.449445 | E68: 3.0422 | F68: 12182.3361 | H68: ='12. RTSR - Historical Wholesale'!H67 -> 4004.448175 | I68: 0.7391 | J68: 2959.687646 | L68: ='12. RTSR - Historical Wholesale'!L67 -> 0 | M68: 0 | N68: 0 | P68: 2959.687646
B69: December | D69: ='12. RTSR - Historical Wholesale'!D68 -> 4269.551519 | E69: 3.0422 | F69: 12988.82963 | H69: ='12. RTSR - Historical Wholesale'!H68 -> 4269.548189 | I69: 0.7391 | J69: 3155.623066 | L69: ='12. RTSR - Historical Wholesale'!L68 -> 0 | M69: 0 | N69: 0 | P69: 3155.623066
B71: Total | D71: =SUM(D58:D69) -> 49505.58174 | E71: =IF(D71<>0,F71/D71,0) -> 3.0422 | F71: =SUM(F58:F69) -> 150605.8808 | H71: =SUM(H58:H69) -> 49708.51867 | I71: =IF(H71<>0,J71/H71,0) -> 0.7391 | J71: =SUM(J58:J69) -> 36739.56615 | L71: =SUM(L58:L69) -> 0 | M71: =IF(L71<>0,N71/L71,0) -> 0 | N71: =SUM(N58:N69) -> 0 | P71: =SUM(P58:P69) -> 36739.56615
B73: ='12. RTSR - Historical Wholesale'!B72 -> Energy + | D73: Network | H73: Line Connection | L73: Transformation Connection | P73: Total Line
B75: Month | D75: Units Billed | E75: Rate | F75: Amount | H75: Units Billed | I75: Rate | J75: Amount | L75: Units Billed | M75: Rate | N75: Amount | P75: Amount
B77: January | D77: ='12. RTSR - Historical Wholesale'!D76 -> 9581.449627 | E77: ='11. RTSR - UTRs & Sub-Tx'!J65 -> 2.4994 | F77: =D77*E77 -> 23947.8752 | H77: ='12. RTSR - Historical Wholesale'!H76 -> 9581.447396 | I77: ='11. RTSR - UTRs & Sub-Tx'!J67 -> 1.8475 | J77: =H77*I77 -> 17701.72406 | L77: ='12. RTSR - Historical Wholesale'!L76 -> 0 | M77: ='11. RTSR - UTRs & Sub-Tx'!J69 -> 0 | N77: =L77*M77 -> 0 | P77: =J77+N77 -> 17701.72406
B78: February | D78: ='12. RTSR - Historical Wholesale'!D77 -> 9339.699342 | E78: =E77 -> 2.4994 | F78: 23343.64454 | H78: ='12. RTSR - Historical Wholesale'!H77 -> 9570.638988 | I78: =I77 -> 1.8475 | J78: 17681.75553 | L78: ='12. RTSR - Historical Wholesale'!L77 -> 0 | M78: =M77 -> 0 | N78: 0 | P78: 17681.75553
B79: March | D79: ='12. RTSR - Historical Wholesale'!D78 -> 8997.581505 | E79: 2.4994 | F79: 22488.55521 | H79: ='12. RTSR - Historical Wholesale'!H78 -> 9084.741686 | I79: 1.8475 | J79: 16784.06026 | L79: ='12. RTSR - Historical Wholesale'!L78 -> 0 | M79: 0 | N79: 0 | P79: 16784.06026
B80: April | D80: ='12. RTSR - Historical Wholesale'!D79 -> 8466.861469 | E80: 2.4994 | F80: 21162.07356 | H80: ='12. RTSR - Historical Wholesale'!H79 -> 8498.201213 | I80: 1.8475 | J80: 15700.42674 | L80: ='12. RTSR - Historical Wholesale'!L79 -> 0 | M80: 0 | N80: 0 | P80: 15700.42674
B81: May | D81: ='12. RTSR - Historical Wholesale'!D80 -> 8843.819251 | E81: 2.4994 | F81: 22104.24184 | H81: ='12. RTSR - Historical Wholesale'!H80 -> 8858.279651 | I81: 1.8475 | J81: 16365.67166 | L81: ='12. RTSR - Historical Wholesale'!L80 -> 0 | M81: 0 | N81: 0 | P81: 16365.67166
B82: June | D82: ='12. RTSR - Historical Wholesale'!D81 -> 8508.099043 | E82: 2.4994 | F82: 21265.14275 | H82: ='12. RTSR - Historical Wholesale'!H81 -> 8508.098306 | I82: 1.8475 | J82: 15718.71162 | L82: ='12. RTSR - Historical Wholesale'!L81 -> 0 | M82: 0 | N82: 0 | P82: 15718.71162
B83: July | D83: ='12. RTSR - Historical Wholesale'!D82 -> 9586.440039 | E83: 2.4994 | F83: 23960.34823 | H83: ='12. RTSR - Historical Wholesale'!H82 -> 9586.439669 | I83: 1.8475 | J83: 17710.94729 | L83: ='12. RTSR - Historical Wholesale'!L82 -> 0 | M83: 0 | N83: 0 | P83: 17710.94729
B84: August | D84: ='12. RTSR - Historical Wholesale'!D83 -> 9720.648979 | E84: 2.4994 | F84: 24295.79006 | H84: ='12. RTSR - Historical Wholesale'!H83 -> 9720.651762 | I84: 1.8475 | J84: 17958.90413 | L84: ='12. RTSR - Historical Wholesale'!L83 -> 0 | M84: 0 | N84: 0 | P84: 17958.90413
B85: September | D85: ='12. RTSR - Historical Wholesale'!D84 -> 9644.478782 | E85: 2.4994 | F85: 24105.41027 | H85: ='12. RTSR - Historical Wholesale'!H84 -> 9644.481135 | I85: 1.8475 | J85: 17818.1789 | L85: ='12. RTSR - Historical Wholesale'!L84 -> 0 | M85: 0 | N85: 0 | P85: 17818.1789
B86: October | D86: ='12. RTSR - Historical Wholesale'!D85 -> 8122.069797 | E86: 2.4994 | F86: 20300.30125 | H86: ='12. RTSR - Historical Wholesale'!H85 -> 8122.070048 | I86: 1.8475 | J86: 15005.52441 | L86: ='12. RTSR - Historical Wholesale'!L85 -> 0 | M86: 0 | N86: 0 | P86: 15005.52441
B87: November | D87: ='12. RTSR - Historical Wholesale'!D86 -> 8684.401146 | E87: 2.4994 | F87: 21705.79222 | H87: ='12. RTSR - Historical Wholesale'!H86 -> 8684.398852 | I87: 1.8475 | J87: 16044.42688 | L87: ='12. RTSR - Historical Wholesale'!L86 -> 0 | M87: 0 | N87: 0 | P87: 16044.42688
B88: December | D88: ='12. RTSR - Historical Wholesale'!D87 -> 8573.211728 | E88: 2.4994 | F88: 21427.88539 | H88: ='12. RTSR - Historical Wholesale'!H87 -> 8573.209549 | I88: 1.8475 | J88: 15839.00464 | L88: ='12. RTSR - Historical Wholesale'!L87 -> 0 | M88: 0 | N88: 0 | P88: 15839.00464
B90: Total | D90: =SUM(D77:D88) -> 108068.7607 | E90: =IF(D90<>0,F90/D90,0) -> 2.4994 | F90: =SUM(F77:F88) -> 270107.0605 | H90: =SUM(H77:H88) -> 108432.6583 | I90: =IF(H90<>0,J90/H90,0) -> 1.8475 | J90: =SUM(J77:J88) -> 200329.3361 | L90: =SUM(L77:L88) -> 0 | M90: =IF(L90<>0,N90/L90,0) -> 0 | N90: =SUM(N77:N88) -> 0 | P90: =SUM(P77:P88) -> 200329.3361
B92: Total | D92: Network | H92: Line Connection | L92: Transformation Connection | P92: Total Line
B94: Month | D94: Units Billed | E94: Rate | F94: Amount | H94: Units Billed | I94: Rate | J94: Amount | L94: Units Billed | M94: Rate | N94: Amount | P94: Amount
B96: January | D96: =D20+D39+D58+D77 -> 231437.1768 | E96: =IF(D96<>0,F96/D96,0) -> 3.594829646 | F96: =F20+F39+F58+F77 -> 831977.2245 | H96: =H20+H39+H58+H77 -> 232578.5956 | I96: =IF(H96<>0,J96/H96,0) -> 0.9062770183 | J96: =J20+J39+J58+J77 -> 210780.6361 | L96: =L20+L39+L58+L77 -> 26863.7284 | M96: =IF(L96<>0,N96/L96,0) -> 1.986609499 | N96: =N20+N39+N58+N77 -> 53367.73801 | P96: =J96+N96 -> 264148.3741
B97: February | D97: =D21+D40+D59+D78 -> 221887.1355 | E97: 3.593461478 | F97: =F21+F40+F59+F78 -> 797342.874 | H97: =H21+H40+H59+H78 -> 233230.6407 | I97: 0.9061438636 | J97: =J21+J40+J59+J78 -> 211340.5139 | L97: =L21+L40+L59+L78 -> 27476.98148 | M97: 1.988094643 | N97: =N21+N40+N59+N78 -> 54626.8397 | P97: 265967.3536
B98: March | D98: 216450.1739 | E98: 3.595388824 | F98: 778222.536 | H98: 220403.8825 | I98: 0.906402943 | J98: 199774.7278 | L98: 27538.22222 | M98: 1.990999182 | N98: 54828.57792 | P98: 254603.3057
B99: April | D99: 191061.496 | E99: 3.593112062 | F99: 686505.3659 | H99: 202759.8372 | I99: 0.9076161689 | J99: 184028.1067 | L99: 25486.0679 | M99: 1.996999089 | N99: 50895.65437 | P99: 234923.7611
B100: May | D100: 226564.3403 | E100: 3.600670942 | F100: 815783.6366 | H100: 228389.5471 | I100: 0.9046633204 | J100: 206615.646 | L100: 24274.86 | M100: 1.990392901 | N100: 48316.50902 | P100: 254932.1551
B101: June | D101: 223505.0502 | E101: 3.601963928 | F101: 805057.1286 | H101: 233913.0753 | I101: 0.9024269784 | J101: 211089.4697 | L101: 24669.71584 | M101: 1.992380414 | N101: 49151.45867 | P101: 260240.9284
B102: July | D102: 259196.6514 | E102: 3.603112149 | F102: 933914.6038 | H102: 264880.1512 | I102: 0.9021889444 | J102: 238971.944 | L102: 29181.72028 | M102: 1.995457703 | N102: 58230.88853 | P102: 297202.8325
B103: August | D103: 254955.6029 | E103: 3.601611505 | F103: 918251.0325 | H103: 259709.2375 | I103: 0.9033432735 | J103: 234606.5927 | L103: 26913.36364 | M103: 1.992865761 | N103: 53634.72091 | P103: 288241.3137
B104: September | D104: 258107.5833 | E104: 3.601975981 | F104: 929697.3153 | H104: 263158.5314 | I104: 0.9024716405 | J104: 237493.1115 | L104: 28113.78077 | M104: 1.992357578 | N104: 56012.70419 | P104: 293505.8157
B105: October | D105: 184724.5859 | E105: 3.592348797 | F105: 663595.1441 | H105: 200682.9876 | I105: 0.9059372311 | J105: 181806.1901 | L105: 23329.4934 | M105: 1.989666113 | N105: 46417.90245 | P105: 228224.0925
B106: November | D106: 203383.9072 | E106: 3.59366784 | F106: 730894.2067 | H106: 219007.6663 | I106: 0.9051409326 | J106: 198232.8033 | L106: 24334.82196 | M106: 1.989791728 | N106: 48421.22743 | P106: 246654.0307
B107: December | D107: 204040.5244 | E107: 3.593645585 | F107: 733249.3298 | H107: 222002.2028 | I107: 0.9039753283 | J107: 200684.5142 | L107: 25029.44922 | M107: 1.989520919 | N107: 49796.6128 | P107: 250481.127
B109: Total | D109: =SUM(D96:D107) -> 2675314.228 | E109: =IF(D109<>0,F109/D109,0) -> 3.597517741 | F109: =SUM(F96:F107) -> 9624490.398 | H109: =SUM(H96:H107) -> 2780716.355 | I109: =IF(H109<>0,J109/H109,0) -> 0.9045957713 | J109: =SUM(J96:J107) -> 2515424.256 | L109: =SUM(L96:L107) -> 313212.2051 | M109: =IF(L109<>0,N109/L109,0) -> 1.991304374 | N109: =SUM(N96:N107) -> 623700.834 | P109: =SUM(P96:P107) -> 3139125.09
N111: Low Voltage Switchgear Credit (if applicable) | P111: ='11. RTSR - UTRs & Sub-Tx'!J74 -> 0
N113: Total including deduction for Low Voltage Switchgear Credit | P113: =P109+P111 -> 3139125.09

Sheet 15. RTSR Rates to Forecast
A13: The purpose of this table is to re-align the current RTS Network Rates to recover current wholesale network costs.
A15: Rate Class | B15: Rate Description | C15: Unit | D15: Current RTSR-Network | E15: Loss Adjusted Billed kWh | F15: Billed kW | G15: Billed Amount | H15: Billed Amount % | I15: Current Wholesale Billing | J15: Adjusted RTSR Network
A17: Residential Service Classification | B17: Retail Transmission Rate – Network Service Rate | C17: $/kWh | D17: 0.0074 | E17: 419379180.5 | F17: 0 | G17: =IF(ISERROR(D17*E17), 0, ROUND(D17*E17, 2)) -> 3103405.94 | H17: =G17/10118083.26 -> 0.3067187589 | I17: =H17*total_current_wholesale_network -> 2953790.413 | J17: =IF(ISERROR(I17/E17), 0, I17/E17) -> 0.007043245231
A18: General Service Less Than 50 kW Service Classification | B18: Retail Transmission Rate – Network Service Rate | C18: $/kWh | D18: 0.0067 | E18: 203176641.2 | F18: 0 | G18: =IF(ISERROR(D18*E18), 0, ROUND(D18*E18, 2)) -> 1361283.5 | H18: 0.1345396618 | I18: 1295655.879 | J18: =IF(ISERROR(I18/E18), 0, I18/E18) -> 0.006376992315
A19: General Service 50 To 4,999 kW Service Classification | B19: Retail Transmission Rate – Network Service Rate – (less than 1,000 kW) | C19: $/kW | D19: 2.7741 | F19: 526536 | G19: =IF(ISERROR(D19*F19), 0, ROUND(D19*F19, 2)) -> 1460663.52 | H19: 0.1443616822 | I19: 1390244.778 | J19: =IF(ISERROR(I19/F19), 0, I19/F19) -> 2.640360352
A20: General Service 50 To 4,999 kW Service Classification | B20: Retail Transmission Rate – Network Service Rate – Interval Metered (less than 1,000 kW) | C20: $/kW | D20: 2.9465 | F20: 696360 | G20: =IF(ISERROR(D20*F20), 0, ROUND(D20*F20, 2)) -> 2051824.74 | H20: 0.2027878885 | I20: 1952906.053 | J20: =IF(ISERROR(I20/F20), 0, I20/F20) -> 2.804448925
A21: General Service 50 To 4,999 kW Service Classification | B21: Retail Transmission Rate – Network Service Rate – Interval Metered (1,000 to 4,999 kW) | C21: $/kW | D21: 2.9427 | F21: 517566 | G21: =IF(ISERROR(D21*F21), 0, ROUND(D21*F21, 2)) -> 1523041.47 | H21: 0.1505266789 | I21: 1449615.481 | J21: =IF(ISERROR(I21/F21), 0, I21/F21) -> 2.800832127
A22: Large Use Service Classification | B22: Retail Transmission Rate – Network Service Rate – Interval Metered | C22: $/kW | D22: 3.2624 | F22: 170151 | G22: =IF(ISERROR(D22*F22), 0, ROUND(D22*F22, 2)) -> 555100.62 | H22: 0.05486223089 | I22: 528339.1607 | J22: =IF(ISERROR(I22/F22), 0, I22/F22) -> 3.105119339
A23: Unmetered Scattered Load Service Classification | B23: Retail Transmission Rate – Network Service Rate | C23: $/kWh | D23: 0.0067 | E23: 2745080.316 | F23: 0 | G23: =IF(ISERROR(D23*E23), 0, ROUND(D23*E23, 2)) -> 18392.04 | H23: 0.001817739539 | I23: 17505.35782 | J23: =IF(ISERROR(I23/E23), 0, I23/E23) -> 0.006376992948
A24: Street Lighting Service Classification | B24: Retail Transmission Rate – Network Service Rate | C24: $/kW | D24: 2.0924 | F24: 21206 | G24: =IF(ISERROR(D24*F24), 0, ROUND(D24*F24, 2)) -> 44371.43 | H24: 0.004385359248 | I24: 42232.27869 | J24: =IF(ISERROR(I24/F24), 0, I24/F24) -> 1.991524978
A26: The purpose of this table is to re-align the current RTS Connection Rates to recover current wholesale connection costs.
A27: Rate Class | B27: Rate Description | C27: Unit | D27: Current RTSR-Connection | E27: Loss Adjusted Billed kWh | F27: Billed kW | G27: Billed Amount | H27: Billed Amount % | I27: Current Wholesale Billing | J27: Adjusted RTSR-Connection
A29: Residential Service Classification | B29: Retail Transmission Rate – Line and Transformation Connection Service Rate | C29: $/kWh | D29: 0.0023 | E29: 419379180.5 | F29: 0 | G29: =IF(ISERROR(D29*E29), 0, ROUND(D29*E29, 2)) -> 964572.12 | H29: =G29/3222525.29 -> 0.2993218154 | I29: =H29*Total_Current_Wholesale_Lineplus -> 939647.8023 | J29: =IF(ISERROR(I29/E29), 0, I29/E29) -> 0.00224056855
A30: General Service Less Than 50 kW Service Classification | B30: Retail Transmission Rate – Line and Transformation Connection Service Rate | C30: $/kWh | D30: 0.0021 | E30: 203176641.2 | F30: 0 | G30: =IF(ISERROR(D30*E30), 0, ROUND(D30*E30, 2)) -> 426670.95 | H30: 0.1324026692 | I30: 415645.8726 | J30: =IF(ISERROR(I30/E30), 0, I30/E30) -> 0.002045736509
A31: General Service 50 To 4,999 kW Service Classification | B31: Retail Transmission Rate – Line and Transformation Connection Service Rate – (less than 1,000 kW) | C31: $/kW | D31: 0.8036 | F31: 526536 | G31: =IF(ISERROR(D31*F31), 0, ROUND(D31*F31, 2)) -> 423124.33 | H31: 0.1313020976 | I31: 412190.8964 | J31: =IF(ISERROR(I31/F31), 0, I31/F31) -> 0.7828351649
A32: General Service 50 To 4,999 kW Service Classification | B32: Retail Transmission Rate – Line and Trans. Connection Service Rate – Interval Metered(less than 1,000 kW) | C32: $/kW | D32: 1.0037 | F32: 696360 | G32: =IF(ISERROR(D32*F32), 0, ROUND(D32*F32, 2)) -> 698936.53 | H32: 0.2168909371 | I32: 680876.1737 | J32: =IF(ISERROR(I32/F32), 0, I32/F32) -> 0.9777646243
A33: General Service 50 To 4,999 kW Service Classification | B33: Retail Transmission Rate – Line and Trans. Connection Service Rate – Interval Metered (1,000 to 4,999 kW) | C33: $/kW | D33: 1.0026 | F33: 517566 | G33: =IF(ISERROR(D33*F33), 0, ROUND(D33*F33, 2)) -> 518911.67 | H33: 0.1610264073 | I33: 505503.114 | J33: =IF(ISERROR(I33/F33), 0, I33/F33) -> 0.9766930478
A34: Large Use Service Classification | B34: Retail Transmission Rate – Line and Transformation Connection Service Rate – Interval Metered | C34: $/kW | D34: 1.0072 | F34: 170151 | G34: =IF(ISERROR(D34*F34), 0, ROUND(D34*F34, 2)) -> 171376.09 | H34: 0.05318068117 | I34: 166947.772 | J34: =IF(ISERROR(I34/F34), 0, I34/F34) -> 0.9811742039
A35: Unmetered Scattered Load Service Classification | B35: Retail Transmission Rate – Line and Transformation Connection Service Rate | C35: $/kWh | D35: 0.0021 | E35: 2745080.316 | F35: 0 | G35: =IF(ISERROR(D35*E35), 0, ROUND(D35*E35, 2)) -> 5764.67 | H35: 0.001788867264 | I35: 5615.712277 | J35: =IF(ISERROR(I35/E35), 0, I35/E35) -> 0.002045736966
A36: Street Lighting Service Classification | B36: Retail Transmission Rate – Line and Transformation Connection Service Rate | C36: $/kW | D36: 0.621 | F36: 21206 | G36: =IF(ISERROR(D36*F36), 0, ROUND(D36*F36, 2)) -> 13168.93 | H36: 0.00408652495 | I36: 12828.64793 | J36: =IF(ISERROR(I36/F36), 0, I36/F36) -> 0.6049536892
A38: The purpose of this table is to update the re-aligned RTS Network Rates to recover future wholesale network costs.
A39: Rate Class | B39: Rate Description | C39: Unit | D39: Adjusted RTSR-Network | E39: Loss Adjusted Billed kWh | F39: Billed kW | G39: Billed Amount | H39: Billed Amount % | I39: Current Wholesale Billing | J39: Proposed RTSR-Network
A41: Residential Service Classification | B41: Retail Transmission Rate – Network Service Rate | C41: $/kWh | D41: 0.007043245231 | E41: 419379180.5 | F41: 0 | G41: =IF(ISERROR(D41*E41), 0, ROUND(D41*E41, 2)) -> 2953790.41 | H41: =G41/9630289.4 -> 0.3067187586 | I41: =H41*forecast_wholesale_network -> 2952011.747 | J41: =IF(ISERROR(I41/E41), 0, I41/E41) -> 0.007039004043
A42: General Service Less Than 50 kW Service Classification | B42: Retail Transmission Rate – Network Service Rate | C42: $/kWh | D42: 0.006376992315 | E42: 203176641.2 | F42: 0 | G42: =IF(ISERROR(D42*E42), 0, ROUND(D42*E42, 2)) -> 1295655.88 | H42: 0.1345396619 | I42: 1294875.684 | J42: =IF(ISERROR(I42/E42), 0, I42/E42) -> 0.006373152331
A43: General Service 50 To 4,999 kW Service Classification | B43: Retail Transmission Rate – Network Service Rate – (less than 1,000 kW) | C43: $/kW | D43: 2.640360352 | F43: 526536 | G43: =IF(ISERROR(D43*F43), 0, ROUND(D43*F43, 2)) -> 1390244.78 | H43: 0.1443616824 | I43: 1389407.626 | J43: =IF(ISERROR(I43/F43), 0, I43/F43) -> 2.638770428
A44: General Service 50 To 4,999 kW Service Classification | B44: Retail Transmission Rate – Network Service Rate – Interval Metered (less than 1,000 kW) | C44: $/kW | D44: 2.804448925 | F44: 696360 | G44: =IF(ISERROR(D44*F44), 0, ROUND(D44*F44, 2)) -> 1952906.05 | H44: 0.2027878882 | I44: 1951730.083 | J44: =IF(ISERROR(I44/F44), 0, I44/F44) -> 2.802760185
A45: General Service 50 To 4,999 kW Service Classification | B45: Retail Transmission Rate – Network Service Rate – Interval Metered (1,000 to 4,999 kW) | C45: $/kW | D45: 2.800832127 | F45: 517566 | G45: =IF(ISERROR(D45*F45), 0, ROUND(D45*F45, 2)) -> 1449615.48 | H45: 0.1505266789 | I45: 1448742.575 | J45: =IF(ISERROR(I45/F45), 0, I45/F45) -> 2.799145569
A46: Large Use Service Classification | B46: Retail Transmission Rate – Network Service Rate – Interval Metered | C46: $/kW | D46: 3.105119339 | F46: 170151 | G46: =IF(ISERROR(D46*F46), 0, ROUND(D46*F46, 2)) -> 528339.16 | H46: 0.05486223083 | I46: 528021.0138 | J46: =IF(ISERROR(I46/F46), 0, I46/F46) -> 3.103249548
A47: Unmetered Scattered Load Service Classification | B47: Retail Transmission Rate – Network Service Rate | C47: $/kWh | D47: 0.006376992948 | E47: 2745080.316 | F47: 0 | G47: =IF(ISERROR(D47*E47), 0, ROUND(D47*E47, 2)) -> 17505.36 | H47: 0.001817739766 | I47: 17494.81892 | J47: =IF(ISERROR(I47/E47), 0, I47/E47) -> 0.006373153755
A48: Street Lighting Service Classification | B48: Retail Transmission Rate – Network Service Rate | C48: $/kW | D48: 1.991524978 | F48: 21206 | G48: =IF(ISERROR(D48*F48), 0, ROUND(D48*F48, 2)) -> 42232.28 | H48: 0.004385359385 | I48: 42206.84929 | J48: =IF(ISERROR(I48/F48), 0, I48/F48) -> 1.990325818
A50: The purpose of this table is to update the re-aligned RTS Connection Rates to recover future wholesale connection costs.
A51: Rate Class | B51: Rate Description | C51: Unit | D51: Adjusted RTSR-Connection | E51: Loss Adjusted Billed kWh | F51: Billed kW | G51: Billed Amount | H51: Billed Amount % | I51: Current Wholesale Billing | J51: Proposed RTSR-Connection
A53: Residential Service Classification | B53: Retail Transmission Rate – Line and Transformation Connection Service Rate | C53: $/kWh | D53: 0.00224056855 | E53: 419379180.5 | F53: 0 | G53: =IF(ISERROR(D53*E53), 0, ROUND(D53*E53, 2)) -> 939647.8 | H53: =G53/3139255.98 -> 0.2993218157 | I53: =H53*forecast_wholesale_lineplus -> 939608.6218 | J53: =IF(ISERROR(I53/E53), 0, I53/E53) -> 0.002240475125
A54: General Service Less Than 50 kW Service Classification | B54: Retail Transmission Rate – Line and Transformation Connection Service Rate | C54: $/kWh | D54: 0.002045736509 | E54: 203176641.2 | F54: 0 | G54: =IF(ISERROR(D54*E54), 0, ROUND(D54*E54, 2)) -> 415645.87 | H54: 0.1324026689 | I54: 415628.5398 | J54: =IF(ISERROR(I54/E54), 0, I54/E54) -> 0.0020456512
A55: General Service 50 To 4,999 kW Service Classification | B55: Retail Transmission Rate – Line and Transformation Connection Service Rate – (less than 1,000 kW) | C55: $/kW | D55: 0.7828351649 | F55: 526536 | G55: =IF(ISERROR(D55*F55), 0, ROUND(D55*F55, 2)) -> 412190.9 | H55: 0.1313020992 | I55: 412173.7139 | J55: =IF(ISERROR(I55/F55), 0, I55/F55) -> 0.7828025318
A56: General Service 50 To 4,999 kW Service Classification | B56: Retail Transmission Rate – Line and Trans. Connection Service Rate – Interval Metered(less than 1,000 kW) | C56: $/kW | D56: 0.9777646243 | F56: 696360 | G56: =IF(ISERROR(D56*F56), 0, ROUND(D56*F56, 2)) -> 680876.17 | H56: 0.2168909367 | I56: 680847.7812 | J56: =IF(ISERROR(I56/F56), 0, I56/F56) -> 0.9777238514
A57: General Service 50 To 4,999 kW Service Classification | B57: Retail Transmission Rate – Line and Trans. Connection Service Rate – Interval Metered (1,000 to 4,999 kW) | C57: $/kW | D57: 0.9766930478 | F57: 517566 | G57: =IF(ISERROR(D57*F57), 0, ROUND(D57*F57, 2)) -> 505503.11 | H57: 0.1610264066 | I57: 505482.0333 | J57: =IF(ISERROR(I57/F57), 0, I57/F57) -> 0.9766523173
A58: Large Use Service Classification | B58: Retail Transmission Rate – Line and Transformation Connection Service Rate – Interval Metered | C58: $/kW | D58: 0.9811742039 | F58: 170151 | G58: =IF(ISERROR(D58*F58), 0, ROUND(D58*F58, 2)) -> 166947.77 | H58: 0.05318068073 | I58: 166940.8092 | J58: =IF(ISERROR(I58/F58), 0, I58/F58) -> 0.9811332827
A59: Unmetered Scattered Load Service Classification | B59: Retail Transmission Rate – Line and Transformation Connection Service Rate | C59: $/kWh | D59: 0.002045736966 | E59: 2745080.316 | F59: 0 | G59: =IF(ISERROR(D59*E59), 0, ROUND(D59*E59, 2)) -> 5615.71 | H59: 0.001788866545 | I59: 5615.475855 | J59: =IF(ISERROR(I59/E59), 0, I59/E59) -> 0.00204565084
A60: Street Lighting Service Classification | B60: Retail Transmission Rate – Line and Transformation Connection Service Rate | C60: $/kW | D60: 0.6049536892 | F60: 21206 | G60: =IF(ISERROR(D60*F60), 0, ROUND(D60*F60, 2)) -> 12828.65 | H60: 0.004086525623 | I60: 12828.11511 | J60: =IF(ISERROR(I60/F60), 0, I60/F60) -> 0.6049285634

Sheet 16. Rev2Cost_GDPIPI
Y1: FALSE | Z1: 0 | AC1: NO
Y2: TRUE
B8: 0
B9: 0
B10: 0
A11: If applicable, please enter any adjustments related to the revenue to cost ratio model into columns C and E. The Price Escalator and Stretch Factor have been set at the 2016 values and will be updated by OEB staff at a later date.
A12: Price Escalator | B12: 0.019 | C12: Productivity Factor | D12: 0 | E12: # of Residential Customers (approved in the last CoS) | F12: 49453 | G12: Effective Year of Residential Rate Design Transition (yyyy) | H12: 2016
A13: Choose Stretch Factor Group | B13: III | C13: Price Cap Index | D13: =B12-D12-B14 -> 0.016 | E13: Billed kWh for Residential Class (approved in the last CoS) | F13: 408868804 | G13: OEB-approved # of Transition Years | H13: 4
A14: Associated Stretch Factor Value | B14: =IF(B13="I", 0%, IF(B13="II", 0.15%, IF(B13="III", 0.3%, IF(B13="IV", 0.45%, 0.6%)))) -> 0.003 | E14: Rate Design Transition Years Left | F14: 3
A15: Rate Class | B15: Current MFC | C15: MFC Adjustment from R/C Model | D15: Current Volumetric Charge | E15: DVR Adjustment from R/C Model | F15: Price Cap Index to be Applied to MFC and DVR | G15: Proposed MFC | H15: Proposed Volumetric Charge
A17: RESIDENTIAL SERVICE CLASSIFICATION | B17: 19.71 | D17: 0.0154 | F17: =D13 -> 0.016 | G17: =H27*(1+D13) -> 23.622 | H17: =H28*(1+D13) -> 0.0104648
A18: GENERAL SERVICE LESS THAN 50 kW SERVICE CLASSIFICATION | B18: 31.96 | D18: 0.0159 | F18: =D13 -> 0.016 | G18: =(B18+C18)*(1+D13) -> 32.47136 | H18: =(D18+E18)*(1+D13) -> 0.0161544
A19: GENERAL SERVICE 50 TO 4,999 KW SERVICE CLASSIFICATION | B19: 119.38 | D19: 5.0649 | F19: =D13 -> 0.016 | G19: =(B19+C19)*(1+D13) -> 121.29008 | H19: =(D19+E19)*(1+D13) -> 5.1459384
A20: LARGE USE SERVICE CLASSIFICATION | B20: 6975.72 | D20: 4.0196 | F20: =D13 -> 0.016 | G20: =(B20+C20)*(1+D13) -> 7087.33152 | H20: =(D20+E20)*(1+D13) -> 4.0839136
A21: UNMETERED SCATTERED LOAD SERVICE CLASSIFICATION | B21: 10.61 | D21: 0.0132 | F21: =D13 -> 0.016 | G21: =(B21+C21)*(1+D13) -> 10.77976 | H21: =(D21+E21)*(1+D13) -> 0.0134112
A22: STREET LIGHTING SERVICE CLASSIFICATION | B22: 0.33 | D22: 9.3754 | F22: =D13 -> 0.016 | G22: =(B22+C22)*(1+D13) -> 0.33528 | H22: =(D22+E22)*(1+D13) -> 9.5254064
A23: EMBEDDED DISTRIBUTOR SERVICE CLASSIFICATION | B23: 0 | D23: 0.02 | F23: =D13 -> 0.016 | G23: =(B23+C23)*(1+D13) -> 0 | H23: =(D23+E23)*(1+D13) -> 0.02032
A24: MICROFIT SERVICE CLASSIFICATION | B24: 5.4 | G24: =B24 -> 5.4
A26: Rate Design Transition | C26: Revenue from Rates | D26: Current F/V Split | E26: Decoupling MFC Split | F26: Incremental Fixed Charge ($/month/year) | G26: New F/V Split | H26: Adjusted Rates1 | I26: Revenue at New F/V Split
A27: Current Residential Fixed Rate (inclusive of R/C adj.) | B27: =B17+C17 -> 19.71 | C27: =B27*COS_RES_CUSTOMERS*12 -> 11696623.56 | D27: =IF(ISERROR(C27/C29), 0, C27/C29) -> 0.650057884 | E27: =IF(ISERROR((1-D27)/YRS_LEFT), 0, (1-D27)/YRS_LEFT) -> 0.116647372 | F27: =IF(ISERROR(ROUND(E27*C29/COS_RES_CUSTOMERS/12, 2)), 0, ROUND(E27*C29/COS_RES_CUSTOMERS/12, 2)) -> 3.54 | G27: =E27+D27 -> 0.766705256 | H27: =IF(ISERROR(ROUND(G27*C29/COS_RES_CUSTOMERS/12, 2)), 0, ROUND(G27*C29/COS_RES_CUSTOMERS/12, 2)) -> 23.25 | I27: =ROUND(H27*COS_RES_CUSTOMERS*12, 2) -> 13797387
A28: Current Residential Variable Rate (inclusive of R/C adj.) | B28: =D17+E17 -> 0.0154 | C28: =B28*COS_RES_KWH -> 6296579.582 | D28: =IF(ISERROR(C28/C29), 0, C28/C29) -> 0.349942116 | G28: =1-G27 -> 0.233294744 | H28: =IF(ISERROR(ROUND(G28*C29/COS_RES_KWH, 4)), 0, ROUND(G28*C29/COS_RES_KWH, 4)) -> 0.0103 | I28: =ROUND(H28*COS_RES_KWH, 2) -> 4211348.68
C29: =SUM(C27+C28) -> 17993203.14 | I29: =SUM(I27+I28) -> 18008735.68
A32: =IF((H27-B27)>=4, "The Rate Design Transition has calculated a monthly fixed charge greater than or equal to $4. Please refer to Section 3.2.3 of the Chapter 3 Filing Requirements for mitigation instructions.", "") -> 
A34: 1 These are the residential rates to which the Price Cap Index will be applied to.

Sheet 17. Regulatory Charges
B12: Update the following rates if an OEB Decision has been issued at the time of completing this application
D13: Proposed
B14: Wholesale Market Service Rate | C14: $/kWh | D14: 0.0036
B15: Rural or Remote Electricity Rate Protection Charge (RRRP) | C15: $/kWh | D15: 0.0013
B16: Standard Supply Service - Administrative Charge (if applicable) | C16: $ | D16: 0.25
B17: Ontario Electricity Support Program (OESP) | C17: $/kWh | D17: 0.0011

Sheet 18. Additional Rates
AA1: 3
B2: ASD
B3: KKK
A11: In the Green Cells below, enter any proposed rate riders that are not already included in this model (e.g.: proposed ICM rate riders). Please note that existing SMIRR and SM Entity Charge do not need to be included below. In column A, the rate rider descriptions must begin with "Rate Rider for". In column B, choose the associated unit from the drop-down menu. In column C, enter the rate. All rate riders with a "$" unit should be rounded to 2 decimal places and all others rounded to 4 decimal places. In column E, enter the expiry date (e.g. April 30, 2018) or description of the expiry date in text (e.g. the effective date of the next cost of service-based rate order). In column G, choose the sub-total as applicable in the bill impact calculation from the drop-down menu
A17: RESIDENTIAL SERVICE CLASSIFICATION
A18: Rate Rider for Disposition of Capacity Based Recovery Account (2017) | B18: $/kWh | C18: 0.0003 | D18: - effective until | E18: 2017-12-31 | G18: B | Z18: 1_RESIDENTIAL SERVICE CLASSIFICATION_VR_RR_1
D19: - effective until
D20: - effective until
D21: - effective until
D22: - effective until
D23: - effective until
D24: - effective until
D25: - effective until
D26: - effective until
D27: - effective until
A30: GENERAL SERVICE LESS THAN 50 kW SERVICE CLASSIFICATION
A31: Rate Rider for Disposition of Capacity Based Recovery Account (2017) | B31: $/kWh | C31: 0.0003 | D31: - effective until | E31: 2017-12-31 | G31: B | Z31: 2_GENERAL SERVICE LESS THAN 50 kW SERVICE CLASSIFICATION_VR_RR_1
D32: - effective until
D33: - effective until
D34: - effective until
D35: - effective until
D36: - effective until
D37: - effective until
D38: - effective until
D39: - effective until
D40: - effective until
A43: GENERAL SERVICE 50 TO 4,999 KW SERVICE CLASSIFICATION
A44: Rate Rider for Disposition of Capacity Based Recovery Account (2017) | B44: $/kW | C44: 0.1114 | D44: - effective until | E44: 2017-12-31 | G44: B | Z44: 3_GENERAL SERVICE 50 TO 4,999 KW SERVICE CLASSIFICATION_VR_RR_1
D45: - effective until
D46: - effective until
D47: - effective until
D48: - effective until
D49: - effective until
D50: - effective until
D51: - effective until
D52: - effective until
D53: - effective until
A56: LARGE USE SERVICE CLASSIFICATION
D57: - effective until
D58: - effective until
D59: - effective until
D60: - effective until
D61: - effective until
D62: - effective until
D63: - effective until
D64: - effective until
D65: - effective until
D66: - effective until
A69: UNMETERED SCATTERED LOAD SERVICE CLASSIFICATION
A70: Rate Rider for Disposition of Capacity Based Recovery Account (2017) | B70: $/kWh | C70: 0.0003 | D70: - effective until | E70: 2017-12-31 | G70: B | Z70: 5_UNMETERED SCATTERED LOAD SERVICE CLASSIFICATION_VR_RR_1
D71: - effective until
D72: - effective until
D73: - effective until
D74: - effective until
D75: - effective until
D76: - effective until
D77: - effective until
D78: - effective until
D79: - effective until
A82: STREET LIGHTING SERVICE CLASSIFICATION
A83: Rate Rider for Disposition of Capacity Based Recovery Account (2017) | B83: $/kW | C83: 0.1005 | D83: - effective until | E83: 2017-12-31 | G83: B | Z83: 6_STREET LIGHTING SERVICE CLASSIFICATION_VR_RR_1
D84: - effective until
D85: - effective until
D86: - effective until
D87: - effective until
D88: - effective until
D89: - effective until
D90: - effective until
D91: - effective until
D92: - effective until
A95: EMBEDDED DISTRIBUTOR SERVICE CLASSIFICATION
A96: Rate Rider for Disposition of Capacity Based Recovery Account (2017) | B96: $/kW | C96: 0.1246 | D96: - effective until | E96: 2017-12-31 | G96: B | Z96: 7_EMBEDDED DISTRIBUTOR SERVICE CLASSIFICATION_VR_RR_1
D97: - effective until
D98: - effective until
D99: - effective until
D100: - effective until
D101: - effective until
D102: - effective until
D103: - effective until
D104: - effective until
D105: - effective until
A108: MICROFIT SERVICE CLASSIFICATION
D109: - effective until
D110: - effective until
D111: - effective until
D112: - effective until
D113: - effective until
D114: - effective until
D115: - effective until
D116: - effective until
D117: - effective until
D118: - effective until

Sheet 19. Final Tariff Schedule
B1: Waterloo North Hydro Inc. | F1: X | G1: Waterloo North Hydro Inc._Start | H1: Waterloo North Hydro Inc. | J1: 9
B2: TARIFF OF RATES AND CHARGES
B3: Effective and Implementation Date January 1, 2017
B4: This schedule supersedes and replaces all previously
B5: approved schedules of Rates, Charges and Loss Factors
B6: EB-2016-0109 | H6: EB-2015-0108 | AS6: X
B7: RESIDENTIAL SERVICE CLASSIFICATION | H7: 1_RESIDENTIAL SERVICE CLASSIFICATION | AA7: RESIDENTIAL SERVICE CLASSIFICATION
B8: This classification applies to an account taking electricity at 750 volts or less where the electricity is used exclusively in a separate metered living accommodation. Customers shall be residing in single-dwelling units that consist of a detached house or one unit of a semi-detached, duplex, triplex or quadruplex house, with a residential zoning. Separately metered dwellings within a town house complex or apartment building also qualify as residential customers. All customers are single-phase. Further servicing details are available in the distributor’s Conditions of Service. | H8: 1_RESIDENTIAL SERVICE CLASSIFICATION | AA8: This classification applies to an account taking electricity at 750 volts or less where the electricity is used exclusively in a separate metered living accommodation. Customers shall be residing in single-dwelling units that consist of a detached house or one unit of a semi-detached, duplex, triplex or quadruplex house, with a residential zoning. Separately metered dwellings within a town house complex or apartment building also qualify as residential customers. All customers are single-phase. Further servicing details are available in the distributor’s Conditions of Service.
B10: APPLICATION | H10: 1_APPLICATION | AA10: APPLICATION
B12: The application of these rates and charges shall be in accordance with the Licence of the Distributor and any Code or Order of the Ontario Energy Board, and amendments thereto as approved by the Ontario Energy Board, which may be applicable to the administration of this schedule. | H12: 1_RESIDENTIAL SERVICE CLASSIFICATION | AA12: The application of these rates and charges shall be in accordance with the Licence of the Distributor and any Code or Order of the Ontario Energy Board, and amendments thereto as approved by the Ontario Energy Board, which may be applicable to the administration of this schedule.
B14: No rates and charges for the distribution of electricity and charges to meet the costs of any work or service done or furnished for the purpose of the distribution of electricity shall be made except as permitted by this schedule, unless required by the Distributor’s Licence or a Code or Order of the Ontario Energy Board, and amendments thereto as approved by the Ontario Energy Board, or as specified herein. | H14: 1_RESIDENTIAL SERVICE CLASSIFICATION | AA14: No rates and charges for the distribution of electricity and charges to meet the costs of any work or service done or furnished for the purpose of the distribution of electricity shall be made except as permitted by this schedule, unless required by the Distributor’s Licence or a Code or Order of the Ontario Energy Board, and amendments thereto as approved by the Ontario Energy Board, or as specified herein.
B16: Unless specifically noted, this schedule does not contain any charges for the electricity commodity, be it under the Regulated Price Plan, a contract with a retailer or the wholesale market price, as applicable.In addition, the charges in the MONTHLY RATES AND CHARGES – Regulatory Component of this schedule do not apply to a customer that is an embedded wholesale market participant. | H16: 1_RESIDENTIAL SERVICE CLASSIFICATION | AA16: Unless specifically noted, this schedule does not contain any charges for the electricity commodity, be it under the Regulated Price Plan, a contract with a retailer or the wholesale market price, as applicable.In addition, the charges in the MONTHLY RATES AND CHARGES – Regulatory Component of this schedule do not apply to a customer that is an embedded wholesale market participant.
B18: It should be noted that this schedule does not list any charges, assessments or credits that are required by law to be invoiced by a distributor and that are not subject to Ontario Energy Board approval, such as the Debt Retirement Charge, the Global Adjustment and the HST. | H18: 1_RESIDENTIAL SERVICE CLASSIFICATION | AA18: It should be noted that this schedule does not list any charges, assessments or credits that are required by law to be invoiced by a distributor and that are not subject to Ontario Energy Board approval, such as the Debt Retirement Charge, the Global Adjustment and the HST.
B20: MONTHLY RATES AND CHARGES – Delivery Component | H20: 1_MRC_Del | AA20: MONTHLY RATES AND CHARGES – Delivery Component
B22: Service Charge | D22: $ | E22: 23.622 | H22: 1_RESIDENTIAL SERVICE CLASSIFICATION | I22: A | M22: 1_RESIDENTIAL SERVICE CLASSIFICATION_MSC | Z22: 1_RESIDENTIAL SERVICE CLASSIFICATION_MSC
B23: Rate Rider for Smart Metering Entity Charge – effective until October 31, 2018 | D23: $ | E23: 0.79 | H23: 1_RESIDENTIAL SERVICE CLASSIFICATION | I23: B | M23: 1_RESIDENTIAL SERVICE CLASSIFICATION_SME | Q23: 2018-10-31 | Z23: 1_RESIDENTIAL SERVICE CLASSIFICATION_SME
B24: Rate Rider for Recovery of Stranded Meter Assets – effective until December 31, 2018 | D24: $ | E24: 0.58 | H24: 1_RESIDENTIAL SERVICE CLASSIFICATION | I24: A | M24: 1_RESIDENTIAL SERVICE CLASSIFICATION_SMA | Q24: 2018-12-31 | Z24: 1_RESIDENTIAL SERVICE CLASSIFICATION_SMA
B25: Distribution Volumetric Rate | D25: $/kWh | E25: 0.0104648 | H25: 1_RESIDENTIAL SERVICE CLASSIFICATION | I25: A | M25: 1_RESIDENTIAL SERVICE CLASSIFICATION_DVC | Z25: 1_RESIDENTIAL SERVICE CLASSIFICATION_DVC
B26: Rate Rider for Disposition of Global Adjustment Account (2017) - effective until December 31, 2017 Applicable only for Non-RPP Customers | D26: $/kWh | E26: 0.0024 | H26: 1_RESIDENTIAL SERVICE CLASSIFICATION | I26: B | M26: 1_RESIDENTIAL SERVICE CLASSIFICATION_GAA
B27: Rate Rider for Disposition of Deferral/Variance Accounts (2017) - effective until December 31, 2017 | D27: $/kWh | E27: -0.0033 | H27: 1_RESIDENTIAL SERVICE CLASSIFICATION | I27: B | M27: 1_RESIDENTIAL SERVICE CLASSIFICATION_DVA
B28: Low Voltage Service Rate | D28: $/kWh | E28: 0.0002 | H28: 1_RESIDENTIAL SERVICE CLASSIFICATION | I28: B | M28: 1_RESIDENTIAL SERVICE CLASSIFICATION_LV | Z28: Low Voltage Service Rate
B29: Rate Rider for Disposition of Capacity Based Recovery Account (2017) - effective until December 31, 2017 | D29: $/kWh | E29: 0.0003 | H29: 1_RESIDENTIAL SERVICE CLASSIFICATION | I29: B | M29: 1_RESIDENTIAL SERVICE CLASSIFICATION_ADDED | Z29: 1_RESIDENTIAL SERVICE CLASSIFICATION_VR_RR_1
B30: Retail Transmission Rate – Network Service Rate | D30: $/kWh | E30: 0.007 | H30: 1_RESIDENTIAL SERVICE CLASSIFICATION | I30: C | M30: 1_RESIDENTIAL SERVICE CLASSIFICATION_Retail Transmission Rate – Network Service Rate | Z30: 1_RESIDENTIAL SERVICE CLASSIFICATION_Retail Transmission Rate – Network Service Rate | AZ30: RESIDENTIAL SERVICE CLASSIFICATION_Retail Transmission Rate – Network Service Rate
B31: Retail Transmission Rate – Line and Transformation Connection Service Rate | D31: $/kWh | E31: 0.0022 | H31: 1_RESIDENTIAL SERVICE CLASSIFICATION | I31: C | M31: 1_RESIDENTIAL SERVICE CLASSIFICATION_Retail Transmission Rate – Line and Transformation Connection Service Rate | Z31: 1_RESIDENTIAL SERVICE CLASSIFICATION_Retail Transmission Rate – Line and Transformation Connection Service Rate | AZ31: RESIDENTIAL SERVICE CLASSIFICATION_Retail Transmission Rate – Line and Transformation Connection Service Rate
B33: MONTHLY RATES AND CHARGES – Regulatory Component | H33: 1_MRC_Reg | AA33: MONTHLY RATES AND CHARGES – Regulatory Component
B35: Wholesale Market Service Rate | D35: $/kWh | E35: 0.0036 | H35: 1_RESIDENTIAL SERVICE CLASSIFICATION | I35: T | M35: 1_RESIDENTIAL SERVICE CLASSIFICATION_WMSR | Z35: Wholesale Market Service Rate
B36: Rural or Remote Electricity Rate Protection Charge (RRRP) | D36: $/kWh | E36: 0.0013 | H36: 1_RESIDENTIAL SERVICE CLASSIFICATION | I36: T | M36: 1_RESIDENTIAL SERVICE CLASSIFICATION_RRRP | Z36: Rural or Remote Electricity Rate Protection Charge (RRRP)
B37: Ontario Electricity Support Program Charge (OESP) | D37: $/kWh | E37: 0.0011 | H37: 1_RESIDENTIAL SERVICE CLASSIFICATION | I37: T | M37: 1_RESIDENTIAL SERVICE CLASSIFICATION_OESPR | Z37: Ontario Electricity Support Program Charge (OESP)
B38: Standard Supply Service – Administrative Charge (if applicable) | D38: $ | E38: 0.25 | H38: 1_RESIDENTIAL SERVICE CLASSIFICATION | I38: T | M38: 1_RESIDENTIAL SERVICE CLASSIFICATION_SSS | Z38: Standard Supply Service – Administrative Charge (if applicable) | AS38: X
B39: ONTARIO ELECTRICITY SUPPORT PROGRAM RECIPIENTS | H39: 2_ONTARIO ELECTRICITY SUPPORT PROGRAM RECIPIENTS | AA39: ONTARIO ELECTRICITY SUPPORT PROGRAM RECIPIENTS
B40: In addition to the charges specified on page 1 of this tariff of rates and charges, the following credits are to be applied to eligible residential customers. | H40: 2_ONTARIO ELECTRICITY SUPPORT PROGRAM RECIPIENTS | AA40: In addition to the charges specified on page 1 of this tariff of rates and charges, the following credits are to be applied to eligible residential customers.
B42: APPLICATION | H42: 2_APPLICATION | AA42: APPLICATION
B44: The application of the credits is in accordance with the Distribution System Code (Section 9) and subsection 79.2 of the Ontario Energy Board Act, 1998. | H44: 2_ONTARIO ELECTRICITY SUPPORT PROGRAM RECIPIENTS | AA44: The application of the credits is in accordance with the Distribution System Code (Section 9) and subsection 79.2 of the Ontario Energy Board Act, 1998.
B45: The application of these credits shall be in accordance with the Licence of the Distributor and any Code or Order of the Ontario Energy Board, and amendments thereto as approved by the Ontario Energy Board, which may be applicable to the administration of this schedule. | H45: 2_ONTARIO ELECTRICITY SUPPORT PROGRAM RECIPIENTS | AA45: The application of these credits shall be in accordance with the Licence of the Distributor and any Code or Order of the Ontario Energy Board, and amendments thereto as approved by the Ontario Energy Board, which may be applicable to the administration of this schedule.
B46: In this class: | H46: 2_ONTARIO ELECTRICITY SUPPORT PROGRAM RECIPIENTS | AA46: In this class:
B47: “Aboriginal person” includes a person who is a First Nations person, a Métis person or an Inuit person; | H47: 2_ONTARIO ELECTRICITY SUPPORT PROGRAM RECIPIENTS | AA47: “Aboriginal person” includes a person who is a First Nations person, a Métis person or an Inuit person;
B48: “account-holder” means a consumer who has an account with a distributor that falls within a residential-rate classification as specified in a rate order made by the Ontario Energy Board under section 78 of the Act, and who lives at the service address to which the account relates for at least six months in a year; | H48: 2_ONTARIO ELECTRICITY SUPPORT PROGRAM RECIPIENTS | AA48: “account-holder” means a consumer who has an account with a distributor that falls within a residential-rate classification as specified in a rate order made by the Ontario Energy Board under section 78 of the Act, and who lives at the service address to which the account relates for at least six months in a year;
B49: “electricity-intensive medical device” means an oxygen concentrator, a mechanical ventilator, or such other device as may be specified by the Ontario Energy Board; | H49: 2_ONTARIO ELECTRICITY SUPPORT PROGRAM RECIPIENTS | AA49: “electricity-intensive medical device” means an oxygen concentrator, a mechanical ventilator, or such other device as may be specified by the Ontario Energy Board;
B50: “household” means the account-holder and any other people living at the accountholder’s service address for at least six months in a year, including people other than the account-holder’s spouse, children or other relatives; | H50: 2_ONTARIO ELECTRICITY SUPPORT PROGRAM RECIPIENTS | AA50: “household” means the account-holder and any other people living at the accountholder’s service address for at least six months in a year, including people other than the account-holder’s spouse, children or other relatives;
B51: “household income” means the combined annual after-tax income of all members of a household aged 16 or over; | H51: 2_ONTARIO ELECTRICITY SUPPORT PROGRAM RECIPIENTS | AA51: “household income” means the combined annual after-tax income of all members of a household aged 16 or over;
B53: MONTHLY RATES AND CHARGES | H53: 2_MRC | AA53: MONTHLY RATES AND CHARGES
B56: Class A | H56: 2_ONTARIO ELECTRICITY SUPPORT PROGRAM RECIPIENTS | AA56: Class A
B57: (a) account-holders with a household income of $28,000 or less living in a household of one or two persons; | H57: 2_ONTARIO ELECTRICITY SUPPORT PROGRAM RECIPIENTS | AA57: (a) account-holders with a household income of $28,000 or less living in a household of one or two persons;
B58: (b) account-holders with a household income of between $28,001 and $39,000 living in a household of three persons; | H58: 2_ONTARIO ELECTRICITY SUPPORT PROGRAM RECIPIENTS | AA58: (b) account-holders with a household income of between $28,001 and $39,000 living in a household of three persons;
B59: (c) account-holders with a household income of between $39,001 and $48,000 living in a household of five persons; | H59: 2_ONTARIO ELECTRICITY SUPPORT PROGRAM RECIPIENTS | AA59: (c) account-holders with a household income of between $39,001 and $48,000 living in a household of five persons;
B60: (d) account-holders with a household income of between $48,001 and $52,000 living in a household of seven or more persons; | H60: 2_ONTARIO ELECTRICITY SUPPORT PROGRAM RECIPIENTS | AA60: (d) account-holders with a household income of between $48,001 and $52,000 living in a household of seven or more persons;
B61: but does not include account-holders in Class E. | H61: 2_ONTARIO ELECTRICITY SUPPORT PROGRAM RECIPIENTS | AA61: but does not include account-holders in Class E.
B62: OESP Credit | D62: $ | E62: -30 | H62: 2_ONTARIO ELECTRICITY SUPPORT PROGRAM RECIPIENTS | I62: T | M62: 2_ONTARIO ELECTRICITY SUPPORT PROGRAM RECIPIENTS_OESP CREDIT_CLASS A | Z62: OESP Credit
B64: Class B | H64: 2_ONTARIO ELECTRICITY SUPPORT PROGRAM RECIPIENTS | AA64: Class B
